Workbook

Sheet Foglio1
Y1: 88 | Z1: 1 | AA1: Lingua | AB1: General data: | AC1: Dati generali: | AJ1: ft | AL1: m
Y2: TRUE | Z2: 1 | AA2: Unità | AB2: Unit: | AC2: Unità di misura: | AI2: =1*Y2 -> 1 | AJ2: lb | AL2: kg
Y3: TRUE | Z3: 1 | AB3: N. parallel elevators: | AC3: N. ascensori in parallelo: | AI3: =1*Y3 -> 1 | AJ3: ft/s | AL3: m/s | AX3: =IF(Z21>75,IF(Z1=1,AZ3,AY3),0) -> 0 | AY3: Potenza non disponibile | AZ3: Power not available
Y4: FALSE | Z4: =IF(M64<=14,1,IF(M64<=25,2,IF(M64<=33,3,0))) -> 1 | AB4: Energy cost: | AC4: Costo energia: | AH4: kW | AI4: =1*Y4 -> 0 | AJ4: HP | AL4: CV | AY4: Driver not available | AZ4: Inverter non disponibile
L5: =IF(Z1=1,AB60,AC60) -> GEFRAN recommended drive | R5: =IF(Z1=1,AB9,AC9) -> Annual consumption | Z5: 0 | AB5: Elevator data: | AC5: Dati ascensore:
A6: =IF(Z1=1,AB1,AC1) -> General data: | D6: =IF(Z1=1,AB2,AC2) -> Unit: | L6: SIEIDrive ADL200 | P6: SIEIDrive ADL200 | Z6: 1 | AB6: Hoisting height: | AC6: Corsa: | AP6: =IF($Z$7=0,IF($Z$1=1,AQ6,AS6),AQ9) -> Sigle speed motor | AQ6: Sigle speed motor | AS6: Motore singola velocità | BH6: =IF($Z$7=0,AP6,IF($Z$7=1,AP10,$BH$3)) -> Sigle speed motor
D7: =IF(Z1=1,AB3,AC3) -> N. parallel elevators: | F7: 1 | L7: =IF(Z1=1,AB59,AC59) -> Used system | Y7: 6 | Z7: 0 | AA7: sinc/asinc | AB7: Motor type: | AC7: Tipo motore: | AP7: =IF($Z$7=0,IF($Z$1=1,AQ7,AS7),AQ5) -> Dual speed motor | AQ7: Dual speed motor | AS7: Motore doppia velocità | BH7: =IF($Z$7=0,AP7,BH3) -> Dual speed motor
D8: =IF(Z1=1,AB4,AC4) -> Energy cost: | F8: 0.1 | H8: €/kWh | L8: Dual speed motor | Z8: =IF(OR(F20="3000/1500",F20="1500/750"),1,0) -> 0 | AA8: 2vel | AB8: Motor type: | AC8: Regolazione: | AG8: Tempo di accelerazione: | AH8: Acceleration time: | AL8: 200 | AP8: =IF($Z$7=0,AQ12,AQ11) -> SIEIDrive AVRy + Brushless Motor | AQ8: SIEIDrive ADL100 | AR8: SIEIDrive ADL120
Z9: 1 | AA9: tri/mono | AB9: Annual consumption | AC9: Consumo annuale | AG9: Rendimento impianto: | AH9: System efficency: | AL9: 208 | AP9: =IF(Z9=1,IF($Z$7=0,AQ8,AQ5),AQ5) -> SIEIDrive ADL100 | AQ9: SIEIDrive ADL200
L10: Encoder | O10: =IF(Z1=1,AH10,AI10) -> EMC filter included | AB10: Max weight: | AC10: Peso massimo: | AH10: EMC filter included | AI10: filtro EMC integrato | AJ10: . | AL10: 230 | AP10: =IF(Z9=1,IF($Z$7=0,AQ9,AQ5),AQ5) -> SIEIDrive ADL200 | AQ10: SIEIDrive AGL50
A11: =IF(Z1=1,AB5,AC5) -> Elevator data: | D11: =IF(Z1=1,AB6,AC6) -> Hoisting height: | F11: 40 | H11: =IF(Z2=0,AJ1,AL1) -> m | K11: =IF(Z1=1,AH11,AI11) -> Regenerative | Y11: 21 | Z11: =IF(L6=AP6,0,IF(L6=AP7,1,200)) -> 200 | AA11: tipo reg | AB11: Speed: | AC11: Velocità: | AH11: Regenerative | AI11: Rigenerativo | AJ11: . | AL11: 380 | AQ11: SIEIDrive AVRy
D12: =IF(Z1=1,AB10,AC10) -> Max weight: | F12: 630 | H12: =IF(Z2=0,AJ2,AL2) -> kg | I12: =IF(Z1=1,AB20,AC20) -> Estimated power: | Z12: 0.9 | AB12: Stops: | AC12: Numero di fermate: | AH12: Recommended drive: | AI12: Drive consigliato: | AJ12: . | AL12: 400 | AP12: =IF($Z$9=0,AQ13,AQ5) ->  | AQ12: =IF(Z1=1,AT12,AS12) -> SIEIDrive AVRy + Brushless Motor | AS12: SIEIDrive AVRy + Motore Brushless | AT12: SIEIDrive AVRy + Brushless Motor
D13: =IF(Z1=1,AB11,AC11) -> Speed: | F13: 0.9 | H13: =IF(Z2=0,AJ3,AL3) -> m/s | I13: =V44 -> 3.4212375 | J13: =H22 -> kW | Z13: 4 | AB13: total users: | AC13: Utenti totali: | AL13: 500 | AQ13: SIEIDrive ADL130 | AZ13: =IF(OR(F20=BB13,F20=BB17),3000,IF(OR(F20=BB14,F20=BB18,F20=BB19),1500,IF(OR(F20=BB15,F20=BB20),1000,IF(F20=BB16,750,0)))) -> 1500 | BB13: =IF($Z$7=1,BF13,BD13) -> 3000 | BD13: 3000 | BF13: 150
D14: =IF($Z$1=1,AH8,AG8) -> Acceleration time: | F14: 1 | H14: s | I14: =IF(Z29>0.1,IF(Z1=1,AB58,AC58),Z28) ->  | L14: =IF(Z1=1,AH12,AI12) -> Recommended drive: | Z14: =IF(Z2=1,F11,F11/3.28) -> 40 | AB14: Motor data: | AC14: Dati motore: | BB14: 1500 | BD14: 1500 | BF14: 200
D15: =IF($Z$1=1,AH9,AG9) -> System efficency: | F15: 90 | H15: % | Z15: =IF(Z2=1,F12,F12/2.2046) -> 630 | AB15: Power: | AC15: Potenza: | BB15: 1000 | BD15: 1000 | BF15: 250
L16: =IF(OR(AND(Z21>75,G21>230),AND(Z21>37,G21<=230)),IF(Z1=1,AZ3,AY3),IF(L25=1,IF(Z1=1,AY4,AZ4),0)) -> 0 | Z16: =IF(Z2=1,F13,F13/3.28) -> 0.9 | AB16: Voltage: | AC16: Tensione: | AL16: parte alta | AP16: =IF($Z$1=1,AQ16,AS16) -> Asynchronous | AQ16: Asynchronous | AS16: Asincrono | BB16: 750 | BD16: 750 | BF16: 300
Z17: 400 | AB17: Efficiency: | AC17: Rendimento: | AJ17: High | AL17: Alti | AP17: =IF($Z$1=1,AQ17,AS17) -> Synchronous | AQ17: Synchronous | AS17: Sincrono | BB17: 3000/1500 | BD17: 3000/1500
AB18: kg of CO2 saved: | AC18: kg di CO2 risparmiati: | BB18: 1500/750 | BD18: 1500/750
A19: =IF(Z1=1,AB14,AC14) -> Motor data: | D19: =IF(Z1=1,AB7,AC7) -> Motor type: | G19: =IF(Z7=1,AP17,AP16) -> Asynchronous | Y19: cavo | Z19: =Z14*F77 -> 67.5 | AB19: Efficiency: | AC19: Rendimento: | AJ19: Medium/High | AL19: Medio/Alti
D20: =IF(Z1=1,AB35,AC35) -> Nominal speed | F20: 1500 | H20: rpm | S20: =IF(Z1=1,AB37,AC37) -> Used system: | T20: =IF(Z7=0,L124,L122) -> 1791.084539 | V20: kWh | Z20: 3 | AB20: Estimated power: | AC20: Potenza stimata: | AJ20: Medium/low | AL20: Medio/Bassi | AP20: =IF($Z$1=1,AQ20,AS20) -> threephase | AQ20: threephase | AS20: Trifase
D21: =IF(Z1=1,AB16,AC16) -> Voltage: | G21: 400 | H21: V | S21: =IF(Z1=1,AB38,AC38) -> With GEFRAN drive: | T21: =IF(Z33=0,L122,N116) -> 1756.839785 | V21: kWh | Z21: =IF(Z3=1,G22,IF(Z2=1,G22/1.34,G22/1.168)) -> 4 | AB21: Advanced settings | AC21: Impostazioni avanzate: | AJ21: Low | AL21: Bassi | AP21: =IF($Z$1=1,AQ21,AS21) -> singlephase | AQ21: singlephase | AS21: Monofase
D22: =IF(Z1=1,AB15,AC15) -> Power: | G22: 4 | H22: =IF(Z3=1,AH4,IF(Z2=1,AL4,AJ4)) -> kW | Z22: 400 | AB22: Statistic data: | AC22: Dati statistici:
D23: =IF(Z1=1,AB17,AC17) -> Efficiency: | F23: 89.3 | G23: % | S23: =IF(Z1=1,AB39,AC39) -> Energy saving: | Z23: =F23/100 -> 0.893 | AB23: Estimated speed: | AC23: Velocità stimata: | AJ23: V (3~)
D24: =IF(Z1=1,AB57,AC57) -> Power Factor: | F24: 0.76 | T24: =T20-T21 -> 34.24475446 | V24: kWh | AB24: Person each loft | AC24: Persone per appartamento: | AJ24: V (1~)
L25: =IF(AND(G21<200,Z7=1),1,IF(OR(AND(Z21>75,G21>230),AND(Z21>37,G21<=230)),0,IF(Z30=1,Y30,IF(Z31=1,Y31,IF(Z32=1,Y32,IF(Z33=1,Y33,IF(Z34=1,Y34,0))))))) -> ADL200 | N25: =BC69 -> 1040 | AB25: Up-down each person | AC25: Salite e discese per persona: | AQ25: scelta
S26: =IF(Z1=1,AB18,AC18) -> kg of CO2 saved: | Z26: =U26/100 -> 0 | AB26: Users at the same time: | AC26: Compresenza di utenti: | AQ26: tipo
A27: =IF(Z1=1,AB22,AC22) -> Statistic data: | D27: =IF($Z$1=1,AB13,AC13) -> total users: | F27: 100 | T27: =T24*0.72 -> 24.65622321 | V27: kg | AB27: Users per flats: | AC27: Distribuzione utenti per piani: | AP27: scelta1
D28: =IF(Z1=1,AB27,AC27) -> Users per flats: | AB28: Saving: | AC28: Risparmio: | AP28: scelta2
F29: =IF($Z$1=1,AJ17,AL17) -> High | G29: 0.25 | Q29: =IF(Z1=1,AB28,AC28) -> Saving: | Y29: confronto P | Z29: =(I13-G22)/G22 -> -0.144690625 | AB29: 1 person | AC29: 1 persona
F30: =IF($Z$1=1,AJ19,AL19) -> Medium/High | G30: 0.25 | Y30: ADL200 | Z30: =IF(L6=AQ9,1,0) -> 1 | AB30: Interest trade: | AC30: Tasso d'interesse:
F31: =IF($Z$1=1,AJ20,AL20) -> Medium/low | G31: 0.2 | T31: =T24*F8 -> 3.424475446 | V31: € | Y31: =IF(G21>=230,"ADL100","ADL120") -> ADL100 | Z31: =IF(OR(L6=AQ8,L6=AR8),1,0) -> 0 | AB31: 2 persons | AC31: 2 persone | AQ31: =IF(Z1=1,"Energy [kWh]","Energia [kWh]") -> Energy [kWh]
F32: =IF($Z$1=1,AJ21,AL21) -> Low | G32: 0.3 | Y32: AGL50 | Z32: =IF(L6=AQ10,1,0) -> 0 | AB32: 3 persons | AC32: 3 persone | AQ32: CO2 [kg]
B33: =IF((G29+G30+G31+G32)<>1,IF(Z1=1,M58,M57),L57) ->  | G33: =SUM(G29:G32) -> 1 | Y33: AVRy | Z33: =IF(OR(L6=AQ12,L6=AQ11),1,0) -> 0 | AB33: The estimated power and speed are only guidelines! Enter the real data | AC33: La potenza e velocità stimata sono solo indicative! Inserire dati reali
D34: =IF($Z$1=1,AB26,AC26) -> Users at the same time: | Y34: ADL130 | Z34: =IF(L6=AQ13,1,0) -> 0 | AB34: 4+ persons | AC34: 4+ persone | AK34: 200 | AL34: RF 200 100R | AN34: =IF(AK34=$AK$53,1,) -> 0 | AO34: =IF(AN34=1,AL34,"") -> 
G35: 0.4 | AB35: Nominal speed | AC35: Velocità nominale | AK35: 300 | AL35: RF 200 68R | AN35: =IF(AK35=$AK$53,1,) -> 0 | AO35: =IF(AN35=1,AL35,"") -> 
G36: 0.3 | Z36: 23 | AB36: Energy consumed in a year | AC36: Energia consumata in anno: | AK36: 400 | AL36: RF 400 68R | AN36: 0
G37: 0.2 | AB37: Used system: | AC37: Sistema attuale: | AK37: 1040 | AL37: RFPD 750 DT 100R | AM37: S8SY4 | AN37: 1 | AO37: RFPD 750 DT 100R | AP37: =IF(AN37=1,AM37,"") -> S8SY4
G38: 0.1 | I38: =IF(AND(Z15<300,G38<>0),M55,M56) ->  | AB38: With GEFRAN drive: | AC38: Con drive GEFRAN: | AK38: 1055 | AL38: RFPR 750 D 68R | AM38: S8SZ3 | AN38: 0 | AP38: =IF(AN38=1,AM38,"") -> 
B39: =IF((G35+G36+G37+G38)<>1,IF(Z1=1,M58,M57),L57) ->  | G39: =SUM(G35:G38) -> 1 | Z39: =S24/T31 -> 0 | AB39: Energy saving: | AC39: Energia risparmiata: | AK39: 2075 | AL39: RFPR 750 D 68R | AM39: S8SZ3 | AN39: 0
AB40: Advised GEFRAN drive: | AC40: Inverter GEFRAN consigliato: | AK40: 2110 | AL40: RFPR 1200 D 49R | AM40: S8SZ4 | AN40: 0
AB41: Initial cost: | AC41: Costo iniziale: | AK41: 3150 | AL41: RFPR 1900 D 28R | AM41: S8SZ5 | AN41: 0
AB42: Payback period: | AC42: Periodo di rimborso investimento: | AK42: 3185 | AL42: BRT4K0-15R4 | AM42: S8T00G | AN42: 0
U43: =IF(S44>J63,S44,J63) -> 3.4212375 | AB43: month | AC43: mese | AK43: 3220 | AL43: BRT4K0-15R4 | AM43: S8T00G | AN43: 0
S44: =Z66*Z16/F14*Z16/F15*100/1000 -> 1.93185 | V44: =IF(Z3=1,U43,IF(Z2=1,U43*1.34,U43*1.168)) -> 3.4212375 | AB44: months | AC44: mesi | AK44: 4300 | AL44: BRT4K0-11R6 | AM44: S8T00H | AN44: =IF(AK44=$AK$53,1,) -> 0
AB45: day | AC45: giorno | AK45: 4370 | AL45: BRT4K0-11R6 | AM45: S8T00H | AN45: 0
AB46: days | AC46: giorni | AK46: 4450 | AL46: BRT8K0-7R7 | AM46: S8T00I | AN46: 0
AB47: 1 year | AC47: 1 anno | AK47: 5550 | AL47: BRT8K0-7R7 | AM47: S8T00I | AN47: 0
AB48: 2 years | AC48: 2 anni | AK48: 5750 | AN48: 0
AB49: 3 years | AC49: 3 anni
AB50: 4 years | AC50: 4 anni
F51: giri | G51: =IF(F20="3000/1500", 1500,IF(F20="1500/750",750,F20)) -> 1500 | H51: =G51*2*PI()/60 -> 157.0796327 | AB51: 5 years | AC51: 5 anni
AB52: 6 years | AC52: 6 anni | AK52: RESISTENZA:
AB53: 7 years | AC53: 7 anni | AK53: =Foglio2!L76 -> 1040 | AL53: =Foglio2!M76 -> 7.5 | AM53: =Foglio2!N76 -> 38 | AN53: =Foglio2!O76 -> 750 | AO53: =Foglio2!P76 -> 100 | AP53: =IF(AP50=44,"IP44","IP20") -> IP20 | AQ53: =CONCATENATE(AO34,AO35,AO36,AO37,AO38,AO39,AO40,AO41,AO42,AO43,AO44,AO45,AO46,AO47,AO48) -> RFPD 750 DT 100R | AR53: =CONCATENATE(AP37,AP38,AP39,AP40,AP41,AP42,AP43,AP44,AP45,AP46,AP47,AP48) -> S8SY4
D54: =AZ13 -> 1500 | G54: =D54/30*PI() -> 157.0796327 | H54: =H51 -> 157.0796327 | AB54: 8+ years | AC54: 8+ anni
E55: potenza stimata: | M55: =IF(Z1=1,N55,O55) -> <Too much people | N55: <Too much people | O55: <Troppe persone | AB55: Money save achieved by all the elevators installed | AC55: Risparmio ottenibile da tutti gli ascensori installati:
E56: raggio equivalente: | G56: =$Z$16/(D54/60*2*PI()) -> 0.005729577951 | H56: =$Z$16/H51 -> 0.005729577951 | AB56: Supply | AC56: Alimentazione
E57: coppia | G57: =G56*($Z$15+$Z$19)*9.81/2 -> 19.60224695 | H57: =H56*($Z$15+$Z$19)*9.81/2 -> 19.60224695 | M57: la somma deve essere uguale a: 100% | AB57: Power Factor: | AC57: Fattore di potenza:
E58: potenza | G58: =G57*G54/1000 -> 3.07911375 | H58: kW | I58: pot real | M58: Sum must be equal to: 100% | AB58: Power too low! | AC58: potenza troppo bassa!
E59: potenza rend | G59: =G58/0.85 -> 3.622486765 | H59: kW | I59: =IF(Z3=1,G59,IF(Z2=1,G59*1.36,G59*1.34)) -> 3.622486765 | S59: =R24/#REF! ->  | AB59: Used system | AC59: Sistema attuale
G60: =TRUNC(G59,2) -> 3.62 | AB60: GEFRAN recommended drive | AC60: Drive GEFRAN consigliato
E61: coppia | G61: =((Z21*Z23*1000)/G54) -> 22.74005827 | I61: =G58*Z23 -> 2.749648579 | M61: =IF(Z1=1,AB36,AC36) -> Energy consumed in a year | S61: =S59*365 ->  | T61: =INT(S61/365) ->  | U61: =INT((S61-(T61*365))/30) ->  | V61: =INT(S61-(T61*365)-(U61*30)) -> 
E62: raggio | G62: =G61/Z15 -> 0.03609533059 | J62: pot vera
E63: velocità | G63: =(E54/60)*G62 -> 0 | J63: =H57*H54/(90/100)/1000 -> 3.4212375 | AD63: Scelta= | AF63: Inverter | AG63: I230 | AH63: I400 | AI63: I480 | AJ63: I230-400 | AK63: I480 | AL63: PI230 | AM63: PI400 | AN63: PI480 | AO63: PM230 | AP63: PM400 | AQ63: PM480
M64: =Z21*1000/(G21*SQRT(3)*0.6) -> 9.622504486 | AD64: =Z30 -> 1 | AE64: ADL200 | AF64: =Foglio2!AF33 -> 1040 | AG64: =Foglio2!AG33 -> 12 | AH64: =Foglio2!AH33 -> 11 | AI64: =Foglio2!AI33 -> 10 | AJ64: =Foglio2!AJ33 -> 9 | AK64: =Foglio2!AK33 -> 8.1 | AL64: =Foglio2!AL33 -> 3.6 | AM64: =Foglio2!AM33 -> 6.8 | AN64: =Foglio2!AN33 -> 6.7 | AO64: =Foglio2!AO33 -> 2 | AP64: =Foglio2!AP33 -> 4 | AQ64: =Foglio2!AQ33 -> 5 | AR64: =Foglio2!AR33 -> 300 | AS64: =Foglio2!AS33 -> 10 | AT64: =Foglio2!AT33 -> 159.2 | AU64: =Foglio2!AU33 -> 331.1 | AV64: =Foglio2!AV33 -> 158.7 | AW64: =Foglio2!AW33 -> 5.8 | AX64: =Foglio2!AX33 -> 6.27 | AY64: =Foglio2!AY33 -> 13.04 | AZ64: =Foglio2!AZ33 -> 6.25 | BA64: =Foglio2!BA33 -> 12.8 | BC64: =$AD64*AF64 -> 1040 | BD64: =$AD64*AG64 -> 12 | BE64: 11 | BF64: 10 | BG64: 9 | BH64: 8.1 | BI64: 3.6 | BJ64: 6.8 | BK64: 6.7 | BL64: 2 | BM64: 4 | BN64: 5 | BO64: 300 | BP64: 10 | BQ64: 159.2 | BR64: 331.1 | BS64: 158.7 | BT64: 5.8 | BU64: 6.27 | BV64: 13.04 | BW64: =$AD64*AZ64 -> 6.25 | BX64: 12.8
H65: peso da spostare | J65: =(Z15+Z19)/2 -> 348.75 | N65: pot scegl | O65: =IF(Z7=0,G59,N98) -> 3.622486765 | AD65: =Z31 -> 0 | AE65: ADL100 | AF65: =Foglio2!AF20 -> 1040 | AG65: =Foglio2!AG20 -> 12 | AH65: =Foglio2!AH20 -> 11 | AI65: =Foglio2!AI20 -> 10 | AJ65: =Foglio2!AJ20 -> 9 | AK65: =Foglio2!AK20 -> 8.1 | AL65: =Foglio2!AL20 -> 3.6 | AM65: =Foglio2!AM20 -> 6.8 | AN65: =Foglio2!AN20 -> 6.7 | AO65: =Foglio2!AO20 -> 2 | AP65: =Foglio2!AP20 -> 4 | AQ65: =Foglio2!AQ20 -> 5 | AR65: =Foglio2!AR20 -> 300 | AS65: =Foglio2!AS20 ->  | AT65: =Foglio2!AT20 -> 159.2 | AU65: =Foglio2!AU20 -> 331.1 | AV65: =Foglio2!AV20 -> 158.7 | AW65: =Foglio2!AW20 -> 5.8 | AX65: =Foglio2!AX20 -> 6.27 | AY65: =Foglio2!AY20 -> 13.04 | AZ65: =Foglio2!AZ20 -> 6.25 | BA65: =Foglio2!BA20 -> 12.8 | BC65: =$AD65*AF65 -> 0 | BD65: 0 | BE65: 0 | BF65: 0 | BG65: 0 | BH65: 0 | BI65: 0 | BJ65: 0 | BK65: 0 | BL65: 0 | BM65: 0 | BN65: 0 | BO65: 0 | BQ65: 0 | BR65: 0 | BS65: 0 | BT65: 0 | BU65: 0 | BV65: 0 | BW65: 0 | BX65: 0
E66: viaggi al giorno: | X66: massa totale | Z66: =Z15*(1.4+1.9)+Z19 -> 2146.5 | AD66: =Z32 -> 0 | AE66: AGL50 | AF66: =Foglio2!AF43 -> 2040 | AH66: =Foglio2!AH43 -> 9 | AI66: =Foglio2!AI43 -> 11 | AJ66: =Foglio2!AJ43 -> 10.1 | AM66: =Foglio2!AM43 -> 7 | AN66: =Foglio2!AN43 -> 4 | AP66: =Foglio2!AP43 -> 17.2 | AR66: =Foglio2!AR43 -> 500 | AS66: =Foglio2!AS43 -> 8 | AT66: =Foglio2!AT43 -> 130 | AU66: =Foglio2!AU43 -> 221 | AV66: =Foglio2!AV43 -> 176.5 | AW66: =Foglio2!AW43 -> 3 | AX66: =Foglio2!AX43 -> 5.13 | AY66: =Foglio2!AY43 -> 8.71 | AZ66: =Foglio2!AZ43 -> 6.96 | BA66: =Foglio2!BA43 -> 6.6 | BC66: =$AD66*AF66 -> 0 | BD66: 0 | BE66: 0 | BF66: 0 | BG66: 0 | BH66: 0 | BI66: 0 | BJ66: 0 | BK66: 0 | BL66: 0 | BM66: 0 | BN66: 0 | BO66: 0 | BP66: 0 | BQ66: 0 | BR66: 0 | BS66: 0 | BT66: 0 | BU66: 0 | BV66: 0 | BW66: 0 | BX66: 0
AD67: =Z33 -> 0 | AE67: AVRy | AF67: =Foglio2!AF38 -> 1425 | AH67: =Foglio2!AH38 -> 13 | AI67: =Foglio2!AI38 -> 16 | AJ67: =Foglio2!AJ38 -> 18 | AK67: =Foglio2!AK38 -> 16 | AL67: =Foglio2!AL38 -> 9.7 | AM67: =Foglio2!AM38 -> 11.7 | AN67: =Foglio2!AN38 -> 14 | AO67: =Foglio2!AO38 -> 25 | AP67: =Foglio2!AP38 -> 520 | AR67: =Foglio2!AR38 -> 300 | AS67: =Foglio2!AS38 -> 8 | AT67: =Foglio2!AT38 -> 350 | AU67: =Foglio2!AU38 -> 670 | AV67: =Foglio2!AV38 -> 150.3 | AW67: =Foglio2!AW38 -> 28.7 | AX67: =Foglio2!AX38 -> 13.8 | AY67: =Foglio2!AY38 -> 26.4 | AZ67: =Foglio2!AZ38 -> 5.9 | BA67: =Foglio2!BA38 -> 63.27 | BC67: =$AD67*AF67 -> 0 | BD67: 0 | BE67: 0 | BF67: 0 | BG67: 0 | BH67: 0 | BI67: 0 | BJ67: 0 | BK67: =$AD67*AN67 -> 0 | BL67: 0 | BM67: 0 | BN67: 0 | BO67: 0 | BP67: 0 | BQ67: 0 | BR67: 0 | BS67: 0 | BT67: 0 | BU67: 0 | BV67: 0 | BW67: 0 | BX67: 0
E68: =F12/75 -> 8.4 | F68: =#REF!*F27*G31 ->  | J68: tmax | K68: =Z14/Z16 -> 44.44444444 | L68: s | AD68: =Z34 -> 0 | AE68: ADL130 | AF68: =Foglio2!AF87 -> 3040 | AG68: =Foglio2!AG87 -> 4950 | AH68: =Foglio2!AH87 -> 36 | AI68: =Foglio2!AI87 -> 15 | AJ68: =Foglio2!AJ87 -> 4 | AT68: =Foglio2!AK87 -> 227.8 | AU68: =Foglio2!AL87 -> 307 | AV68: =Foglio2!AM87 -> 178 | AW68: =Foglio2!AN87 -> 10.5 | AX68: =Foglio2!AO87 -> 8.97 | AY68: =Foglio2!AP87 -> 15.24 | AZ68: =Foglio2!AQ87 -> 7.01 | BA68: =Foglio2!AR87 -> 23.15 | BC68: =$AD68*AF68 -> 0 | BD68: 0 | BE68: 0 | BF68: 0 | BG68: 0 | BH68: 0 | BI68: 0 | BJ68: 0 | BK68: =$AD68*AN68 -> 0 | BL68: 0 | BM68: 0 | BN68: 0 | BO68: 0 | BP68: 0 | BQ68: 0 | BR68: 0 | BS68: 0 | BT68: 0 | BU68: 0 | BV68: 0 | BW68: 0 | BX68: 0
F69: =F68*G33 ->  | J69: tmed | K69: peso | L69: KW | M69: Kw/h | N69: Kwh/giorno | BC69: =SUM(BC64:BC68) -> 1040 | BD69: =SUM(BD64:BD68) -> 12 | BE69: 11 | BF69: 10 | BG69: 9 | BH69: 8.1 | BI69: 3.6 | BJ69: 6.8 | BK69: 6.7 | BL69: 2 | BM69: 4 | BN69: 5 | BO69: 300 | BQ69: 159.2 | BR69: 331.1 | BS69: 158.7 | BT69: 5.8 | BU69: 6.27 | BV69: 13.04 | BW69: 6.25 | BX69: 12.8
E70: partenze | F70: =200*(G35) -> 80 | H70: 1 per | I70: =F69*G35 ->  | J70: =K$68/(2*3600) -> 0.006172839506 | K70: =$J$65-70 -> 278.75 | L70: =$Z$21*(K70/($Z$15/2)) -> 3.53968254 | M70: =L70*J70 -> 0.02184989222 | N70: =M70*I70 ->  | Q70: =IF(Z$1=1,R70,S70) -> 1 person | R70: 1 person | S70: 1 persona | Z70: =J65*Z16^2/G54^2 -> 0.01144878715
F71: =(F27-F70)*G36 -> 6 | H71: 2 per | I71: =F$69*G36/1.75 ->  | J71: =K$68/(2*3600) -> 0.006172839506 | K71: =$J$65-140 -> 208.75 | L71: =$Z$21*(K71/($Z$15/2)) -> 2.650793651 | M71: =L71*J71 -> 0.01636292377 | N71: =M71*I71 ->  | Q71: =IF(Z$1=1,R71,S71) -> 2 persons | R71: 2 persons | S71: 2 persone | Y71: Jtot | Z71: =Z70+BM98 -> 0.02944878715 | AF71: motori possibili
F72: =(F27-F70-F71)*G37 -> 2.8 | H72: 3 per | I72: =F$69*G37/2.65 ->  | J72: =K$68/(2*3600) -> 0.006172839506 | K72: =ABS($J$65-210) -> 138.75 | L72: =$Z$21*(K72/($Z$15/2)) -> 1.761904762 | M72: =L72*J72 -> 0.01087595532 | N72: =M72*I72 ->  | Q72: =IF(Z$1=1,R72,S72) -> 3 persons | R72: 3 persons | S72: 3 persone | AE72: Pn | AG72: Vel | AI72: Eff | AK72: cosfi | AM72: In | AO72: Cn | AQ72: J | AR72: Rr | AT72: Rs | AV72: X | AX72: omega
F73: =F27-F71-F72-F70 -> 11.2 | H73: 4+ per | I73: =F$69*G38/3.5 ->  | J73: =K$68/(2*3600) -> 0.006172839506 | K73: =IF(Z15>350,ABS($J$65-3/4*Z15),J65) -> 123.75 | L73: =$Z$21*(K73/($Z$15/2)) -> 1.571428571 | M73: =L73*J73 -> 0.009700176367 | N73: =M73*I73 ->  | Q73: =IF(Z$1=1,R73,S73) -> 4+ persons | R73: 4+ persons | S73: 4+ persone | Y73: Energ | Z73: =0.5*Z71*G54^2 -> 363.309849 | AA73: =IF($Z$7=0,1,0) -> 1 | AB73: =IF($Z$9=1,1,0) -> 1 | AC73: =IF(F20=3000,1,0) -> 0 | AD73: =AA73*AB73*AC73 -> 0 | AF73: =Foglio3!AD21 -> 4 | AH73: =Foglio3!AE21 -> 2860 | AJ73: =Foglio3!AF21 -> 87.7 | AL73: =Foglio3!AG21 -> 0.93 | AN73: =Foglio3!AH21 -> 7.1 | AP73: =Foglio3!AI21 -> 13.4 | AQ73: =Foglio3!AJ21 -> 0.012 | AS73: =Foglio3!AK21 -> 5.321001082 | AU73: =Foglio3!AL21 -> 3.400334389 | AW73: =Foglio3!AM21 -> 14.99022235 | AY73: =3000*PI()/30 -> 314.1592654 | BA73: =$AD73*AF73 -> 0 | BC73: =$AD73*AH73 -> 0 | BE73: =$AD73*AJ73 -> 0 | BG73: =$AD73*AL73 -> 0 | BI73: =$AD73*AN73 -> 0 | BK73: =$AD73*AP73 -> 0 | BM73: =$AD73*AQ73 -> 0 | BN73: =$AD73*AS73 -> 0 | BP73: =$AD73*AU73 -> 0 | BR73: =$AD73*AW73 -> 0 | BT73: =$AD73*AY73 -> 0 | BU73: =$AD73*AX73 -> 0
H74: 0 per | I74: =SUM(I70:I73)/2 ->  | J74: =K$68/(2*3600) -> 0.006172839506 | K74: =$J$65 -> 348.75 | L74: =$Z$21*(K74/($Z$15/2)) -> 4.428571429 | M74: =L74*J74 -> 0.02733686067 | N74: =M74*I74 ->  | AA74: =IF($Z$7=0,1,0) -> 1 | AB74: =IF($Z$9=1,1,0) -> 1 | AC74: =IF($F$20=1500,1,0) -> 1 | AD74: =AA74*AB74*AC74 -> 1 | AF74: =Foglio3!AD39 -> 4 | AH74: =Foglio3!AE39 -> 1455 | AJ74: =Foglio3!AF39 -> 89.3 | AL74: =Foglio3!AG39 -> 0.76 | AN74: =Foglio3!AH39 -> 8.6 | AP74: =Foglio3!AI39 -> 26.3 | AQ74: =Foglio3!AJ39 -> 0.018 | AS74: =Foglio3!AK39 -> 3.485674799 | AU74: =Foglio3!AL39 -> 2.550493756 | AW74: =Foglio3!AM39 -> 11.618916 | AY74: =1500*PI()/30 -> 157.0796327 | BA74: =$AD74*AF74 -> 4 | BC74: =$AD74*AH74 -> 1455 | BE74: =$AD74*AJ74 -> 89.3 | BG74: =$AD74*AL74 -> 0.76 | BI74: =$AD74*AN74 -> 8.6 | BK74: =$AD74*AP74 -> 26.3 | BM74: =$AD74*AQ74 -> 0.018 | BN74: =$AD74*AS74 -> 3.485674799 | BP74: =$AD74*AU74 -> 2.550493756 | BR74: =$AD74*AW74 -> 11.618916 | BT74: =$AD74*AY74 -> 157.0796327 | BU74: =$AD74*AX74 -> 0
N75: =SUM(N70:N74) ->  | O75: =N75*365 ->  | AA75: 1 | AB75: =IF($Z$9=1,1,0) -> 1 | AC75: =IF($F$20=1000,1,0) -> 0 | AD75: 0 | AF75: =Foglio3!AD61 -> 4 | AH75: =Foglio3!AE61 -> 960 | AJ75: =Foglio3!AF61 -> 85.5 | AL75: =Foglio3!AG61 -> 0.78 | AN75: =Foglio3!AH61 -> 8.7 | AP75: =Foglio3!AI61 -> 40 | AQ75: =Foglio3!AJ61 -> 0.038 | AS75: =Foglio3!AK61 -> 4.583662361 | AU75: =Foglio3!AL61 -> 6.249444788 | AW75: =Foglio3!AM61 -> 14.21333361 | AY75: =1000*PI()/30 -> 104.7197551 | BA75: =$AD75*AF75 -> 0 | BC75: =$AD75*AH75 -> 0 | BE75: =$AD75*AJ75 -> 0 | BG75: =$AD75*AL75 -> 0 | BI75: =$AD75*AN75 -> 0 | BK75: =$AD75*AP75 -> 0 | BM75: =$AD75*AQ75 -> 0 | BN75: =$AD75*AS75 -> 0 | BP75: =$AD75*AU75 -> 0 | BR75: =$AD75*AW75 -> 0 | BT75: =$AD75*AY75 -> 0 | BU75: =$AD75*AX75 -> 0
I76: =SUM(I70:I74) ->  | J76: =J73*I76*365 ->  | AA76: 1 | AB76: =IF($Z$9=1,1,0) -> 1 | AC76: =IF($F$20=750,1,0) -> 0 | AD76: 0 | AF76: =Foglio3!AD83 -> 4 | AH76: =Foglio3!AE83 -> 715 | AJ76: =Foglio3!AF83 -> 84.1 | AL76: =Foglio3!AG83 -> 0.69 | AN76: =Foglio3!AH83 -> 10 | AP76: =Foglio3!AI83 -> 54 | AQ76: =Foglio3!AJ83 -> 0.072 | AS76: =Foglio3!AK83 -> 5.28158626 | AU76: =Foglio3!AL83 -> 6.707101651 | AW76: =Foglio3!AM83 -> 16.87140844 | AY76: =750*PI()/30 -> 78.53981634 | BA76: =$AD76*AF76 -> 0 | BC76: =$AD76*AH76 -> 0 | BE76: =$AD76*AJ76 -> 0 | BG76: =$AD76*AL76 -> 0 | BI76: =$AD76*AN76 -> 0 | BK76: =$AD76*AP76 -> 0 | BM76: =$AD76*AQ76 -> 0 | BN76: =$AD76*AS76 -> 0 | BP76: =$AD76*AU76 -> 0 | BR76: =$AD76*AW76 -> 0 | BT76: =$AD76*AY76 -> 0 | BU76: =$AD76*AX76 -> 0
E77: cavo | F77: =1.5/560*Z15 -> 1.6875 | G77: Kg/m
J78: =SUM(I70*J70,I73*J73,I71*J71,I72*J72) ->  | S78: AVRy - 1 - 1425 - KXL - 4 | Y78: J | AA78: 1 | AB78: =NOT(IF($Z$9=1,1,0)) -> FALSE | AC78: =IF(F20=3000,1,0) -> 0 | AD78: 0 | AF78: =Foglio3!AD94 -> 0 | AH78: =Foglio3!AE94 -> 0 | AJ78: =Foglio3!AF94 -> 0 | AL78: =Foglio3!AG94 -> 0 | AN78: =Foglio3!AH94 -> 0 | AP78: =Foglio3!AI94 -> 0 | AQ78: =Foglio3!AJ94 -> 0 | AS78: =Foglio3!AK94 -> 0 | AU78: =Foglio3!AL94 -> 0 | AW78: =Foglio3!AM94 -> 0 | AY78: =3000*PI()/30 -> 314.1592654 | BA78: =$AD78*AF78 -> 0 | BC78: =$AD78*AH78 -> 0 | BE78: =$AD78*AJ78 -> 0 | BG78: =$AD78*AL78 -> 0 | BI78: =$AD78*AN78 -> 0 | BK78: =$AD78*AP78 -> 0 | BM78: =$AD78*AQ78 -> 0 | BN78: =$AD78*AS78 -> 0 | BP78: =$AD78*AU78 -> 0 | BR78: =$AD78*AW78 -> 0 | BT78: =$AD78*AY78 -> 0 | BU78: =$AD78*AX78 -> 0
S79: AVRy - 1 - 2545 - KXL - 4 | W79: 1,5 kW | Y79: 0.0164 | Z79: 0.5226822835 | AA79: 1 | AB79: =NOT(IF($Z$9=1,1,0)) -> FALSE | AC79: =IF(F20=1500,1,0) -> 1 | AD79: 0 | AF79: =Foglio3!AD108 -> 0 | AH79: =Foglio3!AE108 -> 0 | AJ79: =Foglio3!AF108 -> 0 | AL79: =Foglio3!AG108 -> 0 | AN79: =Foglio3!AH108 -> 0 | AP79: =Foglio3!AI108 -> 0 | AQ79: =Foglio3!AJ108 -> 0 | AS79: =Foglio3!AK108 -> 0 | AU79: =Foglio3!AL108 -> 0 | AW79: =Foglio3!AM108 -> 0 | AY79: =1500*PI()/30 -> 157.0796327 | BA79: =$AD79*AF79 -> 0 | BC79: =$AD79*AH79 -> 0 | BE79: =$AD79*AJ79 -> 0 | BG79: =$AD79*AL79 -> 0 | BI79: =$AD79*AN79 -> 0 | BK79: =$AD79*AP79 -> 0 | BM79: =$AD79*AQ79 -> 0 | BN79: =$AD79*AS79 -> 0 | BP79: =$AD79*AU79 -> 0 | BR79: =$AD79*AW79 -> 0 | BT79: =$AD79*AY79 -> 0 | BU79: =$AD79*AX79 -> 0
S80: AVRy - 1 - 3360 - KXL - 4 | AA80: 1 | AB80: =NOT(IF($Z$9=1,1,0)) -> FALSE | AC80: =IF(F20=1000,1,0) -> 0 | AD80: 0 | AF80: =Foglio3!AD116 -> 0 | AH80: =Foglio3!AE116 -> 0 | AJ80: =Foglio3!AF116 -> 0 | AL80: =Foglio3!AG116 -> 0 | AN80: =Foglio3!AH116 -> 0 | AP80: =Foglio3!AI116 -> 0 | AQ80: =Foglio3!AJ116 -> 0 | AS80: =Foglio3!AK116 -> 0 | AU80: =Foglio3!AL116 -> 0 | AW80: =Foglio3!AM116 -> 0 | AY80: =1000*PI()/30 -> 104.7197551 | BA80: =$AD80*AF80 -> 0 | BC80: =$AD80*AH80 -> 0 | BE80: =$AD80*AJ80 -> 0 | BG80: =$AD80*AL80 -> 0 | BI80: =$AD80*AN80 -> 0 | BK80: =$AD80*AP80 -> 0 | BM80: =$AD80*AQ80 -> 0 | BN80: =$AD80*AS80 -> 0 | BP80: =$AD80*AU80 -> 0 | BR80: =$AD80*AW80 -> 0 | BT80: =$AD80*AY80 -> 0 | BU80: =$AD80*AX80 -> 0
D81: Asincrono scelta
E82: =Foglio2!L35 -> 11.7 | F82: =Foglio2!M35 -> 0 | G82: =Foglio2!N35 -> 7.5 | H82: =Foglio2!O35 -> 11 | I82: =Foglio2!P35 -> 25 | J82: 3~ | K82: =IF(I82=1,"1~",0) -> 0 | AA82: 1 | AB82: =IF($Z$9=1,1,0) -> 1 | AC82: =IF($F$20="3000/1500",1,0) -> 0 | AD82: 0 | AE82: =Foglio3!AD144 -> 4 | AF82: =Foglio3!AE144 -> 2.6 | AG82: =Foglio3!AF144 -> 2865 | AH82: =Foglio3!AG144 -> 1430 | AI82: =Foglio3!AH144 -> 82 | AJ82: =Foglio3!AI144 -> 77 | AK82: =Foglio3!AJ144 -> 0.94 | AL82: =Foglio3!AK144 -> 0.76 | AM82: =Foglio3!AL144 -> 7.6 | AN82: =Foglio3!AM144 -> 6.5 | AO82: =Foglio3!AN144 -> 13.3 | AP82: =Foglio3!AO144 -> 17.4 | AQ82: =Foglio3!AP144 -> 0.012 | AR82: =Foglio3!AQ144 -> 5.169544016 | AS82: =Foglio3!AR144 -> 8.195564886 | AT82: =Foglio3!AS144 -> 18.16392617 | AU82: =Foglio3!AT144 -> 25.01563805 | AV82: =Foglio3!AU144 -> 9.188158569 | AW82: =Foglio3!AV144 -> 8.757294169 | AX82: =3000*PI()/30 -> 314.1592654 | AY82: =1500*PI()/30 -> 157.0796327 | BA82: =$AD82*AE82 -> 0 | BB82: 0 | BC82: =$AD82*AG82 -> 0 | BD82: 0 | BE82: 0 | BF82: 0 | BG82: 0 | BH82: 0 | BI82: 0 | BJ82: 0 | BK82: 0 | BL82: 0 | BM82: =$AD82*AQ82 -> 0 | BN82: 0 | BO82: 0 | BP82: 0 | BQ82: 0 | BR82: 0 | BS82: 0 | BT82: 0 | BU82: 0
E83: =Foglio2!L36 -> 20.8 | F83: =Foglio2!M36 -> 0 | G83: =Foglio2!N36 -> 14 | H83: =Foglio2!O36 -> 17 | I83: =Foglio2!P36 -> 45 | J83: 3~ | K83: =IF(I83=1,"1~",0) -> 0 | AA83: 1 | AB83: =IF($Z$9=1,1,0) -> 1 | AC83: =IF($F$20="1500/750",1,0) -> 0 | AD83: 0 | AE83: =Foglio3!AD167 -> 3.8 | AF83: =Foglio3!AE167 -> 1.9 | AG83: =Foglio3!AF167 -> 1450 | AH83: =Foglio3!AG167 -> 730 | AI83: =Foglio3!AH167 -> 82 | AJ83: =Foglio3!AI167 -> 70 | AK83: =Foglio3!AJ167 -> 0.86 | AL83: =Foglio3!AK167 -> 0.52 | AM83: =Foglio3!AL167 -> 7.7 | AN83: =Foglio3!AM167 -> 7.6 | AO83: =Foglio3!AN167 -> 25 | AP83: =Foglio3!AO167 -> 24.9 | AQ83: =Foglio3!AP167 -> 0.038 | AR83: =Foglio3!AQ167 -> 4.074366543 | AS83: =Foglio3!AR167 -> 4.908875353 | AT83: =Foglio3!AS167 -> 18.8606522 | AU83: =Foglio3!AT167 -> 26.36488991 | AV83: =Foglio3!AU167 -> 10.24196597 | AW83: =Foglio3!AV167 -> 7.724522261 | AX83: =1500*PI()/30 -> 157.0796327 | AY83: =750*PI()/30 -> 78.53981634 | BA83: 0 | BB83: 0 | BC83: 0 | BD83: 0 | BE83: 0 | BF83: 0 | BG83: 0 | BH83: 0 | BI83: 0 | BJ83: 0 | BK83: 0 | BL83: 0 | BM83: 0 | BN83: 0 | BO83: 0 | BP83: 0 | BQ83: 0 | BR83: 0 | BS83: 0 | BT83: 0 | BU83: 0
A84: peso persona | D84: Sincrono scelta | BA84: 0 | BB84: 0 | BC84: =$AD84*AG84 -> 0 | BD84: 0 | BE84: 0 | BF84: 0 | BG84: 0 | BH84: 0 | BI84: 0 | BJ84: 0 | BK84: 0 | BL84: 0 | BM84: 0 | BN84: 0 | BO84: 0 | BP84: 0 | BQ84: 0 | BR84: 0 | BS84: 0 | BT84: =$AD84*AX83 -> 0 | BU84: =$AD84*AY83 -> 0
A85: 75 | E85: =Foglio2!L65 -> 1040 | F85: =Foglio2!M65 -> 7.5 | G85: =Foglio2!N65 -> 38 | H85: =Foglio2!O65 -> 750
E86: =Foglio2!L66 -> 0 | F86: =Foglio2!M66 -> 0 | G86: =Foglio2!N66 -> 0 | H86: =Foglio2!O66 -> 0
AF88: =MIN(AF90:AF97) -> 5
AA90: =NOT(IF($Z$7=0,1,0)) -> FALSE | AB90: =IF($G$21>410,0,1) -> 1 | AC90: =IF(AND($F$20>130,$F$20<160),1,0) -> 0 | AD90: =AA90*AB90*AC90 -> 0 | AF90: =Foglio3!AD179 -> 5 | AH90: =Foglio3!AE179 -> 152 | AJ90: =Foglio3!AF179 -> 82.2 | AL90: =Foglio3!AG179 -> 0.87 | AN90: =Foglio3!AH179 -> 21 | AP90: =Foglio3!AI179 -> 0 | AQ90: =Foglio3!AJ179 -> 1.5 | BA90: =$AD90*AF90 -> 0 | BC90: =$AD90*AH90 -> 0 | BE90: =$AD90*AJ90 -> 0 | BG90: =$AD90*AL90 -> 0 | BI90: =$AD90*AN90 -> 0 | BK90: =$AD90*AP90 -> 0 | BM90: =$AD90*AQ90 -> 0 | BN90: =$AD90*AS90 -> 0 | BP90: =$AD90*AU90 -> 0 | BR90: =$AD90*AW90 -> 0
I91: energia in accelerazione | AA91: FALSE | AB91: =IF($G$21>410,0,1) -> 1 | AC91: =IF(AND($F$20>190,$F$20<210),1,0) -> 0 | AD91: 0 | AF91: =Foglio3!AD185 -> 16 | AH91: =Foglio3!AE185 -> 208 | AJ91: =Foglio3!AF185 -> 89.1 | AL91: =Foglio3!AG185 -> 0.93 | AN91: =Foglio3!AH185 -> 31 | AP91: =Foglio3!AI185 -> 899 | AQ91: =Foglio3!AJ185 -> 2.2 | BA91: 0 | BC91: 0 | BE91: 0 | BG91: 0 | BI91: 0 | BK91: 0 | BM91: 0 | BN91: 0 | BP91: 0 | BR91: 0
I92: massa | J92: J | K92: domega | L92: C | M92: Ctot | N92: Pmax | P92: energia | R92: Ctotf | S92: Pmaxf | U92: energia | AA92: FALSE | AB92: =IF($G$21>410,0,1) -> 1 | AC92: =IF(AND($F$20>240,$F$20<260),1,0) -> 0 | AD92: 0 | AF92: =Foglio3!AD191 -> 20 | AH92: =Foglio3!AE191 -> 264 | AJ92: =Foglio3!AF191 -> 90.1 | AL92: =Foglio3!AG191 -> 0.9 | AN92: =Foglio3!AH191 -> 39 | AP92: =Foglio3!AI191 -> 869 | AQ92: =Foglio3!AJ191 -> 2.2 | BA92: 0 | BC92: 0 | BE92: 0 | BG92: 0 | BI92: 0 | BK92: 0 | BM92: 0 | BN92: 0 | BP92: 0 | BR92: 0
H93: vuoto | I93: =$Z$15*(0.4+1.9)+$Z$19 -> 1516.5 | J93: =I93*$Z$16^2/$H$51^2+$BM$98*2 -> 0.0857837583 | K93: =$H$51/$F$14 -> 157.0796327 | L93: =J93*K93 -> 13.47488124 | M93: =$H$57+L93 -> 33.07712819 | N93: =M93*$H$54/(1000*$F$15/100*$F$23/100) -> 6.464779328 | P93: =N93*$F$14/(2*3600) -> 0.0008978860178 | R93: =$H$57-L93 -> 6.127365703 | S93: =R93*$H$54/1000*$F$15/$F$23 -> 0.9700290241 | U93: =S93*$F$14/(2*3600) -> 0.0001347262533 | AA93: FALSE | AB93: =IF($G$21>410,0,1) -> 1 | AC93: =IF(AND($F$20>290,$F$20<310),1,0) -> 0 | AD93: 0 | AF93: =Foglio3!AD196 -> 25 | AH93: =Foglio3!AE196 -> 298 | AJ93: =Foglio3!AF196 -> 91.4 | AL93: =Foglio3!AG196 -> 0.93 | AN93: =Foglio3!AH196 -> 45 | AP93: =Foglio3!AI196 -> 940 | AQ93: =Foglio3!AJ196 -> 2.2 | BA93: 0 | BC93: 0 | BE93: 0 | BG93: 0 | BI93: 0 | BK93: 0 | BM93: 0 | BN93: 0 | BP93: 0 | BR93: 0
D94: spostamento in accelerazione | G94: =F14*Z16/2 -> 0.45 | I94: =$Z$15*(0.4+1.9)+$Z$19+$A$85 -> 1591.5 | J94: =I94*$Z$16^2/$H$51^2+$BM$98*2 -> 0.08824586306 | K94: 157.0796327 | L94: 13.86162776 | M94: 33.4638747 | N94: 6.540367234 | P94: 0.0009083843381 | R94: 5.740619191 | S94: 0.9088028203 | U94: =S94*$F$14/(2*3600) -> 0.0001262226139 | AA94: FALSE | AB94: =NOT(IF($G$21>410,0,1)) -> FALSE | AC94: =IF(AND($F$20>130,$F$20<160),1,0) -> 0 | AD94: 0 | AF94: =Foglio3!AD204 -> 13 | AH94: =Foglio3!AE204 -> 175 | AJ94: =Foglio3!AF204 -> 87.6 | AL94: =Foglio3!AG204 -> 0.92 | AN94: =Foglio3!AH204 -> 22 | AP94: =Foglio3!AI204 -> 830 | AQ94: =Foglio3!AJ204 -> 2.2 | BA94: 0 | BC94: 0 | BE94: 0 | BG94: 0 | BI94: 0 | BK94: 0 | BM94: 0 | BN94: 0 | BP94: 0 | BR94: 0
I95: =$Z$15*(0.4+1.9)+$Z$19+$A$85*2 -> 1666.5 | J95: =I95*$Z$16^2/$H$51^2+$BM$98*2 -> 0.09070796782 | K95: 157.0796327 | L95: 14.24837427 | M95: 33.85062121 | N95: 6.61595514 | P95: 0.0009188826583 | R95: 5.353872679 | S95: 0.8475766165 | U95: =S95*$F$14/(2*3600) -> 0.0001177189745 | AA95: FALSE | AB95: =NOT(IF($G$21>410,0,1)) -> FALSE | AC95: =IF(AND($F$20>190,$F$20<210),1,0) -> 0 | AD95: 0 | AF95: =Foglio3!AD211 -> 19 | AH95: =Foglio3!AE211 -> 239 | AJ95: =Foglio3!AF211 -> 89.6 | AL95: =Foglio3!AG211 -> 0.92 | AN95: =Foglio3!AH211 -> 31 | AP95: =Foglio3!AI211 -> 912 | AQ95: =Foglio3!AJ211 -> 2.2 | BA95: 0 | BC95: 0 | BE95: 0 | BG95: 0 | BI95: 0 | BK95: 0 | BM95: 0 | BN95: 0 | BP95: 0 | BR95: 0
I96: =$Z$15*(0.4+1.9)+$Z$19+$A$85*3 -> 1741.5 | J96: =I96*$Z$16^2/$H$51^2+$BM$98*2 -> 0.09317007259 | K96: 157.0796327 | L96: 14.63512078 | M96: 34.23736772 | N96: 6.691543046 | P96: 0.0009293809786 | R96: 4.967126168 | S96: 0.7863504127 | U96: =S96*$F$14/(2*3600) -> 0.0001092153351
I97: =$Z$15*(1.15+1.9)+$Z$19 -> 1989 | J97: =I97*$Z$16^2/$H$51^2+$BM$98*2 -> 0.1012950183 | K97: 157.0796327 | L97: 15.91138427 | M97: 35.51363121 | N97: 6.940983136 | P97: 0.0009640254355 | R97: 3.690862679 | S97: 0.5843039401 | U97: =S97*$F$14/(2*3600) -> 8.115332501e-05 | AA97: FALSE | AB97: =NOT(IF($G$21>410,0,1)) -> FALSE | AC97: =IF(AND($F$20>240,$F$20<310),1,0) -> 0 | AD97: =AA97*AB97*AC97 -> 0 | AF97: =Foglio3!AD217 -> 23 | AH97: =Foglio3!AE217 -> 304 | AJ97: =Foglio3!AF217 -> 90.8 | AL97: =Foglio3!AG217 -> 0.89 | AN97: =Foglio3!AH217 -> 38 | AP97: =Foglio3!AI217 -> 857 | AQ97: =Foglio3!AJ217 -> 2.2 | BA97: =$AD97*AF97 -> 0 | BC97: =$AD97*AH97 -> 0 | BE97: =$AD97*AJ97 -> 0 | BG97: =$AD97*AL97 -> 0 | BI97: =$AD97*AN97 -> 0 | BK97: =$AD97*AP97 -> 0 | BM97: =$AD97*AQ97 -> 0 | BN97: =$AD97*AS97 -> 0 | BP97: =$AD97*AU97 -> 0 | BR97: =$AD97*AW97 -> 0
A98: pesi trasportato | H98: max | I98: =$Z$15*(1.4+1.9)+$Z$19 -> 2146.5 | J98: =I98*$Z$16^2/$H$51^2+2+(Z16/F14)*0 -> 2.070465438 | K98: 157.0796327 | L98: 325.2279505 | M98: 344.8301975 | N98: 67.39554654 | P98: 0.009360492575 | R98: -305.6257036 | S98: -48.38389242 | BA98: =SUM(BA73:BA97) -> 4 | BB98: =SUM(BB73:BB97) -> 0 | BC98: =SUM(BC73:BC97) -> 1455 | BD98: =SUM(BD73:BD97) -> 0 | BE98: =SUM(BE73:BE97) -> 89.3 | BF98: 0 | BG98: =SUM(BG73:BG97) -> 0.76 | BH98: 0 | BI98: =SUM(BI73:BI97) -> 8.6 | BJ98: 0 | BK98: =SUM(BK73:BK97) -> 26.3 | BL98: 0 | BM98: 0.018 | BN98: =SUM(BN73:BN97) -> 3.485674799 | BO98: 0 | BP98: =SUM(BP73:BP97) -> 2.550493756 | BQ98: 0 | BR98: =SUM(BR73:BR97) -> 11.618916 | BS98: 0 | BT98: =SUM(BT73:BT97) -> 157.0796327 | BU98: =SUM(BU73:BU97) -> 0
A99: =ABS($Z$15/2-$A$85) -> 240 | B99: 1 | D99: numero di persone | F99: =Z15/A85 -> 8.4 | N99: =(IF($Z$3=1,N98,IF($Z$2=1,N98*1.36,N98*1.34))) -> 67.39554654 | Z99: velocità | AB99: pref.
A100: =ABS($Z$15/2-$A$85*2) -> 165 | B100: 2 | D100: distribuzione persone | F100: persone | G100: viaggi | H100: Energia sicura | J100: Energia avuoto | P100: Energia start | Q100: A vuoto | U100: Energia Ferm | V100: Avuoto | Z100: rad/s | AA100: s | AB100: C1 | AC100: s1 | AD100: C2 | AE100: Carico | AF100: diff1 | AG100: diff2 | AJ100: t1 | AK100: t2 | AL100: E1 | AM100: E2 | AO100: I1 | AP100: I2 | AQ100: perdite joule1 | AR100: joule2 | AS100: tot
A101: =ABS($Z$15/2-$A$85*3) -> 90 | B101: 3 | D101: alti | E101: =$F$27*G29 -> 25 | F101: 1 | G101: =E102*G35 -> 40 | H101: =$J$63*A99/($Z$15/2)*$E$104/3600*G101 -> 1.097370476 | J101: =G101*$J$63*$E$104/3600 -> 1.44029875 | M101: =0.72*T21 -> 1264.924645 | P101: =G101*P94 -> 0.03633537352 | Q101: =$P$93*G101 -> 0.03591544071 | U101: =U94*G101 -> 0.005048904557 | V101: =$U$93*G101 -> 0.005389050134 | Z101: =(1-AA101)*$BT$98 -> 0 | AA101: 1 | AB101: =3*G$21^2/($BT$98*$BR$98*($BN$98/($BR$98*AA101)+2*$BP$98/$BR$98+AA101*$BR$98/$BN$98)) -> 64.58175284 | AC101: 1 | AD101: =3*G$21^2/($BU$98*$BS$98*($BO$98/($BS$98*AC101)+2*$BQ$98/$BS$98+AC101*$BS$98/$BO$98)) ->  | AE101: =$G$57 -> 19.60224695 | AF101: =AB101-AE101 -> 44.9795059 | AG101: =AD101-AE101 ->  | AH101: =IF(AF101>0,1,0) -> 1 | AI101: =IF(AG101>0,1,0) ->  | AJ101: =(Z102-Z101)*$Z$71*AH101/AF101 -> 0.001028424963 | AK101: =(Z102-Z101)*$Z$71*AI101/AG101 ->  | AL101: =(Z101)*AF101*AJ101/$Z$23/3600 -> 0 | AM101: =Z101*AG101*AK101/$Z$23/3600 ->  | AN101: =IF($Z$8=1,IF(AI101=1,AM101,AL101),AL101) -> 0 | AO101: =$G$21/SQRT($BN$98^2/AA101^2+$BR$98^2+2*$BN$98/AA101*$BP$98)*AH101 -> 31.14661051 | AP101: =$G$21/SQRT($BO$98^2/AC101^2+$BS$98^2+2*$BO$98/AC101*$BQ$98)*AI101 ->  | AQ101: =AO101^2*($BP$98+$BN$98)/3600*AJ101*AH101 -> 0.001672834788 | AR101: =AP101^2*($BP$98+$BN$98)/3600*AK101*AI101 ->  | AS101: =IF($Z$8=1,IF(AI101=1,AR101,AQ101),AQ101) -> 0.001672834788
A102: =ABS($Z$15/2-$A$85*F99*0.75) -> 157.5 | B102: 4+ | D102: viaggi | E102: =E101*4 -> 100 | F102: 2 | G102: =E102/2*$G$36 -> 15 | H102: =$J$63*A100/($Z$15/2)*$E$104/3600*G102 -> 0.2829158259 | J102: =G102*$J$63*$E$104/3600 -> 0.5401120313 | M102: =T20*0.72 -> 1289.580868 | P102: =G102*P95 -> 0.01378323988 | Q102: =$P$93*G102 -> 0.01346829027 | U102: =U95*G102 -> 0.001765784618 | V102: =$U$93*G102 -> 0.0020208938 | Z102: =(1-AA102)*$BT$98 -> 1.570796327 | AA102: 0.99 | AB102: 65.06591819 | AC102: 0.98 | AE102: =$G$57 -> 19.60224695 | AF102: =AB102-AE102 -> 45.46367125 | AG102: =AD102-AE102 ->  | AH102: 1 | AJ102: =(Z103-Z102)*$Z$71*AH102/AF102 -> 0.001017472752 | AK102: =(Z103-Z102)*$Z$71*AI102/AG102 ->  | AL102: 2.260232979e-05 | AN102: =IF($Z$8=1,IF(AI102=1,AM102,AL102),AL102) -> 2.260232979e-05 | AO102: 31.10643612 | AQ102: =AO102^2*($BP$98+$BN$98)/3600*AJ102*AH102 -> 0.00165075324 | AR102: =AP102^2*($BP$98+$BN$98)/3600*AK102*AI102 ->  | AS102: =IF($Z$8=1,IF(AI102=1,AR102,AQ102),AQ102) -> 0.00165075324
D103: alt.med | E103: =($Z$14/8*7)-2*G94 -> 34.1 | F103: 3 | G103: =E102/3*$G$37 -> 6.666666667 | H103: =$J$63*A101/($Z$15/2)*$E$104/3600*G103 -> 0.06858565476 | J103: =G103*$J$63*$E$104/3600 -> 0.2400497917 | P103: =G103*P96 -> 0.006195873191 | Q103: 0.005985906785 | U103: =U96*G103 -> 0.000728102234 | V103: 0.0008981750223 | Z103: 3.141592654 | AA103: 0.98 | AB103: 65.55638731 | AC103: 0.96 | AE103: 19.60224695 | AF103: 45.95414036 | AH103: 1 | AJ103: 0.001006613252 | AL103: 4.520465958e-05 | AN103: 4.520465958e-05 | AO103: 31.06536223 | AQ103: 0.001628824695 | AS103: 0.001628824695
D104: temp.med | E104: =E103/$Z$16 -> 37.88888889 | F104: 4+ | G104: =E102/(3*$F$99/4)*$G$38 -> 1.587301587 | H104: =$J$63*A102/($Z$15/2)*$E$104/3600*G104 -> 0.02857735615 | J104: =G104*$J$63*$E$104/3600 -> 0.0571547123 | M104: =F8*L122 -> 175.6839785 | P104: =G104*P97 -> 0.001530199104 | Q104: 0.001425215901 | U104: =U97*G104 -> 0.0001288148016 | V104: 0.0002138511958 | Z104: 4.71238898 | AA104: 0.97 | AB104: 66.05324924 | AC104: 0.94 | AE104: 19.60224695 | AF104: 46.4510023 | AH104: 1 | AJ104: 0.0009958460397 | AL104: 6.780698937e-05 | AN104: 6.780698937e-05 | AO104: 31.02336039 | AQ104: 0.001607047577 | AS104: 0.001607047577
D105: medio alti | E105: =$F$27*G30 -> 25 | F105: 1 | G105: =E106*$G$35 -> 40 | H105: =$J$63*A99/($Z$15/2)*$E$108/3600*G105 -> 0.7755609524 | J105: =G105*$J$63*$E$108/3600 -> 1.01792375 | M105: =F8*L124 -> 179.1084539 | P105: =G105*P94 -> 0.03633537352 | Q105: 0.03591544071 | U105: =U94*G105 -> 0.005048904557 | V105: 0.005389050134 | Z105: 6.283185307 | AA105: 0.96 | AB105: 66.55659286 | AC105: 0.92 | AE105: 19.60224695 | AF105: 46.95434591 | AH105: 1 | AJ105: 0.0009851707181 | AL105: 9.040931916e-05 | AN105: 9.040931916e-05 | AO105: 30.98040103 | AQ105: 0.001585420331 | AS105: 0.001585420331
D106: viaggi | E106: =E105*4 -> 100 | F106: 2 | G106: =E106/2*$G$36 -> 15 | H106: =$J$63*A100/($Z$15/2)*$E$108/3600*G106 -> 0.199949308 | J106: =G106*$J$63*$E$108/3600 -> 0.3817214062 | P106: =G106*P95 -> 0.01378323988 | Q106: 0.01346829027 | U106: =U95*G106 -> 0.001765784618 | V106: 0.0020208938 | Z106: 7.853981634 | AA106: 0.95 | AB106: 67.06650663 | AC106: 0.9 | AE106: 19.60224695 | AF106: 47.46425968 | AH106: 1 | AJ106: 0.0009745869205 | AL106: 0.0001130116489 | AN106: 0.0001130116489 | AO106: 30.93645334 | AQ106: 0.001563941423 | AS106: 0.001563941423
D107: alt.med | E107: =($Z$14/8*5)-2*G94 -> 24.1 | F107: 3 | G107: =E106/3*$G$37 -> 6.666666667 | H107: =$J$63*A101/($Z$15/2)*$E$108/3600*G107 -> 0.04847255952 | J107: =G107*$J$63*$E$108/3600 -> 0.1696539583 | P107: =G107*P96 -> 0.006195873191 | Q107: 0.005985906785 | U107: =U96*G107 -> 0.000728102234 | V107: 0.0008981750223 | Z107: 9.424777961 | AA107: 0.94 | AB107: 67.58307848 | AC107: 0.88 | AE107: 19.60224695 | AF107: 47.98083154 | AH107: 1 | AJ107: 0.0009640943101 | AL107: 0.0001356139787 | AN107: 0.0001356139787 | AO107: 30.89148528 | AQ107: 0.001542609343 | AS107: 0.001542609343
D108: temp.med | E108: =E107/$Z$16 -> 26.77777778 | F108: 4+ | G108: =E106/(3*$F$99/4)*$G$38 -> 1.587301587 | H108: =$J$63*A102/($Z$15/2)*$E$108/3600*G108 -> 0.0201968998 | J108: =G108*$J$63*$E$108/3600 -> 0.0403937996 | P108: =G108*P97 -> 0.001530199104 | Q108: 0.001425215901 | U108: =U97*G108 -> 0.0001288148016 | V108: 0.0002138511958 | Z108: 10.99557429 | AA108: 0.93 | AB108: 68.10639555 | AC108: 0.86 | AE108: 19.60224695 | AF108: 48.5041486 | AH108: 1 | AJ108: 0.0009536925811 | AL108: 0.0001582163085 | AN108: 0.0001582163085 | AO108: 30.84546348 | AQ108: 0.001521422598 | AS108: 0.001521422598
D109: medio bassi | E109: =$F$27*G31 -> 20 | F109: 1 | G109: =E110*$G$35 -> 32 | H109: =$J$63*A99/($Z$15/2)*$E$112/3600*G109 -> 0.3630011429 | J109: =G109*$J$63*$E$112/3600 -> 0.476439 | P109: =G109*P94 -> 0.02906829882 | Q109: 0.02873235257 | U109: =U94*G109 -> 0.004039123646 | V109: 0.004311240107 | Z109: 12.56637061 | AA109: 0.92 | AB109: 68.63654394 | AC109: 0.84 | AE109: 19.60224695 | AF109: 49.034297 | AH109: 1 | AJ109: 0.0009433814597 | AL109: 0.0001808186383 | AN109: 0.0001808186383 | AO109: 30.7983532 | AQ109: 0.001500379719 | AS109: 0.001500379719
D110: viaggi | E110: =E109*4 -> 80 | F110: 2 | G110: =E110/2*$G$36 -> 12 | H110: =$J$63*A100/($Z$15/2)*$E$112/3600*G110 -> 0.09358623214 | J110: =G110*$J$63*$E$112/3600 -> 0.178664625 | P110: =G110*P95 -> 0.0110265919 | Q110: 0.01077463221 | U110: =U95*G110 -> 0.001412627694 | V110: 0.00161671504 | Z110: 14.13716694 | AA110: 0.91 | AB110: 69.17360848 | AC110: 0.82 | AE110: 19.60224695 | AF110: 49.57136154 | AH110: 1 | AJ110: 0.0009331607049 | AL110: 0.0002034209681 | AN110: 0.0002034209681 | AO110: 30.75011822 | AQ110: 0.001479479255 | AS110: 0.001479479255
D111: alt.med | E111: =($Z$14/8*3)-2*G94 -> 14.1 | F111: 3 | G111: =E110/3*$G$37 -> 5.333333333 | H111: =$J$63*A101/($Z$15/2)*$E$112/3600*G111 -> 0.02268757143 | J111: =G111*$J$63*$E$112/3600 -> 0.0794065 | P111: =G111*P96 -> 0.004956698553 | Q111: 0.004788725428 | U111: =U96*G111 -> 0.0005824817872 | V111: 0.0007185400178 | Z111: 15.70796327 | AA111: 0.9 | AB111: 69.71767241 | AC111: 0.8 | AE111: 19.60224695 | AF111: 50.11542547 | AH111: 1 | AJ111: 0.0009230301099 | AL111: 0.0002260232979 | AN111: 0.0002260232979 | AO111: 30.70072081 | AQ111: 0.001458719775 | AS111: 0.001458719775
D112: temp.med | E112: =E111/$Z$16 -> 15.66666667 | F112: 4+ | G112: =E110/(3*$F$99/4)*$G$38 -> 1.26984127 | H112: =$J$63*A102/($Z$15/2)*$E$112/3600*G112 -> 0.009453154762 | J112: =G112*$J$63*$E$112/3600 -> 0.01890630952 | M112: stdby | N112: 10 | P112: =G112*P97 -> 0.001224159283 | Q112: 0.001140172721 | U112: =U97*G112 -> 0.0001030518413 | V112: 0.0001710809566 | Z112: 17.27875959 | AA112: 0.89 | AB112: 70.26881707 | AC112: 0.78 | AE112: 19.60224695 | AF112: 50.66657013 | AH112: 1 | AJ112: 0.000912989503 | AL112: 0.0002486256277 | AN112: 0.0002486256277 | AO112: 30.65012164 | AQ112: 0.00143809987 | AS112: 0.00143809987
D113: bassi | E113: =$F$27*G32 -> 30 | F113: 1 | G113: =E114*$G$35 -> 48 | H113: =$J$63*A99/($Z$15/2)*$E$116/3600*G113 -> 0.1583302857 | J113: =G113*$J$63*$E$116/3600 -> 0.2078085 | N113: =N112*365*24/1000 -> 87.6 | P113: =G113*P94 -> 0.04360244823 | Q113: 0.04309852885 | U113: =G113*U94 -> 0.006058685469 | V113: 0.006466860161 | Z113: 18.84955592 | AA113: 0.88 | AB113: 70.82712155 | AC113: 0.76 | AE113: 19.60224695 | AF113: 51.2248746 | AH113: 1 | AJ113: 0.000903038749 | AL113: 0.0002712279575 | AN113: 0.0002712279575 | AO113: 30.59827969 | AQ113: 0.001417618147 | AS113: 0.001417618147
D114: viaggi | E114: =E113*4 -> 120 | F114: 2 | G114: =E114/2*$G$36 -> 18 | H114: =$J$63*A100/($Z$15/2)*$E$116/3600*G114 -> 0.04081952679 | J114: =G114*$J$63*$E$116/3600 -> 0.0779281875 | P114: =G114*P95 -> 0.01653988785 | Q114: 0.01616194832 | U114: =G114*U95 -> 0.002118941541 | V114: 0.00242507256 | Z114: 20.42035225 | AA114: 0.87 | AB114: 71.39266227 | AC114: 0.74 | AE114: 19.60224695 | AF114: 51.79041532 | AH114: 1 | AJ114: 0.0008931777509 | AL114: 0.0002938302873 | AN114: 0.0002938302873 | AO114: 30.54515216 | AQ114: 0.001397273234 | AS114: 0.001397273234
D115: alt.med | E115: =($Z$14/8*1)-2*G94 -> 4.1 | F115: 3 | G115: =E114/3*$G$37 -> 8 | H115: =$J$63*A101/($Z$15/2)*$E$116/3600*G115 -> 0.009895642857 | J115: =G115*$J$63*$E$116/3600 -> 0.03463475 | P115: =G115*P96 -> 0.007435047829 | Q115: 0.007183088142 | U115: =G115*U96 -> 0.0008737226807 | V115: 0.001077810027 | Z115: 21.99114858 | AA115: 0.86 | AB115: 71.9655126 | AC115: 0.72 | AE115: 19.60224695 | AF115: 52.36326566 | AH115: 1 | AJ115: 0.000883406451 | AL115: 0.000316432617 | AN115: 0.000316432617 | AO115: 30.49069439 | AQ115: 0.001377063776 | AS115: 0.001377063776
D116: temp.med | E116: =E115/$Z$16 -> 4.555555556 | F116: 4+ | G116: =E114/(3*$F$99/4)*$G$38 -> 1.904761905 | H116: =$J$63*A102/($Z$15/2)*$E$116/3600*G116 -> 0.004123184524 | J116: =G116*$J$63*$E$116/3600 -> 0.008246369048 | N116: =L122-L123 -> 343.8120067 | P116: =G116*P97 -> 0.001836238925 | Q116: 0.001710259082 | U116: =G116*U97 -> 0.0001545777619 | V116: 0.0002566214349 | Z116: 23.5619449 | AA116: 0.85 | AB116: 72.54574237 | AC116: 0.7 | AE116: 19.60224695 | AF116: 52.94349542 | AH116: 1 | AJ116: 0.0008737248327 | AL116: 0.0003390349468 | AN116: 0.0003390349468 | AO116: 30.43485979 | AQ116: 0.001356988439 | AS116: 0.001356988439
Z117: 25.13274123 | AA117: 0.84 | AB117: 73.1334173 | AC117: 0.68 | AE117: 19.60224695 | AF117: 53.53117036 | AH117: 1 | AJ117: 0.0008641329223 | AL117: 0.0003616372766 | AN117: 0.0003616372766 | AO117: 30.37759967 | AQ117: 0.001337045905 | AS117: 0.001337045905
E118: tot partenze | G118: =SUM(G101:G116)*2 -> 506.031746 | H118: =SUM(H101:H116) -> 3.223525774 | J118: =SUM(J101:K116) -> 4.96934244 | P118: =SUM(P101:P116) -> 0.2313787428 | Q118: =SUM(Q101:Q116) -> 0.2271794147 | U118: =SUM(U101:U116) -> 0.03068642484 | V118: =SUM(V101:V116) -> 0.03408788061 | Z118: 26.70353756 | AA118: 0.83 | AB118: 73.72859854 | AC118: 0.66 | AE118: 19.60224695 | AF118: 54.12635159 | AH118: 1 | AJ118: 0.0008546307911 | AL118: 0.0003842396064 | AN118: 0.0003842396064 | AO118: 30.3188632 | AQ118: 0.001317234875 | AS118: 0.001317234875
H119: =H118/2 -> 1.611762887 | J119: =J118/D121 -> 2.48467122 | P119: =P118/2 -> 0.1156893714 | Q119: =Q118/2 -> 0.1135897073 | U119: =U118/2 -> 0.01534321242 | V119: =V118/2 -> 0.0170439403 | Z119: 28.27433388 | AA119: 0.82 | AB119: 74.33134191 | AC119: 0.64 | AE119: 19.60224695 | AF119: 54.72909497 | AH119: 1 | AJ119: 0.0008452185571 | AL119: 0.0004068419362 | AN119: 0.0004068419362 | AO119: 30.25859724 | AQ119: 0.001297554065 | AS119: 0.001297554065
A120: numero di ascensori | D120: =F7 -> 1 | H120: =H119*365/F15*100 -> 653.659393 | J120: =J119*365*100/F15 -> 1007.672217 | P120: =P119*365 -> 42.22662056 | Q120: =Q119*365 -> 41.46024318 | U120: =U119*365 -> 5.600272534 | V120: =V119*365 -> 6.221038211 | Z120: 29.84513021 | AA120: 0.81 | AB120: 74.94169734 | AC120: 0.62 | AE120: 19.60224695 | AF120: 55.33945039 | AH120: 1 | AJ120: 0.0008358963876 | AL120: 0.000429444266 | AN120: 0.000429444266 | AO120: 30.19674627 | AQ120: 0.001278002213 | AS120: 0.001278002213
D121: =2+(D120-1) -> 2 | U121: =ABS(U120+V120) -> 11.82131074 | Z121: 31.41592654 | AA121: 0.8 | AB121: 75.55970803 | AC121: 0.6 | AE121: 19.60224695 | AF121: 55.95746108 | AH121: 1 | AJ121: 0.0008266645016 | AL121: 0.0004520465958 | AN121: 0.0004520465958 | AO121: 30.13325223 | AQ121: 0.00125857807 | AS121: 0.00125857807
K122: cons | L122: =SUM(H120:Q120)+IF(U120>0,(U120+V120),0) -> 1756.839785 | Z122: 32.98672286 | AA122: 0.79 | AB122: 76.18540965 | AC122: 0.58 | AE122: 19.60224695 | AF122: 56.58316271 | AH122: 1 | AJ122: 0.0008175231723 | AL122: 0.0004746489256 | AN122: 0.0004746489256 | AO122: 30.06805438 | AQ122: 0.001239280406 | AS122: 0.001239280406
K123: recuper | L123: =SUM(H120:Q120)*F15*F23/10000+IF(U120<0,U121*F23/100,0)+U121*F23/100 -> 1413.027778 | Z123: 34.55751919 | AA123: 0.78 | AB123: 76.81882946 | AC123: 0.56 | AE123: 19.60224695 | AF123: 57.21658251 | AH123: 1 | AJ123: 0.0008084727302 | AL123: 0.0004972512554 | AN123: 0.0004972512554 | AO123: 30.00108917 | AQ123: 0.001220108007 | AS123: 0.001220108007
K124: tot | L124: =L122+F126 -> 1791.084539 | Z124: 36.12831552 | AA124: 0.77 | AB124: 77.45998526 | AC124: 0.54 | AE124: 19.60224695 | AF124: 57.85773831 | AH124: 1 | AJ124: 0.000799513566 | AL124: 0.0005198535851 | AN124: 0.0005198535851 | AO124: 29.93229008 | AQ124: 0.001201059675 | AS124: 0.001201059675
D125: Energia avviamento | F125: =AN203+AS203 -> 0.1854058482 | G125: W/h | Z125: 37.69911184 | AA125: 0.76 | AB125: 78.10888434 | AC125: 0.52 | AE125: 19.60224695 | AF125: 58.5066374 | AH125: 1 | AJ125: 0.0007906461341 | AL125: 0.0005424559149 | AN125: 0.0005424559149 | AO125: 29.86158746 | AQ125: 0.001182134228 | AS125: 0.001182134228
D126: tot energia avv | E126: tot energia | F126: =G118*365*F125/1000 -> 34.24475446 | Z126: 39.26990817 | AA126: 0.75 | AB126: 78.76552228 | AC126: 0.5 | AE126: 19.60224695 | AF126: 59.16327533 | AH126: 1 | AJ126: 0.0007818709565 | AL126: 0.0005650582447 | AN126: 0.0005650582447 | AO126: 29.78890834 | AQ126: 0.001163330502 | AS126: 0.001163330502
Z127: 40.8407045 | AA127: 0.74 | AB127: 79.42988161 | AC127: 0.48 | AE127: 19.60224695 | AF127: 59.82763466 | AH127: 1 | AJ127: 0.0007731886266 | AL127: 0.0005876605745 | AN127: 0.0005876605745 | AO127: 29.71417627 | AQ127: 0.001144647346 | AS127: 0.001144647346
Z128: 42.41150082 | AA128: 0.73 | AB128: 80.1019304 | AC128: 0.46 | AE128: 19.60224695 | AF128: 60.49968346 | AH128: 1 | AJ128: 0.0007645998133 | AL128: 0.0006102629043 | AN128: 0.0006102629043 | AO128: 29.63731111 | AQ128: 0.001126083626 | AS128: 0.001126083626
Z129: 43.98229715 | AA129: 0.72 | AB129: 80.78162068 | AC129: 0.44 | AE129: 19.60224695 | AF129: 61.17937373 | AH129: 1 | AJ129: 0.0007561052665 | AL129: 0.0006328652341 | AN129: 0.0006328652341 | AO129: 29.55822883 | AQ129: 0.001107638225 | AS129: 0.001107638225
Z130: 45.55309348 | AA130: 0.71 | AB130: 81.46888667 | AC130: 0.42 | AE130: 19.60224695 | AF130: 61.86663973 | AH130: 1 | AJ130: 0.0007477058214 | AL130: 0.0006554675639 | AN130: 0.0006554675639 | AO130: 29.47684128 | AQ130: 0.001089310038 | AS130: 0.001089310038
Z131: 47.1238898 | AA131: 0.7 | AB131: 82.16364296 | AC131: 0.4 | AE131: 19.60224695 | AF131: 62.56139601 | AH131: 1 | AJ131: 0.0007394024051 | AL131: 0.0006780698937 | AN131: 0.0006780698937 | AO131: 29.39305594 | AQ131: 0.001071097977 | AS131: 0.001071097977
Z132: 48.69468613 | AA132: 0.69 | AB132: 82.86578235 | AC132: 0.38 | AE132: 19.60224695 | AF132: 63.26353541 | AH132: 1 | AJ132: 0.0007311960418 | AL132: 0.0007006722235 | AN132: 0.0007006722235 | AO132: 29.30677572 | AQ132: 0.001053000969 | AS132: 0.001053000969
Z133: 50.26548246 | AA133: 0.68 | AB133: =3*G$21^2/($BT$98*$BR$98*($BN$98/($BR$98*AA133)+2*$BP$98/$BR$98+AA133*$BR$98/$BN$98)) -> 83.57517363 | AC133: 0.36 | AD133: =3*G$21^2/($BU$98*$BS$98*($BO$98/($BS$98*AC133)+2*$BQ$98/$BS$98+AC133*$BS$98/$BO$98)) ->  | AE133: 19.60224695 | AF133: 63.97292668 | AH133: =IF(AF133>0,1,0) -> 1 | AI133: =IF(AG133>0,1,0) ->  | AJ133: 0.0007230878604 | AL133: =(Z133)*AF133*AJ133/$Z$23/3600 -> 0.0007232745532 | AM133: =Z133*AG133*AK133/$Z$23/3600 ->  | AN133: 0.0007232745532 | AO133: =$G$21/SQRT($BN$98^2/AA133^2+$BR$98^2+2*$BN$98/AA133*$BP$98)*AH133 -> 29.21789863 | AP133: =$G$21/SQRT($BO$98^2/AC133^2+$BS$98^2+2*$BO$98/AC133*$BQ$98)*AI133 ->  | AQ133: 0.001035017956 | AS133: 0.001035017956
Z134: 51.83627878 | AA134: 0.67 | AB134: 84.29165905 | AC134: 0.34 | AE134: 19.60224695 | AF134: 64.6894121 | AH134: 1 | AJ134: 0.0007150791014 | AL134: 0.000745876883 | AN134: 0.000745876883 | AO134: 29.12631755 | AQ134: 0.001017147893 | AS134: 0.001017147893
Z135: 53.40707511 | AA135: 0.66 | AB135: 85.01505161 | AC135: 0.32 | AE135: 19.60224695 | AF135: 65.41280466 | AH135: 1 | AJ135: 0.0007071711253 | AL135: 0.0007684792128 | AN135: 0.0007684792128 | AO135: 29.0319199 | AQ135: 0.0009993897512 | AS135: 0.0009993897512
Z136: 54.97787144 | AA136: 0.65 | AB136: 85.74513202 | AC136: 0.3 | AE136: 19.60224695 | AF136: 66.14288508 | AH136: 1 | AJ136: 0.0006993654212 | AL136: 0.0007910815426 | AN136: 0.0007910815426 | AO136: 28.93458734 | AQ136: 0.0009817425158 | AS136: 0.0009817425158
Z137: 56.54866776 | AA137: 0.64 | AB137: 86.48164547 | AC137: 0.28 | AE137: 19.60224695 | AF137: 66.87939853 | AH137: 1 | AJ137: 0.0006916636168 | AL137: 0.0008136838724 | AN137: 0.0008136838724 | AO137: 28.83419539 | AQ137: 0.0009642051863 | AS137: 0.0009642051863
Z138: 58.11946409 | AA138: 0.63 | AB138: 87.22429799 | AC138: 0.26 | AE138: 19.60224695 | AF138: 67.62205104 | AH138: 1 | AJ138: 0.0006840674893 | AL138: 0.0008362862022 | AN138: 0.0008362862022 | AO138: 28.73061311 | AQ138: 0.0009467767765 | AS138: 0.0009467767765
Z139: 59.69026042 | AA139: 0.62 | AB139: 87.97275247 | AC139: 0.24 | AE139: 19.60224695 | AF139: 68.37050553 | AH139: 1 | AJ139: 0.0006765789769 | AL139: 0.000858888532 | AN139: 0.000858888532 | AO139: 28.62370272 | AQ139: 0.0009294563146 | AS139: 0.0009294563146
Z140: 61.26105675 | AA140: 0.61 | AB140: 88.72662443 | AC140: 0.22 | AE140: 19.60224695 | AF140: 69.12437748 | AH140: 1 | AJ140: 0.0006692001919 | AL140: 0.0008814908618 | AN140: 0.0008814908618 | AO140: 28.51331914 | AQ140: 0.0009122428427 | AS140: 0.0009122428427
Z141: 62.83185307 | AA141: 0.6 | AB141: 89.48547718 | AC141: 0.2 | AE141: 19.60224695 | AF141: 69.88323023 | AH141: 1 | AJ141: 0.0006619334356 | AL141: 0.0009040931916 | AN141: 0.0009040931916 | AO141: 28.3993096 | AQ141: 0.0008951354173 | AS141: 0.0008951354173
Z142: 64.4026494 | AA142: 0.59 | AB142: 90.24881668 | AC142: 0.18 | AE142: 19.60224695 | AF142: 70.64656973 | AH142: 1 | AJ142: 0.0006547812138 | AL142: 0.0009266955213 | AN142: 0.0009266955213 | AO142: 28.28151315 | AQ142: 0.0008781331091 | AS142: 0.0008781331091
Z143: 65.97344573 | AA143: 0.58 | AB143: 91.01608584 | AC143: 0.16 | AE143: 19.60224695 | AF143: 71.4138389 | AH143: 1 | AJ143: 0.0006477462547 | AL143: 0.0009492978511 | AN143: 0.0009492978511 | AO143: 28.15976019 | AQ143: 0.0008612350028 | AS143: 0.0008612350028
Z144: 67.54424205 | AA144: 0.57 | AB144: 91.7866583 | AC144: 0.14 | AE144: 19.60224695 | AF144: 72.18441136 | AH144: 1 | AJ144: 0.0006408315287 | AL144: 0.0009719001809 | AN144: 0.0009719001809 | AO144: 28.03387193 | AQ144: 0.0008444401975 | AS144: 0.0008444401975
Z145: 69.11503838 | AA145: 0.56 | AB145: 92.55983159 | AC145: 0.12 | AE145: 19.60224695 | AF145: 72.95758465 | AH145: 1 | AJ145: 0.0006340402701 | AL145: 0.0009945025107 | AN145: 0.0009945025107 | AO145: 27.90365986 | AQ145: 0.0008277478067 | AS145: 0.0008277478067
Z146: 70.68583471 | AA146: 0.55 | AB146: 93.33481967 | AC146: 0.1 | AE146: 19.60224695 | AF146: 73.73257273 | AH146: 1 | AJ146: 0.0006273760018 | AL146: 0.00101710484 | AN146: 0.00101710484 | AO146: 27.76892509 | AQ146: 0.0008111569581 | AS146: 0.0008111569581
Z147: 72.25663103 | AA147: 0.54 | AB147: 94.11074476 | AC147: 0.08 | AE147: 19.60224695 | AF147: 74.50849782 | AH147: 1 | AJ147: 0.000620842562 | AL147: 0.00103970717 | AN147: 0.00103970717 | AO147: 27.62945783 | AQ147: 0.0007946667943 | AS147: 0.0007946667943
Z148: 73.82742736 | AA148: 0.53 | AB148: 94.88662841 | AC148: 0.06 | AE148: 19.60224695 | AF148: 75.28438146 | AH148: 1 | AJ148: 0.0006144441354 | AL148: 0.0010623095 | AN148: 0.0010623095 | AO148: 27.48503664 | AQ148: 0.0007782764724 | AS148: 0.0007782764724
Z149: 75.39822369 | AA149: 0.52 | AB149: 95.66138168 | AC149: 0.04 | AE149: 19.60224695 | AF149: 76.05913473 | AH149: 1 | AJ149: 0.0006081852869 | AL149: 0.00108491183 | AN149: 0.00108491183 | AO149: 27.33542776 | AQ149: 0.0007619851647 | AS149: 0.0007619851647
Z150: 76.96902001 | AA150: 0.51 | AB150: 96.43379452 | AC150: 0.02 | AE150: 19.60224695 | AF150: 76.83154757 | AH150: 1 | AJ150: 0.000602071 | AL150: 0.00110751416 | AN150: 0.00110751416 | AO150: 27.18038436 | AQ150: 0.0007457920586 | AS150: 0.0007457920586
Z151: 78.53981634 | AA151: 0.5 | AB151: 97.20252404 | AC151: 0 | AD151: 0 | AE151: 19.60224695 | AF151: 77.60027709 | AG151: -19.60224695 | AH151: 1 | AI151: 0 | AJ151: 0.0005961067204 | AK151: 0 | AL151: 0.001130116489 | AM151: 0 | AN151: 0.001130116489 | AO151: 27.01964578 | AP151: 0 | AQ151: 0.0007296963572 | AR151: 0 | AS151: 0.0007296963572
Z152: 80.11061267 | AA152: 0.49 | AB152: 97.96608179 | AE152: 19.60224695 | AF152: 78.36383485 | AH152: =IF(AF152>0,1,0) -> 1 | AI152: =IF(AG152>0,1,0) -> 0 | AJ152: 0.0005902984045 | AL152: 0.001152718819 | AN152: 0.001152718819 | AO152: 26.85293664 | AQ152: 0.0007136972798 | AS152: 0.0007136972798
Z153: 81.68140899 | AA153: 0.48 | AB153: 98.72281987 | AE153: 19.60224695 | AF153: 79.12057292 | AH153: 1 | AI153: 0 | AJ153: 0.0005846525748 | AL153: 0.001175321149 | AN153: 0.001175321149 | AO153: 26.67996604 | AQ153: 0.0006977940619 | AS153: 0.0006977940619
Z154: 83.25220532 | AA154: 0.47 | AB154: 99.47091574 | AE154: 19.60224695 | AF154: 79.86866879 | AH154: 1 | AI154: 0 | AJ154: 0.0005791763826 | AL154: 0.001197923479 | AN154: 0.001197923479 | AO154: 26.50042658 | AQ154: 0.0006819859565 | AS154: 0.0006819859565
Z155: 84.82300165 | AA155: 0.46 | AB155: 100.2083558 | AE155: 19.60224695 | AF155: 80.60610883 | AH155: 1 | AI155: 0 | AJ155: 0.0005738776793 | AL155: 0.001220525809 | AN155: 0.001220525809 | AO155: 26.31399343 | AQ155: 0.0006662722339 | AS155: 0.0006662722339
Z156: 86.39379797 | AA156: 0.45 | AB156: 100.9329173 | AE156: 19.60224695 | AF156: 81.33067037 | AH156: 1 | AI156: 0 | AJ156: 0.0005687650977 | AL156: 0.001243128138 | AN156: 0.001243128138 | AO156: 26.12032328 | AQ156: 0.0006506521833 | AS156: 0.0006506521833
Z157: 87.9645943 | AA157: 0.44 | AB157: 101.6421492 | AE157: 19.60224695 | AF157: 82.03990222 | AH157: 1 | AI157: 0 | AJ157: 0.000563848145 | AL157: 0.001265730468 | AN157: 0.001265730468 | AO157: 25.91905336 | AQ157: 0.0006351251132 | AS157: 0.0006351251132
Z158: 89.53539063 | AA158: 0.43 | AB158: 102.3333505 | AE158: 19.60224695 | AF158: 82.73110355 | AH158: 1 | AI158: 0 | AJ158: 0.0005591373098 | AL158: 0.001288332798 | AN158: 0.001288332798 | AO158: 25.70980025 | AQ158: 0.000619690353 | AS158: 0.000619690353
Z159: 91.10618695 | AA159: 0.42 | AB159: 103.003548 | AE159: 19.60224695 | AF159: 83.40130109 | AH159: 1 | AI159: 0 | AJ159: 0.0005546441851 | AL159: 0.001310935128 | AN159: 0.001310935128 | AO159: 25.49215881 | AQ159: 0.0006043472534 | AS159: 0.0006043472534
Z160: 92.67698328 | AA160: 0.41 | AB160: 103.6494713 | AE160: 19.60224695 | AF160: 84.04722438 | AH160: 1 | AI160: 0 | AJ160: 0.0005503816101 | AL160: 0.001333537458 | AN160: 0.001333537458 | AO160: 25.26570097 | AQ160: 0.0005890951889 | AS160: 0.0005890951889
Z161: 94.24777961 | AA161: 0.4 | AB161: 104.2675262 | AE161: 19.60224695 | AF161: 84.66527924 | AH161: 1 | AI161: 0 | AJ161: 0.0005463638352 | AL161: 0.001356139787 | AN161: 0.001356139787 | AO161: 25.02997457 | AQ161: 0.000573933559 | AS161: 0.000573933559
Z162: 95.81857593 | AA162: 0.39 | AB162: 104.8537662 | AE162: 19.60224695 | AF162: 85.25151923 | AH162: 1 | AI162: 0 | AJ162: 0.0005426067136 | AL162: 0.001378742117 | AN162: 0.001378742117 | AO162: 24.78450209 | AQ162: 0.0005588617904 | AS162: 0.0005588617904
Z163: 97.38937226 | AA163: 0.38 | AB163: 105.403862 | AE163: 19.60224695 | AF163: 85.80161504 | AH163: 1 | AI163: 0 | AJ163: 0.000539127925 | AL163: 0.001401344447 | AN163: 0.001401344447 | AO163: 24.52877943 | AQ163: 0.0005438793392 | AS163: 0.0005438793392
Z164: 98.96016859 | AA164: 0.37 | AB164: 105.9130689 | AE164: 19.60224695 | AF164: 86.31082192 | AH164: 1 | AI164: 0 | AJ164: 0.0005359472387 | AL164: 0.001423946777 | AN164: 0.001423946777 | AO164: 24.26227472 | AQ164: 0.0005289856944 | AS164: 0.0005289856944
Z165: 100.5309649 | AA165: 0.36 | AB165: =3*G$21^2/($BT$98*$BR$98*($BN$98/($BR$98*AA165)+2*$BP$98/$BR$98+AA165*$BR$98/$BN$98)) -> 106.376192 | AE165: 19.60224695 | AF165: 86.7739451 | AH165: 1 | AI165: 0 | AJ165: 0.0005330868226 | AL165: =(Z165)*AF165*AJ165/$Z$23/3600 -> 0.001446549106 | AN165: 0.001446549106 | AO165: =$G$21/SQRT($BN$98^2/AA165^2+$BR$98^2+2*$BN$98/AA165*$BP$98)*AH165 -> 23.98442704 | AQ165: 0.0005141803806 | AS165: 0.0005141803806
Z166: =(1-AA166)*$BT$98 -> 102.1017612 | AA166: 0.35 | AB166: 106.7875501 | AE166: =$G$57 -> 19.60224695 | AF166: =AB166-AE166 -> 87.18530316 | AH166: 1 | AI166: 0 | AJ166: =(Z167-Z166)*$Z$71*AH166/AF166 -> 0.0005305716101 | AL166: 0.001469151436 | AN166: =IF($Z$8=1,IF(AI166=1,AM166,AL166),AL166) -> 0.001469151436 | AO166: 23.69464529 | AQ166: =AO166^2*($BP$98+$BN$98)/3600*AJ166*AH166 -> 0.0004994629628 | AS166: =IF($Z$8=1,IF(AI166=1,AR166,AQ166),AQ166) -> 0.0004994629628
Z167: 103.6725576 | AA167: 0.34 | AB167: 107.1409367 | AE167: 19.60224695 | AF167: 87.53868977 | AH167: 1 | AI167: 0 | AJ167: 0.0005284297354 | AL167: 0.001491753766 | AN167: 0.001491753766 | AO167: 23.39230705 | AQ167: 0.0004848330506 | AS167: 0.0004848330506
Z168: 105.2433539 | AA168: 0.33 | AB168: 107.4295807 | AE168: 19.60224695 | AF168: 87.82733371 | AH168: 1 | AI168: 0 | AJ168: 0.0005266930547 | AL168: 0.001514356096 | AN168: 0.001514356096 | AO168: 23.07675759 | AQ168: 0.0004702903045 | AS168: 0.0004702903045
Z169: 106.8141502 | AA169: 0.32 | AB169: 107.6461046 | AE169: 19.60224695 | AF169: 88.04385763 | AH169: 1 | AI169: 0 | AJ169: 0.0005253977725 | AL169: 0.001536958426 | AN169: 0.001536958426 | AO169: 22.74730896 | AQ169: 0.000455834443 | AS169: 0.000455834443
Z170: 108.3849465 | AA170: 0.31 | AB170: 107.782483 | AE170: 19.60224695 | AF170: 88.18023605 | AH170: 1 | AI170: 0 | AJ170: 0.000524585199 | AL170: 0.001559560755 | AN170: 0.001559560755 | AO170: 22.40323925 | AQ170: 0.0004414652509 | AS170: 0.0004414652509
Z171: 109.9557429 | AA171: 0.3 | AB171: 107.83 | AE171: 19.60224695 | AF171: 88.22775305 | AH171: 1 | AI171: 0 | AJ171: 0.0005243026721 | AL171: 0.001582163085 | AN171: 0.001582163085 | AO171: 22.04379217 | AQ171: 0.00042718259 | AS171: 0.00042718259
Z172: 111.5265392 | AA172: 0.29 | AB172: 107.7792075 | AE172: 19.60224695 | AF172: 88.17696055 | AH172: 1 | AI172: 0 | AJ172: 0.0005246046857 | AL172: 0.001604765415 | AN172: 0.001604765415 | AO172: 21.66817676 | AQ172: 0.0004129864119 | AS172: 0.0004129864119
Z173: 113.0973355 | AA173: 0.28 | AB173: 107.619885 | AE173: 19.60224695 | AF173: 88.01763804 | AH173: 1 | AI173: 0 | AJ173: 0.0005255542833 | AL173: 0.001627367745 | AN173: 0.001627367745 | AO173: 21.2755676 | AQ173: 0.0003988767737 | AS173: 0.0003988767737
Z174: 114.6681319 | AA174: 0.27 | AB174: 107.3410021 | AE174: 19.60224695 | AF174: 87.73875516 | AH174: 1 | AI174: 0 | AJ174: 0.000527224789 | AL174: 0.001649970075 | AN174: 0.001649970075 | AO174: 20.86510539 | AQ174: 0.0003848538582 | AS174: 0.0003848538582
Z175: 116.2389282 | AA175: 0.26 | AB175: 106.9306855 | AE175: 19.60224695 | AF175: 87.32843857 | AH175: 1 | AI175: 0 | AJ175: 0.0005297019783 | AL175: 0.001672572404 | AN175: 0.001672572404 | AO175: 20.43589805 | AQ175: 0.0003709179984 | AS175: 0.0003709179984
Z176: 117.8097245 | AA176: 0.25 | AB176: 106.376192 | AE176: 19.60224695 | AF176: 86.7739451 | AH176: 1 | AI176: 0 | AJ176: 0.0005330868226 | AL176: 0.001695174734 | AN176: 0.001695174734 | AO176: 19.98702253 | AQ176: 0.0003570697088 | AS176: 0.0003570697088
Z177: 119.3805208 | AA177: 0.24 | AB177: 105.6638902 | AE177: 19.60224695 | AF177: 86.0616433 | AH177: 1 | AI177: 0 | AJ177: 0.0005374989938 | AL177: 0.001717777064 | AN177: 0.001717777064 | AO177: 19.51752736 | AQ177: 0.0003433097258 | AS177: 0.0003433097258
Z178: 120.9513172 | AA178: 0.23 | AB178: 104.7792533 | AE178: 19.60224695 | AF178: 85.17700639 | AH178: 1 | AI178: 0 | AJ178: 0.0005430813859 | AL178: 0.001740379394 | AN178: 0.001740379394 | AO178: 19.02643604 | AQ178: 0.0003296390596 | AS178: 0.0003296390596
Z179: 122.5221135 | AA179: 0.22 | AB179: 103.7068664 | AE179: 19.60224695 | AF179: 84.10461946 | AH179: 1 | AI179: 0 | AJ179: 0.000550006016 | AL179: 0.001762981724 | AN179: 0.001762981724 | AO179: 18.51275161 | AQ179: 0.0003160590614 | AS179: 0.0003160590614
Z180: 124.0929098 | AA180: 0.21 | AB180: 102.4304519 | AE180: 19.60224695 | AF180: 82.82820495 | AH180: 1 | AI180: 0 | AJ180: 0.0005584818204 | AL180: 0.001785584053 | AN180: 0.001785584053 | AO180: 17.97546234 | AQ180: 0.0003025715134 | AS180: 0.0003025715134
Z181: 125.6637061 | AA181: 0.2 | AB181: 100.9329173 | AE181: 19.60224695 | AF181: 81.33067037 | AH181: 1 | AI181: 0 | AJ181: 0.0005687650977 | AL181: 0.001808186383 | AN181: 0.001808186383 | AO181: 17.41354886 | AQ181: 0.0002891787481 | AS181: 0.0002891787481
Z182: 127.2345025 | AA182: 0.19 | AB182: 99.19643001 | AE182: 19.60224695 | AF182: 79.59418307 | AH182: 1 | AI182: 0 | AJ182: 0.0005811737101 | AL182: 0.001830788713 | AN182: 0.001830788713 | AO182: 16.82599283 | AQ182: 0.0002758838115 | AS182: 0.0002758838115
Z183: 128.8052988 | AA183: 0.18 | AB183: 97.20252404 | AE183: 19.60224695 | AF183: 77.60027709 | AH183: 1 | AI183: 0 | AJ183: 0.0005961067204 | AL183: 0.001853391043 | AN183: 0.001853391043 | AO183: 16.21178747 | AQ183: 0.0002626906886 | AS183: 0.0002626906886
Z184: 130.3760951 | AA184: 0.17 | AB184: 94.93224464 | AE184: 19.60224695 | AF184: 75.3299977 | AH184: =IF(AF184>0,1,0) -> 1 | AI184: 0 | AJ184: 0.0006140720575 | AL184: 0.001875993372 | AN184: 0.001875993372 | AO184: 15.56994984 | AQ184: 0.0002496046206 | AS184: 0.0002496046206
Z185: 131.9468915 | AA185: 0.16 | AB185: 92.36633593 | AE185: 19.60224695 | AF185: 72.76408898 | AH185: 1 | AI185: 0 | AJ185: 0.0006357263222 | AL185: 0.001898595702 | AN185: 0.001898595702 | AO185: 14.89953543 | AQ185: 0.000236632562 | AS185: 0.000236632562
Z186: 133.5176878 | AA186: 0.15 | AB186: 89.48547718 | AE186: 19.60224695 | AF186: 69.88323023 | AH186: 1 | AI186: 0 | AJ186: 0.0006619334356 | AL186: 0.001921198032 | AN186: 0.001921198032 | AO186: 14.1996548 | AQ186: 0.0002237838543 | AS186: 0.0002237838543
Z187: 135.0884841 | AA187: 0.14 | AB187: 86.270573 | AE187: 19.60224695 | AF187: 66.66832605 | AH187: 1 | AI187: 0 | AJ187: 0.0006938534296 | AL187: 0.001943800362 | AN187: 0.001943800362 | AO187: 13.46949263 | AQ187: 0.0002110712446 | AS187: 0.0002110712446
Z188: 136.6592804 | AA188: 0.13 | AB188: 82.70310134 | AE188: 19.60224695 | AF188: 63.10085439 | AH188: 1 | AI188: 0 | AJ188: 0.0007330811464 | AL188: 0.001966402692 | AN188: 0.001966402692 | AO188: 12.70832907 | AQ188: 0.0001985124786 | AS188: 0.0001985124786
Z189: 138.2300768 | AA189: 0.12 | AB189: 78.76552228 | AE189: 19.60224695 | AF189: 59.16327533 | AH189: 1 | AI189: 0 | AJ189: 0.0007818709565 | AL189: 0.001989005021 | AN189: 0.001989005021 | AO189: 11.91556334 | AQ189: 0.0001861328803 | AS189: 0.0001861328803
Z190: 139.8008731 | AA190: 0.11 | AB190: 74.44174808 | AE190: 19.60224695 | AF190: 54.83950113 | AH190: 1 | AI190: 0 | AJ190: 0.0008435169124 | AL190: 0.002011607351 | AN190: 0.002011607351 | AO190: 11.09073943 | AQ190: 0.0001739697167 | AS190: 0.0001739697167
Z191: 141.3716694 | AA191: 0.1 | AB191: 69.71767241 | AE191: 19.60224695 | AF191: 50.11542547 | AH191: 1 | AI191: 0 | AJ191: 0.0009230301099 | AL191: 0.002034209681 | AN191: 0.002034209681 | AO191: 10.2335736 | AQ191: 0.0001620799751 | AS191: 0.0001620799751
Z192: 142.9424657 | AA192: 0.09 | AB192: 64.58175284 | AE192: 19.60224695 | AF192: 44.9795059 | AH192: 1 | AI192: 0 | AJ192: 0.001028424963 | AL192: 0.002056812011 | AN192: 0.002056812011 | AO192: 9.343983152 | AQ192: 0.0001505551309 | AS192: 0.0001505551309
Z193: 144.5132621 | AA193: 0.08 | AB193: 59.02563635 | AE193: 19.60224695 | AF193: 39.4233894 | AH193: 1 | AI193: 0 | AJ193: 0.001173365542 | AL193: 0.002079414341 | AN193: 0.002079414341 | AO193: 8.422115835 | AQ193: 0.000139551532 | AS193: 0.000139551532
Z194: 146.0840584 | AA194: 0.07 | AB194: 53.04481248 | AE194: 19.60224695 | AF194: 33.44256553 | AH194: 1 | AI194: 0 | AJ194: 0.001383208672 | AL194: 0.00210201667 | AN194: 0.00210201667 | AO194: 7.468379138 | AQ194: 0.0001293597821 | AS194: 0.0001293597821
Z195: 147.6548547 | AA195: 0.06 | AB195: 46.63927336 | AE195: 19.60224695 | AF195: 27.03702641 | AH195: 1 | AI195: 0 | AJ195: 0.001710914728 | AL195: 0.002124619 | AN195: 0.002124619 | AO195: 6.483468285 | AQ195: 0.0001205874202 | AS195: 0.0001205874202
Z196: 149.225651 | AA196: 0.05 | AB196: 39.81415385 | AE196: 19.60224695 | AF196: 20.2119069 | AH196: 1 | AI196: 0 | AJ196: 0.002288653263 | AL196: 0.00214722133 | AN196: 0.00214722133 | AO196: 5.468391822 | AQ196: 0.0001147514307 | AS196: 0.0001147514307
Z197: 150.7964474 | AA197: 0.04 | AB197: =3*G$21^2/($BT$98*$BR$98*($BN$98/($BR$98*AA197)+2*$BP$98/$BR$98+AA197*$BR$98/$BN$98)) -> 32.58032027 | AE197: 19.60224695 | AF197: 12.97807333 | AH197: 1 | AI197: 0 | AJ197: 0.003564323109 | AL197: 0.00216982366 | AN197: 0.00216982366 | AO197: 4.424493365 | AQ197: 0.0001169938467 | AS197: 0.0001169938467
Z198: 152.3672437 | AA198: 0.03 | AB198: =3*G$21^2/($BT$98*$BR$98*($BN$98/($BR$98*AA198)+2*$BP$98/$BR$98+AA198*$BR$98/$BN$98)) -> 24.95487156 | AE198: 19.60224695 | AF198: 5.352624611 | AH198: 1 | AI198: 0 | AJ198: 0.008642124198 | AL198: 0.00219242599 | AN198: 0.00219242599 | AO198: 3.353468063 | AQ198: 0.0001629550075 | AS198: 0.0001629550075
Z199: 153.93804 | AA199: 0.02 | AB199: =3*G$21^2/($BT$98*$BR$98*($BN$98/($BR$98*AA199)+2*$BP$98/$BR$98+AA199*$BR$98/$BN$98)) -> 16.96151426 | AE199: 19.60224695 | AF199: -2.640732684 | AH199: 0 | AI199: 0 | AJ199: 0 | AL199: 0 | AN199: 0 | AO199: 0 | AQ199: =AO199^2*($BP$98+$BN$98)/3600*AJ199*AH199 -> 0 | AS199: 0
Z200: 155.5088364 | AA200: 0.01 | AB200: =3*G$21^2/($BT$98*$BR$98*($BN$98/($BR$98*AA200)+2*$BP$98/$BR$98+AA200*$BR$98/$BN$98)) -> 8.630772925 | AE200: 19.60224695 | AF200: -10.97147402 | AH200: 0 | AI200: 0 | AJ200: 0 | AL200: 0 | AN200: 0 | AO200: 0 | AQ200: 0 | AS200: 0
Z201: 157.0796327 | AA201: 0 | AB201: 0 | AE201: 19.60224695 | AF201: -19.60224695 | AH201: 0 | AI201: 0 | AJ201: 0 | AL201: 0 | AN201: 0 | AO201: 0 | AQ201: 0 | AS201: 0
AM203: Energia | AN203: =SUM(AN101:AN201) -> 0.1074288735 | AS203: =SUM(AS101:AS201) -> 0.07797697474

Sheet Foglio2
B1: INPUT | H1: OUTPUT | T1: Dimension
D2: AC input current | H2: AC output current (duty cucle =80%) | J2: Inverte Output | M2: Pn Mot (Reccommended motor output) | AC2: =Foglio1!G21 -> 400 | AD2: =Foglio1!Z21 -> 4
B3: Uln AC imput | C3: AC imput frequncy | D3: At 230 V | E3: At 400 V | F3: At 480 V | G3: THD with DC choke | H3: At 230-400 V | I3: At 480 V | J3: At 230 V | K3: At 400 V | L3: At 480 V | M3: At 230 V | N3: At 400 V | O3: At 480 V | P3: Max Overload | Q3: U2 Max Output voltage | R3: f2 Max output frequency | S3: fsw Switching frequency max | T3: W | U3: H | V3: D | W3: Weight | X3: W | Y3: H | Z3: D | AA3: Wei | AC3: P(Tens) | AD3: Prif | AE3: scelta
F4: ADL100
A5: 1040 | B5: 230-400-460/480 Vac -15÷10% 3Ph | C5: 50/60 ± 5% | D5: 12 | E5: 11 | F5: 10 | G5: <35 % | H5: 9 | I5: 8.1 | J5: 3.6 | K5: 6.8 | L5: 6.7 | M5: 2 | N5: 4 | O5: 5 | P5: 200% * 10Sec with output frequency more than 3Hz 150% with output frequency less than 3Hz | Q5: 0,98 * Uln (AC Imput Voltage) | R5: 300 | S5: 10 | T5: 159.2 | U5: 331.1 | V5: 158.7 | W5: 5.8 | X5: 6.27 | Y5: 13.04 | Z5: 6.25 | AA5: 12.8 | AB5: =IF($AC$2<230,0,1) -> 1 | AC5: =IF($AC$2<370,M5,IF($AC$2>=370,N5,0)) -> 4 | AD5: =IF($AD$2<=AC5,1,0)*AB5 -> 1 | AE5: =AND(AD4=0,AD5=1) -> TRUE | AF5: =AE5*A5 -> 1040 | AG5: =$AE5*D5 -> 12 | AH5: =$AE5*E5 -> 11 | AI5: 10 | AJ5: =$AE5*H5 -> 9 | AK5: 8.1 | AL5: 3.6 | AM5: 6.8 | AN5: 6.7 | AO5: 2 | AP5: 4 | AQ5: 5 | AR5: =$AE5*R5 -> 300 | AS5: 10 | AT5: 159.2 | AU5: 331.1 | AV5: 158.7 | AW5: 5.8 | AX5: 6.27 | AY5: 13.04 | AZ5: 6.25 | BA5: 12.8
A6: 1055 | B6: 230-400-460/480 Vac -15÷10% 3Ph | C6: 50/60 ± 5% | D6: 17 | E6: 16 | F6: 15 | G6: <35 % | H6: 13.5 | I6: 12.2 | J6: 5.4 | K6: 9.4 | L6: 10.1 | M6: 3 | N6: 5.5 | O6: 7.5 | P6: 200% * 10Sec with output frequency more than 3Hz 150% with output frequency less than 3Hz | Q6: 0,98 * Uln (AC Imput Voltage) | R6: 300 | S6: 10 | T6: 159.2 | U6: 331.1 | V6: 158.7 | W6: 5.8 | X6: 6.27 | Y6: 13.04 | Z6: 6.25 | AA6: 12.8 | AB6: =IF($AC$2<230,0,1) -> 1 | AC6: 5.5 | AD6: =IF($AD$2<=AC6,1,0)*AB6 -> 1 | AE6: =AND(AD5=0,AD6=1) -> FALSE | AF6: =AE6*A6 -> 0 | AG6: =$AE6*D6 -> 0 | AH6: 0 | AI6: 0 | AJ6: 0 | AK6: 0 | AL6: 0 | AM6: 0 | AN6: 0 | AO6: 0 | AP6: 0 | AQ6: 0 | AR6: 0 | AS6: 0 | AT6: 0 | AU6: 0 | AV6: 0 | AW6: 0 | AX6: 0 | AY6: 0 | AZ6: 0 | BA6: 0
A7: 2075 | B7: 230-400-460/480 Vac -15÷10% 3Ph | C7: 50/60 ± 5% | D7: 23 | E7: 22 | F7: 20 | G7: <35 % | H7: 18.5 | I7: 16.7 | J7: 7.4 | K7: 12.8 | L7: 13.9 | M7: 4 | N7: 7.5 | O7: 10 | P7: 200% * 10Sec with output frequency more than 3Hz 150% with output frequency less than 3Hz | Q7: 0,98 * Uln (AC Imput Voltage) | R7: 300 | S7: 10 | T7: 159.2 | U7: 382.1 | V7: 158.6 | W7: 7.8 | X7: 6.27 | Y7: 15.04 | Z7: 6.24 | AA7: 17.2 | AB7: 1 | AC7: 7.5 | AD7: 1 | AE7: FALSE | AF7: 0 | AG7: 0 | AH7: 0 | AI7: 0 | AJ7: 0 | AK7: 0 | AL7: 0 | AM7: 0 | AN7: 0 | AO7: 0 | AP7: 0 | AQ7: 0 | AR7: 0 | AS7: 0 | AT7: 0 | AU7: 0 | AV7: 0 | AW7: 0 | AX7: 0 | AY7: 0 | AZ7: 0 | BA7: 0
A8: 2110 | B8: 230-400-460/480 Vac -15÷10% 3Ph | C8: 50/60 ± 5% | D8: 31 | E8: 25 | F8: 26 | G8: <35 % | H8: 24.5 | I8: 22 | J8: 9.8 | K8: 17.1 | L8: 18.3 | M8: 5.5 | N8: 11 | O8: 15 | P8: 200% * 10Sec with output frequency more than 3Hz 150% with output frequency less than 3Hz | Q8: 0,98 * Uln (AC Imput Voltage) | R8: 300 | S8: 10 | T8: 159.2 | U8: 382.1 | V8: 158.6 | W8: 7.8 | X8: 6.27 | Y8: 15.04 | Z8: 6.24 | AA8: 17.2 | AB8: 1 | AC8: 11 | AD8: 1 | AE8: FALSE | AF8: 0 | AG8: 0 | AH8: 0 | AI8: 0 | AJ8: 0 | AK8: 0 | AL8: 0 | AM8: 0 | AN8: 0 | AO8: 0 | AP8: 0 | AQ8: 0 | AR8: 0 | AS8: 0 | AT8: 0 | AU8: 0 | AV8: 0 | AW8: 0 | AX8: 0 | AY8: 0 | AZ8: 0 | BA8: 0
A9: 3150 | B9: 230-400-460/480 Vac -15÷10% 3Ph | C9: 50/60 ± 5% | D9: 42 | E9: 40 | F9: 37 | G9: <35 % | H9: 32 | I9: 28.8 | J9: 12.8 | K9: 22.2 | L9: 24 | M9: 7.5 | N9: 15 | O9: 20 | P9: 200% * 10Sec with output frequency more than 3Hz 150% with output frequency less than 3Hz | Q9: 0,98 * Uln (AC Imput Voltage) | R9: 300 | S9: 10 | T9: 227.8 | U9: 387 | V9: 178 | W9: 10.5 | X9: 8.97 | Y9: 15.24 | Z9: 7.01 | AA9: 23.15 | AB9: 1 | AC9: 15 | AD9: 1 | AE9: FALSE | AF9: 0 | AG9: 0 | AH9: 0 | AI9: 0 | AJ9: 0 | AK9: 0 | AL9: 0 | AM9: 0 | AN9: 0 | AO9: 0 | AP9: 0 | AQ9: 0 | AR9: 0 | AS9: 0 | AT9: 0 | AU9: 0 | AV9: 0 | AW9: 0 | AX9: 0 | AY9: 0 | AZ9: 0 | BA9: 0
A10: 3185 | B10: 230-400-460/480 Vac -15÷10% 3Ph | C10: 50/60 ± 5% | D10: 50 | E10: 47 | F10: 45 | G10: <35 % | H10: 39 | I10: 35.1 | J10: 15.6 | K10: 27.1 | L10: 29.2 | M10: 11 | N10: 18.5 | O10: 25 | P10: 200% * 10Sec with output frequency more than 3Hz 150% with output frequency less than 3Hz | Q10: 0,98 * Uln (AC Imput Voltage) | R10: 300 | S10: 10 | T10: 227.8 | U10: 387 | V10: 178 | W10: 10.5 | X10: 8.97 | Y10: 15.24 | Z10: 7.01 | AA10: 23.15 | AB10: 1 | AC10: 18.5 | AD10: 1 | AE10: FALSE | AF10: 0 | AG10: 0 | AH10: 0 | AI10: 0 | AJ10: 0 | AK10: 0 | AL10: 0 | AM10: 0 | AN10: 0 | AO10: 0 | AP10: 0 | AQ10: 0 | AR10: 0 | AS10: 0 | AT10: 0 | AU10: 0 | AV10: 0 | AW10: 0 | AX10: 0 | AY10: 0 | AZ10: 0 | BA10: 0
A11: 3220 | B11: 230-400-460/480 Vac -15÷10% 3Ph | C11: 50/60 ± 5% | D11: 55 | E11: 53 | F11: 50 | G11: <35 % | H11: 45 | I11: 40.5 | J11: 17.9 | K11: 31.2 | L11: 33.7 | M11: 11 | N11: 22 | O11: 30 | P11: 200% * 10Sec with output frequency more than 3Hz 150% with output frequency less than 3Hz | Q11: 0,98 * Uln (AC Imput Voltage) | R11: 300 | S11: 10 | T11: 227.8 | U11: 387 | V11: 178 | W11: 10.5 | X11: 8.97 | Y11: 15.24 | Z11: 7.01 | AA11: 23.15 | AB11: 1 | AC11: 22 | AD11: 1 | AE11: =AND(AD10=0,AD11=1) -> FALSE | AF11: 0 | AG11: 0 | AH11: 0 | AI11: 0 | AJ11: 0 | AK11: 0 | AL11: 0 | AM11: 0 | AN11: 0 | AO11: 0 | AP11: 0 | AQ11: 0 | AR11: 0 | AS11: =$AE11*S11 -> 0 | AT11: 0 | AU11: 0 | AV11: 0 | AW11: 0 | AX11: 0 | AY11: 0 | AZ11: 0 | BA11: 0
A12: 2055 | B12: 200-230 Vac ±10% 3Ph | C12: 50/60 ± 2% | D12: 31 | G12: <35 % | H12: 24.5 | J12: 9.8 | M12: 5.5 | P12: 150% * 10 sec from 0 to 3Hz - 200% * 10 sec starting from 3Hz | Q12: 0,98 * Uln (AC Imput Voltage) | R12: 300 | S12: 10/5 according to Heat-sink temperature | T12: 159.2 | U12: 331.1 | V12: 158.7 | W12: 7.8 | X12: 6.27 | Y12: 13.04 | Z12: 6.25 | AA12: 17.2 | AB12: =IF($AC$2<230,1,0) -> 0 | AC12: =M12 -> 5.5 | AD12: 0 | AE12: =AND(AD11=0,AD12=1) -> FALSE | AF12: =AE12*A12 -> 0 | AG12: =$AE12*D12 -> 0 | AH12: =$AE12*E12 -> 0 | AI12: =$AE12*F12 -> 0 | AJ12: =$AE12*H12 -> 0 | AK12: =$AE12*I12 -> 0 | AL12: =$AE12*J12 -> 0 | AM12: =$AE12*K12 -> 0 | AN12: =$AE12*L12 -> 0 | AO12: =$AE12*M12 -> 0 | AP12: =$AE12*N12 -> 0 | AQ12: =$AE12*O12 -> 0 | AR12: =$AE12*R12 -> 0 | AS12: =$AE12*S12 ->  | AT12: =$AE12*T12 -> 0 | AU12: =$AE12*U12 -> 0 | AV12: =$AE12*V12 -> 0 | AW12: =$AE12*W12 -> 0 | AX12: =$AE12*X12 -> 0 | AY12: =$AE12*Y12 -> 0 | AZ12: =$AE12*Z12 -> 0 | BA12: =$AE12*AA12 -> 0
A13: 3075 | B13: 200-230 Vac ±10% 3Ph | C13: 50/60 ± 2% | D13: 42 | G13: <35 % | H13: 32 | J13: 12.8 | M13: 7.5 | P13: 150% * 10 sec from 0 to 3Hz - 200% * 10 sec starting from 3Hz | Q13: 0,98 * Uln (AC Imput Voltage) | R13: 300 | S13: 10/5 according to Heat-sink temperature | T13: 227.8 | U13: 387 | V13: 178 | W13: 10.5 | X13: 8.97 | Y13: 15.24 | Z13: 7.01 | AA13: 23.15 | AB13: 0 | AC13: =M13 -> 7.5 | AD13: 0 | AE13: =AND(AD12=0,AD13=1) -> FALSE | AF13: 0 | AG13: 0 | AH13: 0 | AI13: 0 | AJ13: 0 | AK13: 0 | AL13: 0 | AM13: 0 | AN13: 0 | AO13: 0 | AP13: 0 | AQ13: 0 | AR13: 0 | AS13: =$AE13*S13 ->  | AT13: 0 | AU13: 0 | AV13: 0 | AW13: 0 | AX13: 0 | AY13: 0 | AZ13: 0 | BA13: 0
A14: 3110 | B14: 200-230 Vac ±10% 3Ph | C14: 50/60 ± 2% | D14: 53 | G14: <35 % | H14: 45 | J14: 17.9 | M14: 11 | P14: 150% * 10 sec from 0 to 3Hz - 200% * 10 sec starting from 3Hz | Q14: 0,98 * Uln (AC Imput Voltage) | R14: 300 | S14: 10/5 according to Heat-sink temperature | T14: 227.8 | U14: 387 | V14: 178 | W14: 10.5 | X14: 8.97 | Y14: 15.24 | Z14: 7.01 | AA14: 23.15 | AB14: 0 | AC14: 11 | AD14: 0 | AE14: FALSE | AF14: 0 | AG14: 0 | AH14: 0 | AI14: 0 | AJ14: 0 | AK14: 0 | AL14: 0 | AM14: 0 | AN14: 0 | AO14: 0 | AP14: 0 | AQ14: 0 | AR14: 0 | AT14: 0 | AU14: 0 | AV14: 0 | AW14: 0 | AX14: 0 | AY14: 0 | AZ14: 0 | BA14: 0
A15: 4150 | B15: 200-230 Vac ±10% 3Ph | C15: 50/60 ± 2% | D15: 55 | G15: <35 % | H15: 60 | J15: 23.9 | M15: 15 | P15: 150% * 10 sec from 0 to 3Hz - 180% * 10 sec starting from 3Hz | Q15: 0,98 * Uln (AC Imput Voltage) | R15: 300 | S15: 10/5 according to Heat-sink temperature | T15: 268 | U15: 612 | V15: 275 | W15: 32 | X15: 10.55 | Y15: 24.09 | Z15: 10.87 | AA15: 70.6 | AB15: 0 | AC15: 15 | AD15: 0 | AE15: FALSE | AF15: 0 | AG15: 0 | AH15: 0 | AI15: 0 | AJ15: 0 | AK15: 0 | AL15: 0 | AM15: 0 | AN15: 0 | AO15: 0 | AP15: 0 | AQ15: 0 | AR15: 0 | AT15: 0 | AU15: 0 | AV15: 0 | AW15: 0 | AX15: 0 | AY15: 0 | AZ15: 0 | BA15: 0
A16: 4185 | B16: 200-230 Vac ±10% 3Ph | C16: 50/60 ± 2% | D16: 72 | G16: <35 % | H16: 75 | J16: 29.9 | M16: 18.5 | P16: 150% * 10 sec from 0 to 3Hz - 180% * 10 sec starting from 3Hz | Q16: 0,98 * Uln (AC Imput Voltage) | R16: 300 | S16: 10/5 according to Heat-sink temperature | T16: 268 | U16: 612 | V16: 275 | W16: 32 | X16: 10.55 | Y16: 24.09 | Z16: 10.87 | AA16: 70.6 | AB16: 0 | AC16: 18.5 | AD16: 0 | AE16: FALSE | AF16: 0 | AG16: 0 | AH16: 0 | AI16: 0 | AJ16: 0 | AK16: 0 | AL16: 0 | AM16: 0 | AN16: 0 | AO16: 0 | AP16: 0 | AQ16: 0 | AR16: 0 | AT16: 0 | AU16: 0 | AV16: 0 | AW16: 0 | AX16: 0 | AY16: 0 | AZ16: 0 | BA16: 0
A17: 4220 | B17: 200-230 Vac ±10% 3Ph | C17: 50/60 ± 2% | D17: 89 | G17: <35 % | H17: 90 | J17: 35.8 | M17: 22 | P17: 150% * 10 sec from 0 to 3Hz - 180% * 10 sec starting from 3Hz | Q17: 0,98 * Uln (AC Imput Voltage) | R17: 300 | S17: 10/5 according to Heat-sink temperature | T17: 268 | U17: 612 | V17: 275 | W17: 32 | X17: 10.55 | Y17: 24.09 | Z17: 10.87 | AA17: 70.6 | AB17: 0 | AC17: 22 | AD17: 0 | AE17: FALSE | AF17: 0 | AG17: 0 | AH17: 0 | AI17: 0 | AJ17: 0 | AK17: 0 | AL17: 0 | AM17: 0 | AN17: 0 | AO17: 0 | AP17: 0 | AQ17: 0 | AR17: 0 | AT17: 0 | AU17: 0 | AV17: 0 | AW17: 0 | AX17: 0 | AY17: 0 | AZ17: 0 | BA17: 0
A18: 5300 | B18: 200-230 Vac ±10% 3Ph | C18: 50/60 ± 2% | D18: 97 | G18: <35 % | H18: 105 | J18: 41.8 | M18: 30 | P18: 150% * 10 sec from 0 to 3Hz - 180% * 10 sec starting from 3Hz | Q18: 0,98 * Uln (AC Imput Voltage) | R18: 300 | S18: 10/5 according to Heat-sink temperature | T18: 311 | U18: 767 | V18: 331 | W18: 60 | X18: 12 | Y18: 30.2 | Z18: 13.03 | AA18: 132.3 | AB18: 0 | AC18: 30 | AD18: 0 | AE18: FALSE | AF18: 0 | AG18: 0 | AH18: 0 | AI18: 0 | AJ18: 0 | AK18: 0 | AL18: 0 | AM18: 0 | AN18: 0 | AO18: 0 | AP18: 0 | AQ18: 0 | AR18: 0 | AT18: 0 | AU18: 0 | AV18: 0 | AW18: 0 | AX18: 0 | AY18: 0 | AZ18: 0 | BA18: 0
A19: 5370 | B19: 200-230 Vac ±10% 3Ph | C19: 50/60 ± 2% | D19: 136 | G19: <35 % | H19: 150 | J19: 59.8 | M19: 37 | P19: 150% * 10 sec from 0 to 3Hz - 180% * 10 sec starting from 3Hz | Q19: 0,98 * Uln (AC Imput Voltage) | R19: 300 | S19: 10/5 according to Heat-sink temperature | T19: 311 | U19: 767 | V19: 331 | W19: 60 | X19: 12 | Y19: 30.2 | Z19: 13.03 | AA19: 132.3 | AB19: 0 | AC19: 37 | AD19: 0 | AE19: FALSE | AF19: 0 | AG19: 0 | AH19: 0 | AI19: 0 | AJ19: 0 | AK19: 0 | AL19: 0 | AM19: 0 | AN19: 0 | AO19: 0 | AP19: 0 | AQ19: 0 | AR19: 0 | AT19: 0 | AU19: 0 | AV19: 0 | AW19: 0 | AX19: 0 | AY19: 0 | AZ19: 0 | BA19: 0
F20: ADL200 | AF20: =SUM(AF5:AF19) -> 1040 | AG20: =SUM(AG5:AG19) -> 12 | AH20: 11 | AI20: 10 | AJ20: 9 | AK20: 8.1 | AL20: 3.6 | AM20: 6.8 | AN20: 6.7 | AO20: 2 | AP20: 4 | AQ20: 5 | AR20: 300 | AT20: 159.2 | AU20: 331.1 | AV20: 158.7 | AW20: 5.8 | AX20: 6.27 | AY20: 13.04 | AZ20: 6.25 | BA20: 12.8
A21: 1040 | B21: 230-400-460/480 Vac -15÷10% 3Ph | C21: 50/60 ± 5% | D21: 12 | E21: 11 | F21: 10 | G21: <35 % | H21: 9 | I21: 8.1 | J21: 3.6 | K21: 6.8 | L21: 6.7 | M21: 2 | N21: 4 | O21: 5 | P21: 200% * 10Sec with output frequency more than 3Hz 150% with output frequency less than 3Hz | Q21: 0,98 * Uln (AC Imput Voltage) | R21: 300 | S21: 10 | T21: 159.2 | U21: 331.1 | V21: 158.7 | W21: 5.8 | X21: 6.27 | Y21: 13.04 | Z21: 6.25 | AA21: 12.8 | AC21: 4 | AD21: =IF($AD$2<=AC21,1,0) -> 1 | AE21: TRUE | AF21: 1040 | AG21: =$AE21*D21 -> 12 | AH21: =$AE21*E21 -> 11 | AI21: =$AE21*F21 -> 10 | AJ21: =$AE21*H21 -> 9 | AK21: =$AE21*I21 -> 8.1 | AL21: =$AE21*J21 -> 3.6 | AM21: =$AE21*K21 -> 6.8 | AN21: =$AE21*L21 -> 6.7 | AO21: =$AE21*M21 -> 2 | AP21: =$AE21*N21 -> 4 | AQ21: =$AE21*O21 -> 5 | AR21: =$AE21*R21 -> 300 | AS21: =$AE21*S21 -> 10 | AT21: =$AE21*T21 -> 159.2 | AU21: =$AE21*U21 -> 331.1 | AV21: =$AE21*V21 -> 158.7 | AW21: =$AE21*W21 -> 5.8 | AX21: =$AE21*X21 -> 6.27 | AY21: =$AE21*Y21 -> 13.04 | AZ21: =$AE21*Z21 -> 6.25 | BA21: =$AE21*AA21 -> 12.8
A22: 1055 | B22: 230-400-460/480 Vac -15÷10% 3Ph | C22: 50/60 ± 5% | D22: 17 | E22: 16 | F22: 15 | G22: <35 % | H22: 13.5 | I22: 12.2 | J22: 5.4 | K22: 9.4 | L22: 10.1 | M22: 3 | N22: 5.5 | O22: 7.5 | P22: 200% * 10Sec with output frequency more than 3Hz 150% with output frequency less than 3Hz | Q22: 0,98 * Uln (AC Imput Voltage) | R22: 300 | S22: 10 | T22: 159.2 | U22: 331.1 | V22: 158.7 | W22: 5.8 | X22: 6.27 | Y22: 13.04 | Z22: 6.25 | AA22: 12.8 | AC22: 5.5 | AD22: 1 | AE22: FALSE | AF22: 0 | AG22: 0 | AH22: 0 | AI22: 0 | AJ22: 0 | AK22: 0 | AL22: 0 | AM22: 0 | AN22: 0 | AO22: 0 | AP22: 0 | AQ22: 0 | AR22: 0 | AS22: 0 | AT22: 0 | AU22: 0 | AV22: 0 | AW22: 0 | AX22: 0 | AY22: 0 | AZ22: 0 | BA22: 0
A23: 2075 | B23: 230-400-460/480 Vac -15÷10% 3Ph | C23: 50/60 ± 5% | D23: 23 | E23: 22 | F23: 20 | G23: <35 % | H23: 18.5 | I23: 16.7 | J23: 7.4 | K23: 12.8 | L23: 13.9 | M23: 4 | N23: 7.5 | O23: 10 | P23: 200% * 10Sec with output frequency more than 3Hz 150% with output frequency less than 3Hz | Q23: 0,98 * Uln (AC Imput Voltage) | R23: 300 | S23: 10 | T23: 159.2 | U23: 382.1 | V23: 158.6 | W23: 7.8 | X23: 6.27 | Y23: 15.04 | Z23: 6.24 | AA23: 17.2 | AC23: 7.5 | AD23: 1 | AE23: FALSE | AF23: 0 | AG23: 0 | AH23: 0 | AI23: 0 | AJ23: 0 | AK23: 0 | AL23: 0 | AM23: 0 | AN23: 0 | AO23: 0 | AP23: 0 | AQ23: 0 | AR23: 0 | AS23: 0 | AT23: 0 | AU23: 0 | AV23: 0 | AW23: 0 | AX23: 0 | AY23: 0 | AZ23: 0 | BA23: 0
A24: 2110 | B24: 230-400-460/480 Vac -15÷10% 3Ph | C24: 50/60 ± 5% | D24: 31 | E24: 25 | F24: 26 | G24: <35 % | H24: 24.5 | I24: 22 | J24: 9.8 | K24: 17.1 | L24: 18.3 | M24: 5.5 | N24: 11 | O24: 15 | P24: 200% * 10Sec with output frequency more than 3Hz 150% with output frequency less than 3Hz | Q24: 0,98 * Uln (AC Imput Voltage) | R24: 300 | S24: 10 | T24: 159.2 | U24: 382.1 | V24: 158.6 | W24: 7.8 | X24: 6.27 | Y24: 15.04 | Z24: 6.24 | AA24: 17.2 | AC24: =IF($AC$2<370,M24,IF($AC$2>=370,N24,0)) -> 11 | AD24: 1 | AE24: FALSE | AF24: 0 | AG24: 0 | AH24: 0 | AI24: 0 | AJ24: 0 | AK24: 0 | AL24: 0 | AM24: 0 | AN24: 0 | AO24: 0 | AP24: 0 | AQ24: 0 | AR24: 0 | AS24: 0 | AT24: 0 | AU24: 0 | AV24: 0 | AW24: 0 | AX24: 0 | AY24: 0 | AZ24: 0 | BA24: 0
A25: 3150 | B25: 230-400-460/480 Vac -15÷10% 3Ph | C25: 50/60 ± 5% | D25: 42 | E25: 40 | F25: 37 | G25: <35 % | H25: 32 | I25: 28.8 | J25: 12.8 | K25: 22.2 | L25: 24 | M25: 7.5 | N25: 15 | O25: 20 | P25: 200% * 10Sec with output frequency more than 3Hz 150% with output frequency less than 3Hz | Q25: 0,98 * Uln (AC Imput Voltage) | R25: 300 | S25: 10 | T25: 227.8 | U25: 387 | V25: 178 | W25: 10.5 | X25: 8.97 | Y25: 15.24 | Z25: 7.01 | AA25: 23.15 | AC25: =IF($AC$2<370,M25,IF($AC$2>=370,N25,0)) -> 15 | AD25: 1 | AE25: FALSE | AF25: 0 | AG25: 0 | AH25: 0 | AI25: 0 | AJ25: 0 | AK25: 0 | AL25: 0 | AM25: 0 | AN25: 0 | AO25: 0 | AP25: 0 | AQ25: 0 | AR25: 0 | AS25: 0 | AT25: 0 | AU25: 0 | AV25: 0 | AW25: 0 | AX25: 0 | AY25: 0 | AZ25: 0 | BA25: 0
A26: 3185 | B26: 230-400-460/480 Vac -15÷10% 3Ph | C26: 50/60 ± 5% | D26: 50 | E26: 47 | F26: 45 | G26: <35 % | H26: 39 | I26: 35.1 | J26: 15.6 | K26: 27.1 | L26: 29.2 | M26: 11 | N26: 18.5 | O26: 25 | P26: 200% * 10Sec with output frequency more than 3Hz 150% with output frequency less than 3Hz | Q26: 0,98 * Uln (AC Imput Voltage) | R26: 300 | S26: 10 | T26: 227.8 | U26: 387 | V26: 178 | W26: 10.5 | X26: 8.97 | Y26: 15.24 | Z26: 7.01 | AA26: 23.15 | AC26: 18.5 | AD26: 1 | AE26: FALSE | AF26: 0 | AG26: 0 | AH26: 0 | AI26: 0 | AJ26: 0 | AK26: 0 | AL26: 0 | AM26: 0 | AN26: 0 | AO26: 0 | AP26: 0 | AQ26: 0 | AR26: 0 | AS26: 0 | AT26: 0 | AU26: 0 | AV26: 0 | AW26: 0 | AX26: 0 | AY26: 0 | AZ26: 0 | BA26: 0
A27: 3220 | B27: 230-400-460/480 Vac -15÷10% 3Ph | C27: 50/60 ± 5% | D27: 55 | E27: 53 | F27: 50 | G27: <35 % | H27: 45 | I27: 40.5 | J27: 17.9 | K27: 31.2 | L27: 33.7 | M27: 11 | N27: 22 | O27: 30 | P27: 200% * 10Sec with output frequency more than 3Hz 150% with output frequency less than 3Hz | Q27: 0,98 * Uln (AC Imput Voltage) | R27: 300 | S27: 10 | T27: 227.8 | U27: 387 | V27: 178 | W27: 10.5 | X27: 8.97 | Y27: 15.24 | Z27: 7.01 | AA27: 23.15 | AC27: 22 | AD27: 1 | AE27: FALSE | AF27: 0 | AG27: 0 | AH27: 0 | AI27: 0 | AJ27: 0 | AK27: 0 | AL27: 0 | AM27: 0 | AN27: 0 | AO27: 0 | AP27: 0 | AQ27: 0 | AR27: 0 | AS27: 0 | AT27: 0 | AU27: 0 | AV27: 0 | AW27: 0 | AX27: 0 | AY27: 0 | AZ27: 0 | BA27: 0
A28: 4300 | B28: 230-400-460/480 Vac -15÷10% 3Ph | C28: 50/60 ± 5% | D28: 55 | E28: 55 | F28: 49 | G28: <35 % | H28: 60 | I28: 54 | J28: 23.9 | K28: 41.6 | L28: 44.9 | M28: 15 | N28: 30 | O28: 40 | P28: 200% * 10Sec with output frequency more than 3Hz 150% with output frequency less than 3Hz | Q28: 0,98 * Uln (AC Imput Voltage) | R28: 300 | S28: 10 | T28: 268 | U28: 612 | V28: 275 | W28: 32 | X28: 10.55 | Y28: 24.09 | Z28: 10.87 | AA28: 70.6 | AC28: 30 | AD28: 1 | AE28: FALSE | AF28: 0 | AG28: 0 | AH28: 0 | AI28: 0 | AJ28: 0 | AK28: 0 | AL28: 0 | AM28: 0 | AN28: 0 | AO28: 0 | AP28: 0 | AQ28: 0 | AR28: 0 | AS28: 0 | AT28: 0 | AU28: 0 | AV28: 0 | AW28: 0 | AX28: 0 | AY28: 0 | AZ28: 0 | BA28: 0
A29: 4370 | B29: 230-400-460/480 Vac -15÷10% 3Ph | C29: 50/60 ± 5% | D29: 72 | E29: 72 | F29: 65 | G29: <35 % | H29: 75 | I29: 67.5 | J29: 29.9 | K29: 52 | L29: 56.1 | M29: 18.5 | N29: 37 | O29: 50 | P29: 200% * 10Sec with output frequency more than 3Hz 150% with output frequency less than 3Hz | Q29: 0,98 * Uln (AC Imput Voltage) | R29: 300 | S29: 10 | T29: 268 | U29: 612 | V29: 275 | W29: 32 | X29: 10.55 | Y29: 24.09 | Z29: 10.87 | AA29: 70.6 | AC29: 37 | AD29: 1 | AE29: FALSE | AF29: 0 | AG29: 0 | AH29: 0 | AI29: 0 | AJ29: 0 | AK29: 0 | AL29: 0 | AM29: 0 | AN29: 0 | AO29: 0 | AP29: 0 | AQ29: 0 | AR29: 0 | AS29: 0 | AT29: 0 | AU29: 0 | AV29: 0 | AW29: 0 | AX29: 0 | AY29: 0 | AZ29: 0 | BA29: 0
A30: 4450 | B30: 230-400-460/480 Vac -15÷10% 3Ph | C30: 50/60 ± 5% | D30: 89 | E30: 89 | F30: 81 | G30: <35 % | H30: 90 | I30: 81 | J30: 35.8 | K30: 62.3 | L30: 67.3 | M30: 22 | N30: 45 | O30: 60 | P30: 200% * 10Sec with output frequency more than 3Hz 150% with output frequency less than 3Hz | Q30: 0,98 * Uln (AC Imput Voltage) | R30: 300 | S30: 10 | T30: 268 | U30: 612 | V30: 275 | W30: 32 | X30: 10.55 | Y30: 24.09 | Z30: 10.87 | AA30: 70.6 | AC30: 45 | AD30: 1 | AE30: FALSE | AF30: 0 | AG30: 0 | AH30: 0 | AI30: 0 | AJ30: 0 | AK30: 0 | AL30: 0 | AM30: 0 | AN30: 0 | AO30: 0 | AP30: 0 | AQ30: 0 | AR30: 0 | AS30: 0 | AT30: 0 | AU30: 0 | AV30: 0 | AW30: 0 | AX30: 0 | AY30: 0 | AZ30: 0 | BA30: 0
A31: 5550 | B31: 230-400-460/480 Vac -15÷10% 3Ph | C31: 50/60 ± 5% | D31: 97 | E31: 97 | F31: 89 | G31: <35 % | H31: 105 | I31: 94 | J31: 41.8 | K31: 72.7 | L31: 78.6 | M31: 30 | N31: 55 | O31: 75 | P31: 200% * 10Sec with output frequency more than 3Hz 150% with output frequency less than 3Hz | Q31: 0,98 * Uln (AC Imput Voltage) | R31: 300 | S31: 10 | T31: 311 | U31: 767 | V31: 331 | W31: 60 | X31: 12 | Y31: 30.2 | Z31: 13.03 | AA31: 132.3 | AC31: 55 | AD31: 1 | AE31: FALSE | AF31: 0 | AG31: 0 | AH31: 0 | AI31: 0 | AJ31: 0 | AK31: 0 | AL31: 0 | AM31: 0 | AN31: 0 | AO31: 0 | AP31: 0 | AQ31: 0 | AR31: 0 | AS31: 0 | AT31: 0 | AU31: 0 | AV31: 0 | AW31: 0 | AX31: 0 | AY31: 0 | AZ31: 0 | BA31: 0
A32: 5750 | B32: 230-400-460/480 Vac -15÷10% 3Ph | C32: 50/60 ± 5% | D32: 136 | E32: 136 | F32: 122 | G32: <35 % | H32: 150 | I32: 135 | J32: 51.8 | K32: 104 | L32: 112.2 | M32: 37 | N32: 75 | O32: 100 | P32: 200% * 10Sec with output frequency more than 3Hz 150% with output frequency less than 3Hz | Q32: 0,98 * Uln (AC Imput Voltage) | R32: 300 | S32: 10 | T32: 311 | U32: 767 | V32: 331 | W32: 60 | X32: 12 | Y32: 30.2 | Z32: 13.03 | AA32: 132.3 | AC32: 75 | AD32: =IF($AD$2<=AC32,1,0) -> 1 | AE32: FALSE | AF32: 0 | AG32: 0 | AH32: 0 | AI32: 0 | AJ32: 0 | AK32: 0 | AL32: 0 | AM32: 0 | AN32: 0 | AO32: 0 | AP32: 0 | AQ32: 0 | AR32: 0 | AS32: 0 | AT32: 0 | AU32: 0 | AV32: 0 | AW32: 0 | AX32: 0 | AY32: 0 | AZ32: 0 | BA32: 0
A33: AVRy | AF33: =SUM(AF21:AF32) -> 1040 | AG33: =SUM(AG21:AG32) -> 12 | AH33: 11 | AI33: 10 | AJ33: 9 | AK33: 8.1 | AL33: 3.6 | AM33: 6.8 | AN33: 6.7 | AO33: 2 | AP33: 4 | AQ33: 5 | AR33: =SUM(AR21:AR32) -> 300 | AS33: 10 | AT33: 159.2 | AU33: 331.1 | AV33: 158.7 | AW33: 5.8 | AX33: 6.27 | AY33: 13.04 | AZ33: 6.25 | BA33: 12.8
C34: KVA | D34: fsw | E34: At 400 V | F34: At 480 V | AC34: Prif
A35: 1425 | C35: 13 | D35: 16 | E35: 18 | F35: 16 | G35: <4% | H35: 14 | K35: 9.7 | L35: 11.7 | N35: 7.5 | O35: 11 | P35: 25 | Q35: 520 | R35: 300 | S35: 8 | T35: 350 | U35: 670 | V35: 150.3 | W35: 28.7 | X35: 13.8 | Y35: 26.4 | Z35: 5.9 | AA35: 63.27 | AC35: =IF($AC$2<=480,N35,O35) -> 7.5 | AD35: =IF($AD$2<=AC35,1,0) -> 1 | AE35: TRUE | AF35: 1425 | AH35: =$AE35*C35 -> 13 | AI35: 16 | AJ35: =$AE35*E35 -> 18 | AK35: =$AE35*F35 -> 16 | AL35: =$AE35*K35 -> 9.7 | AM35: 11.7 | AN35: =AE35*H35 -> 14 | AO35: =$AE35*P35 -> 25 | AP35: 520 | AR35: =$AE35*R35 -> 300 | AS35: =$AE35*S35 -> 8 | AT35: =$AE35*T35 -> 350 | AU35: =$AE35*U35 -> 670 | AV35: =$AE35*V35 -> 150.3 | AW35: =$AE35*W35 -> 28.7 | AX35: =$AE35*X35 -> 13.8 | AY35: =$AE35*Y35 -> 26.4 | AZ35: =$AE35*Z35 -> 5.9 | BA35: =$AE35*AA35 -> 63.27
A36: 2545 | C36: 22 | D36: 8 | E36: 32 | F36: 26 | G36: <4% | H36: 25 | K36: 17.3 | L36: 20.8 | N36: 14 | O36: 17 | P36: 45 | Q36: 520 | R36: 300 | S36: 8 | T36: 350 | U36: 670 | V36: 150.3 | W36: 32 | X36: 13.8 | Y36: 26.4 | Z36: 5.9 | AA36: 70.55 | AC36: =IF($AC$2<=480,N36,O36) -> 14 | AD36: =IF($AD$2<=AC36,1,0) -> 1 | AE36: FALSE | AF36: 0 | AH36: 0 | AI36: =$AE36*D36 -> 0 | AJ36: =$AE36*E36 -> 0 | AK36: 0 | AL36: 0 | AM36: 0 | AN36: =AE36*H36 -> 0 | AO36: 0 | AP36: 0 | AR36: 0 | AS36: 0 | AT36: 0 | AU36: 0 | AV36: 0 | AW36: 0 | AX36: 0 | AY36: 0 | AZ36: 0 | BA36: 0
A37: 3360 | C37: 29 | D37: 8 | E37: 42 | F37: 35 | G37: <4% | H37: 33 | K37: 23 | L37: 27.4 | N37: 17 | O37: 27 | P37: 60 | Q37: 520 | R37: 300 | S37: 8 | T37: 420 | U37: 788 | V37: 181.2 | W37: 48 | X37: 16.5 | Y37: 31 | Z37: 7.1 | AA37: 105.8 | AC37: =IF($AC$2<=480,N37,O37) -> 17 | AD37: =IF($AD$2<=AC37,1,0) -> 1 | AE37: FALSE | AF37: 0 | AH37: 0 | AI37: 0 | AJ37: 0 | AK37: 0 | AL37: 0 | AM37: 0 | AN37: =AE37*H37 -> 0 | AO37: 0 | AP37: 0 | AR37: 0 | AS37: 0 | AT37: 0 | AU37: 0 | AV37: 0 | AW37: 0 | AX37: 0 | AY37: 0 | AZ37: 0 | BA37: 0
A38: AGL50 | AF38: =SUM(AF35:AF37) -> 1425 | AH38: =SUM(AH35:AH37) -> 13 | AI38: 16 | AJ38: 18 | AK38: 16 | AL38: 9.7 | AM38: 11.7 | AN38: 14 | AO38: 25 | AP38: 520 | AR38: 300 | AS38: 8 | AT38: 350 | AU38: 670 | AV38: 150.3 | AW38: 28.7 | AX38: 13.8 | AY38: 26.4 | AZ38: 5.9 | BA38: 63.27
E39: con L | F39: Senza L
A40: 2040 | E40: 9 | F40: 11 | H40: 10.1 | K40: 7 | N40: 4 | P40: 17.2 | R40: 500 | S40: 8 | T40: 130 | U40: 221 | V40: 176.5 | W40: 3 | X40: 5.13 | Y40: 8.71 | Z40: 6.96 | AA40: 6.6 | AC40: 4 | AD40: =IF($AD$2<=AC40,1,0) -> 1 | AE40: TRUE | AF40: 2040 | AH40: =$AE40*E40 -> 9 | AI40: 11 | AJ40: =$AE40*H40 -> 10.1 | AM40: =$AE40*K40 -> 7 | AN40: =$AE40*N40 -> 4 | AP40: =$AE40*P40 -> 17.2 | AR40: =$AE40*R40 -> 500 | AS40: 8 | AT40: 130 | AU40: 221 | AV40: 176.5 | AW40: 3 | AX40: 5.13 | AY40: 8.71 | AZ40: 6.96 | BA40: 6.6
A41: 2055 | E41: 13 | F41: 14 | H41: 13 | K41: 9 | N41: 5.5 | P41: 22.1 | R41: 500 | S41: 8 | T41: 130 | U41: 221 | V41: 176.5 | W41: 3 | X41: 5.13 | Y41: 8.71 | Z41: 6.96 | AA41: 6.6 | AC41: 5.5 | AD41: =IF($AD$2<=AC41,1,0) -> 1 | AE41: FALSE | AF41: 0 | AH41: 0 | AI41: 0 | AJ41: =$AE41*H41 -> 0 | AM41: =$AE41*K41 -> 0 | AN41: =$AE41*N41 -> 0 | AP41: =$AE41*P41 -> 0 | AR41: 0 | AS41: 0 | AT41: 0 | AU41: 0 | AV41: 0 | AW41: 0 | AX41: 0 | AY41: 0 | AZ41: 0 | BA41: 0
A42: 2075 | E42: 16 | F42: 19 | H42: 17.7 | K42: 12.3 | N42: 7.5 | P42: 30 | R42: 500 | S42: 8 | T42: 130 | U42: 221 | V42: 176.5 | W42: 3 | X42: 5.13 | Y42: 8.71 | Z42: 6.96 | AA42: 6.6 | AC42: 7.5 | AD42: =IF($AD$2<=AC42,1,0) -> 1 | AE42: FALSE | AF42: 0 | AH42: 0 | AI42: 0 | AJ42: =$AE42*H42 -> 0 | AM42: =$AE42*K42 -> 0 | AN42: =$AE42*N42 -> 0 | AP42: =$AE42*P42 -> 0 | AR42: 0 | AS42: 0 | AT42: 0 | AU42: 0 | AV42: 0 | AW42: 0 | AX42: 0 | AY42: 0 | AZ42: 0 | BA42: 0
AF43: =SUM(AF40:AF42) -> 2040 | AH43: =SUM(AH40:AH42) -> 9 | AI43: 11 | AJ43: 10.1 | AM43: 7 | AN43: 4 | AP43: 17.2 | AR43: 500 | AS43: 8 | AT43: 130 | AU43: 221 | AV43: 176.5 | AW43: 3 | AX43: 5.13 | AY43: 8.71 | AZ43: 6.96 | BA43: 6.6
B48: Resistenze
B49: AGL50 | I49: =IF(Foglio1!G21>=230,Foglio1!BC69,Foglio1!AF64) -> 1040
I50: Scelta
A51: 2040 | B51: 200 | C51: 100 | D51: 0.75 | E51: 400 | H51: =IF($I$49=A51,1,0) -> 0 | I51: =Foglio1!$Z$32 -> 0 | J51: =I51*H51 -> 0 | L51: =B51*$J51 -> 0 | M51: 0 | N51: 0 | O51: 0 | P51: 0 | Q51: 0
A52: 2055 | B52: 300 | C52: 68 | D52: 0.55 | E52: 550 | H52: =IF($I$49=A52,1,0) -> 0 | I52: =Foglio1!$Z$32 -> 0 | J52: =I52*H52 -> 0 | L52: =B52*$J52 -> 0 | M52: =C52*$J52 -> 0 | N52: =D52*$J52 -> 0 | O52: =E52*$J52 -> 0 | P52: =F52*$J52 -> 0 | Q52: =G52*$J52 -> 0
A53: 2075 | B53: 400 | C53: 68 | D53: 0.4 | E53: 750 | H53: 0 | I53: =Foglio1!$Z$32 -> 0 | J53: 0 | L53: 0 | M53: 0 | N53: 0 | O53: 0 | P53: 0 | Q53: 0
B54: ADL100
A55: 1040 | B55: 1040 | C55: 7.5 | D55: 38 | E55: 750 | F55: 100 | G55: 44 | H55: 1 | I55: =IF(Foglio1!$G$21>=230,Foglio1!$Z$31,0) -> 0 | J55: 0 | L55: 0 | M55: 0 | N55: 0 | O55: 0 | P55: 0 | Q55: 0
A56: 1055 | B56: 1055 | C56: 7.5 | D56: 38 | E56: 750 | F56: 68 | G56: 44 | H56: 0 | I56: =IF(Foglio1!$G$21>=230,Foglio1!$Z$31,0) -> 0 | J56: 0 | L56: 0 | M56: 0 | N56: 0 | O56: 0 | P56: 0 | Q56: 0
A57: 2075 | B57: 2075 | C57: 7.5 | D57: 28 | E57: 750 | F57: 68 | G57: 44 | H57: 0 | I57: =IF(Foglio1!$G$21>=230,Foglio1!$Z$31,0) -> 0 | J57: 0 | L57: 0 | M57: 0 | N57: 0 | O57: 0 | P57: 0 | Q57: 0
A58: 2110 | B58: 2110 | C58: 7.5 | D58: 28 | E58: 1200 | F58: 49 | G58: 44 | H58: 0 | I58: =IF(Foglio1!$G$21>=230,Foglio1!$Z$31,0) -> 0 | J58: 0 | L58: 0 | M58: 0 | N58: 0 | O58: 0 | P58: 0 | Q58: 0
A59: 3150 | B59: 3150 | C59: 12 | D59: 43 | E59: 1900 | F59: 28 | G59: 44 | H59: 0 | I59: =IF(Foglio1!$G$21>=230,Foglio1!$Z$31,0) -> 0 | J59: 0 | L59: 0 | M59: 0 | N59: 0 | O59: 0 | P59: 0 | Q59: 0
A60: 3185 | B60: 3185 | C60: 40 | D60: 150 | E60: 4000 | F60: 15.4 | G60: 20 | H60: 0 | I60: =IF(Foglio1!$G$21>=230,Foglio1!$Z$31,0) -> 0 | J60: 0 | L60: 0 | M60: 0 | N60: 0 | O60: 0 | P60: 0 | Q60: 0
A61: 3220 | B61: 3220 | C61: 40 | D61: 150 | E61: 4000 | F61: 15.4 | G61: 20 | H61: 0 | I61: =IF(Foglio1!$G$21>=230,Foglio1!$Z$31,0) -> 0 | J61: 0 | L61: 0 | M61: 0 | N61: 0 | O61: 0 | P61: 0 | Q61: 0
A62: ADL200
A65: 1040 | B65: 1040 | C65: 7.5 | D65: 38 | E65: 750 | F65: 100 | G65: 44 | H65: 1 | I65: =IF(Foglio1!$G$21>=230,Foglio1!$Z$30,Foglio1!$Z$31) -> 1 | J65: 1 | L65: 1040 | M65: 7.5 | N65: 38 | O65: 750 | P65: 100 | Q65: 44
A66: 1055 | B66: 1055 | C66: 7.5 | D66: 38 | E66: 750 | F66: 68 | G66: 44 | H66: 0 | I66: =IF(Foglio1!$G$21>=230,Foglio1!$Z$30,Foglio1!$Z$31) -> 1 | J66: 0 | L66: 0 | M66: 0 | N66: 0 | O66: 0 | P66: 0 | Q66: 0
A67: 2075 | B67: 2075 | C67: 7.5 | D67: 28 | E67: 750 | F67: 68 | G67: 44 | H67: 0 | I67: =IF(Foglio1!$G$21>=230,Foglio1!$Z$30,Foglio1!$Z$31) -> 1 | J67: 0 | L67: 0 | M67: 0 | N67: 0 | O67: 0 | P67: 0 | Q67: 0
A68: 2110 | B68: 2110 | C68: 7.5 | D68: 28 | E68: 1200 | F68: 49 | G68: 44 | H68: 0 | I68: =IF(Foglio1!$G$21>=230,Foglio1!$Z$30,Foglio1!$Z$31) -> 1 | J68: 0 | L68: 0 | M68: 0 | N68: 0 | O68: 0 | P68: 0 | Q68: 0
A69: 3150 | B69: 3150 | C69: 12 | D69: 43 | E69: 1900 | F69: 28 | G69: 44 | H69: 0 | I69: =IF(Foglio1!$G$21>=230,Foglio1!$Z$30,Foglio1!$Z$31) -> 1 | J69: 0 | L69: 0 | M69: 0 | N69: 0 | O69: 0 | P69: 0 | Q69: 0
A70: 3185 | B70: 3185 | C70: 40 | D70: 150 | E70: 4000 | F70: 15.4 | G70: 20 | H70: 0 | I70: =IF(Foglio1!$G$21>=230,Foglio1!$Z$30,Foglio1!$Z$31) -> 1 | J70: 0 | L70: 0 | M70: 0 | N70: 0 | O70: 0 | P70: 0 | Q70: 0
A71: 3220 | B71: 3220 | C71: 40 | D71: 150 | E71: 4000 | F71: 15.4 | G71: 20 | H71: 0 | I71: =IF(Foglio1!$G$21>=230,Foglio1!$Z$30,Foglio1!$Z$31) -> 1 | J71: 0 | L71: 0 | M71: 0 | N71: 0 | O71: 0 | P71: 0 | Q71: 0
A72: 4300 | B72: 4300 | C72: 40 | D72: 150 | E72: 4000 | F72: 11.6 | G72: 20 | H72: =IF($I$49=A72,1,0) -> 0 | I72: =IF(Foglio1!$G$21>=230,Foglio1!$Z$30,Foglio1!$Z$31) -> 1 | J72: =I72*H72 -> 0 | L72: 0 | M72: 0 | N72: 0 | O72: 0 | P72: 0 | Q72: 0
A73: 4370 | B73: 4370 | C73: 40 | D73: 150 | E73: 4000 | F73: 11.6 | G73: 20 | H73: 0 | I73: =IF(Foglio1!$G$21>=230,Foglio1!$Z$30,Foglio1!$Z$31) -> 1 | J73: 0 | L73: 0 | M73: 0 | N73: 0 | O73: 0 | P73: 0 | Q73: 0
A74: 4450 | B74: 4450 | C74: 40 | D74: 150 | E74: 8000 | F74: 7.7 | G74: 20 | H74: 0 | I74: =IF(Foglio1!$G$21>=230,Foglio1!$Z$30,Foglio1!$Z$31) -> 1 | J74: 0 | L74: 0 | M74: 0 | N74: 0 | O74: 0 | P74: 0 | Q74: 0
A75: 5550 | B75: 5550 | C75: 40 | D75: 150 | E75: 8000 | F75: 7.7 | G75: 20 | H75: 0 | I75: =IF(Foglio1!$G$21>=230,Foglio1!$Z$30,Foglio1!$Z$31) -> 1 | J75: 0 | L75: 0 | M75: 0 | N75: 0 | O75: 0 | P75: 0 | Q75: 0
A76: 5750 | B76: 5750 | L76: =SUM(L51:L75) -> 1040 | M76: 7.5 | N76: 38 | O76: 750 | P76: 100 | Q76: 44
A80: ADL130
A81: 1011 | C81: 2200 | D81: 16 | E81: 6 | F81: 1.1 | H81: 159.2 | I81: 331.1 | J81: 150.7 | K81: 5 | L81: 6.27 | M81: 13.04 | N81: 6.25 | O81: 12.8 | AD81: =IF($AD$2<=F81,1,0) -> 0 | AE81: =AND(AD80=0,AD81=1) -> FALSE | AF81: =A81*$AE81 -> 0 | AG81: =C81*$AE81 -> 0 | AH81: 0 | AI81: 0 | AJ81: 0 | AK81: =H81*$AE81 -> 0 | AL81: 0 | AM81: 0 | AN81: 0 | AO81: 0 | AP81: 0 | AQ81: 0 | AR81: 0
A82: 1015 | C82: 2200 | D82: 18 | E82: 6.8 | F82: 1.5 | H82: 159.2 | I82: 331.1 | J82: 150.7 | K82: 5 | L82: 6.27 | M82: 13.04 | N82: 6.25 | O82: 12.8 | AD82: 0 | AE82: FALSE | AF82: 0 | AG82: 0 | AH82: 0 | AI82: 0 | AJ82: 0 | AK82: 0 | AL82: 0 | AM82: 0 | AN82: 0 | AO82: 0 | AP82: 0 | AQ82: 0 | AR82: 0
A83: 2022 | C83: 4050 | D83: 24 | E83: 9.6 | F83: 2.2 | H83: 159.2 | I83: 382.1 | J83: 150.7 | K83: 7.8 | L83: 6.27 | M83: 15.04 | N83: 6.25 | O83: 17.2 | AD83: 0 | AE83: FALSE | AF83: 0 | AG83: 0 | AH83: 0 | AI83: 0 | AJ83: 0 | AK83: 0 | AL83: 0 | AM83: 0 | AN83: 0 | AO83: 0 | AP83: 0 | AQ83: 0 | AR83: 0
A84: 2030 | C84: 4050 | D84: 31 | E84: 13 | F84: 3 | H84: 159.2 | I84: 382.1 | J84: 150.7 | K84: 7.8 | L84: 6.27 | M84: 15.04 | N84: 6.25 | O84: 17.2 | AD84: 0 | AE84: FALSE | AF84: 0 | AG84: 0 | AH84: 0 | AI84: 0 | AJ84: 0 | AK84: 0 | AL84: 0 | AM84: 0 | AN84: 0 | AO84: 0 | AP84: 0 | AQ84: 0 | AR84: 0
A85: 3040 | C85: 4950 | D85: 36 | E85: 15 | F85: 4 | H85: 227.8 | I85: 307 | J85: 178 | K85: 10.5 | L85: 8.97 | M85: 15.24 | N85: 7.01 | O85: 23.15 | AD85: 1 | AE85: TRUE | AF85: 3040 | AG85: 4950 | AH85: 36 | AI85: 15 | AJ85: 4 | AK85: 227.8 | AL85: 307 | AM85: 178 | AN85: 10.5 | AO85: 8.97 | AP85: 15.24 | AQ85: 7.01 | AR85: 23.15
A86: 3055 | C86: 4950 | D86: 50 | E86: 22 | F86: 5.5 | H86: 227.8 | I86: 307 | J86: 178 | K86: 10.5 | L86: 8.97 | M86: 15.24 | N86: 7.01 | O86: 23.15 | AD86: 1 | AE86: FALSE | AF86: 0 | AG86: 0 | AH86: 0 | AI86: 0 | AJ86: 0 | AK86: 0 | AL86: 0 | AM86: 0 | AN86: 0 | AO86: 0 | AP86: 0 | AQ86: 0 | AR86: 0
AF87: =SUM(AF81:AF86) -> 3040 | AG87: =SUM(AG81:AG86) -> 4950 | AH87: 36 | AI87: 15 | AJ87: 4 | AK87: 227.8 | AL87: 307 | AM87: 178 | AN87: 10.5 | AO87: 8.97 | AP87: 15.24 | AQ87: 7.01 | AR87: 23.15

Sheet Foglio3
U1: omega | W1: =3000*2*PI()/60 -> 314.1592654 | AB1: prif | AC1: =Foglio1!U43 -> 3.4212375
A2: Pn | C2: Giri | E2: Efficienza | G2: cosfi | I2: In | K2: Is/In | M2: Cn | O2: Cs/Cn | Q2: Cmax/Cn | S2: J | T2: Rr | V2: Z | X2: Rs | Z2: Sn | AD2: Pn | AE2: Vel | AF2: Eff. | AG2: Cosfi | AH2: In | AI2: Cn | AJ2: J | AK2: Rr | AL2: Rs | AM2: Z
A3: Asincroni Trifase
B4: 1.1 | D4: 2850 | F4: 81.4 | H4: 0.85 | J4: 2.3 | L4: 8.1 | N4: 3.69 | P4: 3.2 | R4: 3.5 | S4: 0.001093 | U4: =3*400^2/$W$1*(3000-D4)/3000/N4 -> 20.70308203 | W4: =SQRT(3*400^2*U4/($W$1*N4*P4)) -> 51.75770507 | Y4: =(3*400^2-N4*R4*2*$W$1*W4)/(2*$W$1*N4*R4) -> 7.393957867 | AA4: =(3000-D4)/3000 -> 0.05 | AB4: =IF(B4<$AC$1,0,1) -> 0 | AC4: =AND(AB4=1,AB2=0) -> FALSE | AD4: =$AC4*B4 -> 0 | AE4: =$AC4*D4 -> 0 | AF4: =$AC4*F4 -> 0 | AG4: =$AC4*H4 -> 0 | AH4: =$AC4*J4 -> 0 | AI4: =$AC4*N4 -> 0 | AJ4: =$AC4*S4 -> 0 | AK4: =AC4*U4 -> 0 | AL4: =AC4*Y4 -> 0 | AM4: =AC4*W4 -> 0
B5: 1.5 | D5: 2900 | F5: 85.9 | H5: 0.87 | J5: 3 | L5: 7.7 | N5: 5 | P5: 2.7 | R5: 3.6 | S5: 0.0024 | U5: =3*400^2/$W$1*(3000-D5)/3000/N5 -> 10.18591636 | W5: =SQRT(3*400^2*U5/($W$1*N5*P5)) -> 33.95305453 | Y5: =(3*400^2-N5*R5*2*$W$1*W5)/(2*$W$1*N5*R5) -> 8.488263632 | AA5: =(3000-D5)/3000 -> 0.03333333333 | AB5: =IF(B5<$AC$1,0,1) -> 0 | AC5: =AND(AB5=1,AB4=0) -> FALSE | AD5: =$AC5*B5 -> 0 | AE5: =$AC5*D5 -> 0 | AF5: =$AC5*F5 -> 0 | AG5: =$AC5*H5 -> 0 | AH5: =$AC5*J5 -> 0 | AI5: 0 | AJ5: 0 | AK5: =AC5*U5 -> 0 | AL5: =AC5*Y5 -> 0 | AM5: =AC5*W5 -> 0
B6: 2.2 | D6: 2880 | F6: 85.8 | H6: 0.87 | J6: 4.4 | L6: 7.4 | N6: 7.3 | P6: 3 | R6: 3.6 | S6: 0.0027 | U6: 8.371986048 | W6: 24.16784199 | Y6: 4.901554007 | AA6: 0.04 | AB6: 0 | AC6: FALSE | AD6: 0 | AE6: 0 | AF6: 0 | AG6: 0 | AH6: 0 | AI6: 0 | AJ6: 0 | AK6: 0 | AL6: 0 | AM6: 0
B7: 3 | D7: 2920 | F7: 87.6 | H7: 0.86 | J7: 5.9 | L7: 10 | N7: 9.9 | P7: 3.9 | R7: 4.9 | S7: 0.005 | U7: 4.115521761 | W7: 12.76169123 | Y7: 2.986478771 | AA7: 0.02666666667 | AB7: 0 | AC7: FALSE | AD7: 0 | AE7: 0 | AF7: 0 | AG7: 0 | AH7: 0 | AI7: 0 | AJ7: 0 | AK7: 0 | AL7: 0 | AM7: 0
B8: 4 | D8: 2860 | F8: 87.7 | H8: 0.93 | J8: 7.1 | L8: 7.9 | N8: 13.4 | P8: 2.7 | R8: 3.1 | S8: 0.012 | U8: 5.321001082 | W8: 14.99022235 | Y8: 3.400334389 | AA8: 0.04666666667 | AB8: 1 | AC8: TRUE | AD8: 4 | AE8: 2860 | AF8: 87.7 | AG8: 0.93 | AH8: 7.1 | AI8: 13.4 | AJ8: 0.012 | AK8: 5.321001082 | AL8: 3.400334389 | AM8: 14.99022235
B9: 5.5 | D9: 2900 | F9: 88.6 | H9: 0.88 | J9: 10.1 | L9: 9 | N9: 18.1 | P9: 3.8 | R9: 4.6 | S9: 0.016 | U9: 2.813789049 | W9: 7.906064701 | Y9: 1.269334373 | AA9: 0.03333333333 | AB9: 1 | AC9: FALSE | AD9: 0 | AE9: 0 | AF9: 0 | AG9: 0 | AH9: 0 | AI9: 0 | AJ9: 0 | AK9: 0 | AL9: 0 | AM9: 0
B10: 7.5 | D10: 2915 | F10: 90.9 | H10: 0.9 | J10: 13.3 | L10: 11 | N10: 24.6 | P10: 5.1 | R10: 5.2 | S10: 0.022 | U10: 1.759761972 | W10: 4.629349876 | Y10: 1.342693017 | AA10: 0.02833333333 | AB10: 1 | AC10: FALSE | AD10: 0 | AE10: 0 | AF10: 0 | AG10: 0 | AH10: 0 | AI10: 0 | AJ10: 0 | AK10: 0 | AL10: 0 | AM10: 0
B11: 11 | D11: 2930 | F11: 91.2 | H11: 0.88 | J11: 20 | L11: 6.3 | N11: 36 | P11: 1.9 | R11: 2.5 | S11: 0.039 | U11: 0.9902974237 | W11: 4.703275904 | Y11: 3.784987728 | AA11: 0.02333333333 | AB11: 1 | AC11: FALSE | AD11: 0 | AE11: 0 | AF11: 0 | AG11: 0 | AH11: 0 | AI11: 0 | AJ11: 0 | AK11: 0 | AL11: 0 | AM11: 0
B12: 15 | D12: 2920 | F12: 91.7 | H12: 0.9 | J12: 26.5 | L12: 6.6 | N12: 49 | P12: 2.3 | R12: 2.5 | S12: 0.047 | U12: 0.8315033762 | W12: 3.357497769 | Y12: 2.878777552 | AA12: 0.02666666667 | AB12: 1 | AC12: FALSE | AD12: 0 | AE12: 0 | AF12: 0 | AG12: 0 | AH12: 0 | AI12: 0 | AJ12: 0 | AK12: 0 | AL12: 0 | AM12: 0
B13: 18.5 | D13: 2920 | F13: 92.4 | H13: 0.91 | J13: 32 | L13: 7.3 | N13: 60 | P13: 2.6 | R13: 2.7 | S13: 0.053 | U13: 0.6790610905 | W13: 2.578919621 | Y13: 2.136782396 | AA13: 0.02666666667 | AB13: 1 | AC13: FALSE | AD13: 0 | AE13: 0 | AF13: 0 | AG13: 0 | AH13: 0 | AI13: 0 | AJ13: 0 | AK13: 0 | AL13: 0 | AM13: 0
B14: 22 | D14: 2930 | F14: 92.8 | H14: 0.89 | J14: 38.5 | L14: 7.2 | N14: 71 | P14: 2.5 | R14: 2.7 | S14: 0.077 | U14: 0.5021226374 | W14: 2.078985232 | Y14: 1.906115065 | AA14: 0.02333333333 | AB14: 1 | AC14: FALSE | AD14: 0 | AE14: 0 | AF14: 0 | AG14: 0 | AH14: 0 | AI14: 0 | AJ14: 0 | AK14: 0 | AL14: 0 | AM14: 0
B15: 30 | D15: 2955 | F15: 93.2 | H15: 0.88 | J15: 53 | L15: 7.3 | N15: 97 | P15: 2.4 | R15: 3.1 | S15: 0.15 | U15: 0.2362712557 | W15: 1.245258856 | Y15: 1.295292281 | AA15: 0.015 | AB15: 1 | AC15: FALSE | AD15: 0 | AE15: 0 | AF15: 0 | AG15: 0 | AH15: 0 | AI15: 0 | AJ15: 0 | AK15: 0 | AL15: 0 | AM15: 0
B16: 37 | D16: 2950 | F16: 93.6 | H16: 0.89 | J16: 64 | L16: 7.3 | N16: 120 | P16: 2.5 | R16: 3.2 | S16: 0.18 | U16: 0.2122065908 | W16: 1.039595735 | Y16: 0.9498410537 | AA16: 0.01666666667 | AB16: 1 | AC16: FALSE | AD16: 0 | AE16: 0 | AF16: 0 | AG16: 0 | AH16: 0 | AI16: 0 | AJ16: 0 | AK16: 0 | AL16: 0 | AM16: 0
B17: 45 | D17: 2960 | F17: 93.9 | H17: 0.88 | J17: 79 | L17: 7.3 | N17: 145 | P17: 2.5 | R17: 2.8 | S17: 0.26 | U17: 0.140495398 | W17: 0.7695249873 | Y17: 1.112109808 | AA17: 0.01333333333 | AB17: 1 | AC17: FALSE | AD17: 0 | AE17: 0 | AF17: 0 | AG17: 0 | AH17: 0 | AI17: 0 | AJ17: 0 | AK17: 0 | AL17: 0 | AM17: 0
B18: 55 | D18: 2970 | F18: 94.4 | H18: 0.89 | J18: 95 | L18: 7.4 | N18: 177 | P18: 1.7 | R18: 2.7 | S18: 0.49 | U18: 0.08632132507 | W18: 0.6620543412 | Y18: 0.9364887156 | AA18: 0.01 | AB18: 1 | AC18: FALSE | AD18: 0 | AE18: 0 | AF18: 0 | AG18: 0 | AH18: 0 | AI18: 0 | AJ18: 0 | AK18: 0 | AL18: 0 | AM18: 0
B19: 75 | D19: 2970 | F19: 94.7 | H19: 0.9 | J19: 127 | L19: 8.2 | N19: 241 | P19: 2.6 | R19: 3.2 | S19: 0.57 | U19: 0.06339781965 | W19: 0.3931765867 | Y19: 0.5974143454 | AA19: 0.01 | AB19: 1 | AC19: FALSE | AD19: 0 | AE19: 0 | AF19: 0 | AG19: 0 | AH19: 0 | AI19: 0 | AJ19: 0 | AK19: 0 | AL19: 0 | AM19: 0
B20: 90 | D20: 2970 | F20: 95.4 | H20: 0.9 | J20: 152 | L20: 8.3 | N20: 290 | P20: 2.7 | R20: 3.4 | S20: 0.59 | U20: 0.05268577426 | W20: 0.3206354114 | Y20: 0.4541553866 | AA20: 0.01 | AB20: 1 | AC20: FALSE | AD20: 0 | AE20: 0 | AF20: 0 | AG20: 0 | AH20: 0 | AI20: 0 | AJ20: 0 | AK20: 0 | AL20: 0 | AM20: 0
A21: 1500 | U21: omega | W21: =1500*2*PI()/60 -> 157.0796327 | AD21: =SUM(AD4:AD20) -> 4 | AE21: =SUM(AE4:AE20) -> 2860 | AF21: 87.7 | AG21: 0.93 | AH21: 7.1 | AI21: 13.4 | AJ21: 0.012 | AK21: 5.321001082 | AL21: 3.400334389 | AM21: 14.99022235
B22: 1.1 | D22: 1420 | F22: 83.9 | H22: 0.8 | J22: 2.4 | L22: 6.1 | N22: 7.4 | P22: 2.9 | R22: 3.4 | S22: 0.0043 | U22: =3*400^2/$W$21*(1500-D22)/1500/N22 -> 22.02360294 | W22: =SQRT(3*400^2*U22/($W$21*N22*P22)) -> 56.00025513 | Y22: =(3*400^2-N22*R22*2*$W$21*W22)/(2*$W$21*N22*R22) -> 4.726591197 | AA22: =(1500-D22)/1500 -> 0.05333333333 | AB22: 0 | AC22: FALSE | AD22: =$AC22*B22 -> 0 | AE22: =$AC22*D22 -> 0 | AF22: =$AC22*F22 -> 0 | AG22: =$AC22*H22 -> 0 | AH22: =$AC22*J22 -> 0 | AI22: =$AC22*N22 -> 0 | AJ22: =$AC22*S22 -> 0 | AK22: 0 | AL22: 0 | AM22: 0
B23: 1.5 | D23: 1440 | F23: 85.6 | H23: 0.82 | J23: 3.2 | L23: 6.9 | N23: 10 | P23: 2.8 | R23: 3.4 | S23: 0.0069 | U23: =3*400^2/$W$21*(1500-D23)/1500/N23 -> 12.22309963 | W23: =SQRT(3*400^2*U23/($W$21*N23*P23)) -> 36.52349593 | Y23: =(3*400^2-N23*R23*2*$W$21*W23)/(2*$W$21*N23*R23) -> 8.414370355 | AA23: =(1500-D23)/1500 -> 0.04 | AB23: 0 | AC23: FALSE | AD23: 0 | AE23: 0 | AF23: 0 | AG23: 0 | AH23: 0 | AI23: 0 | AJ23: 0 | AK23: 0 | AL23: 0 | AM23: 0
B24: 2.2 | D24: 1450 | F24: 86.8 | H24: 0.77 | J24: 4.8 | L24: 8.5 | N24: 14.5 | P24: 4 | R24: 4.6 | S24: 0.009 | U24: 7.024769902 | W24: 19.23812468 | Y24: 3.668733693 | AA24: 0.03333333333 | AB24: 0 | AC24: FALSE | AD24: 0 | AE24: 0 | AF24: 0 | AG24: 0 | AH24: 0 | AI24: 0 | AJ24: 0 | AK24: 0 | AL24: 0 | AM24: 0
B25: 3 | D25: 1455 | F25: 87.5 | H25: 0.81 | J25: 6.2 | L25: 7.9 | N25: 19.7 | P25: 2.7 | R25: 3.7 | S25: 0.018 | U25: 4.653464326 | W25: 16.35060698 | Y25: 4.61094404 | AA25: 0.03 | AB25: 0 | AC25: FALSE | AD25: 0 | AE25: 0 | AF25: 0 | AG25: 0 | AH25: 0 | AI25: 0 | AJ25: 0 | AK25: 0 | AL25: 0 | AM25: 0
B26: 4 | D26: 1455 | F26: 89.3 | H26: 0.76 | J26: 8.6 | L26: 8.5 | N26: 26.3 | P26: 3 | R26: 4.1 | S26: 0.018 | U26: 3.485674799 | W26: 11.618916 | Y26: 2.550493756 | AA26: 0.03 | AB26: 1 | AC26: TRUE | AD26: 4 | AE26: 1455 | AF26: 89.3 | AG26: 0.76 | AH26: 8.6 | AI26: 26.3 | AJ26: 0.018 | AK26: 3.485674799 | AL26: 2.550493756 | AM26: 11.618916
B27: 5.5 | D27: 1460 | F27: 89.3 | H27: 0.84 | J27: 10.6 | L27: 7.6 | N27: 36 | P27: 2.2 | R27: 3.4 | S27: 0.038 | U27: 2.263536968 | W27: 9.345270687 | Y27: 3.137469947 | AA27: 0.02666666667 | AB27: 1 | AC27: FALSE | AD27: 0 | AE27: 0 | AF27: 0 | AG27: 0 | AH27: 0 | AI27: 0 | AJ27: 0 | AK27: 0 | AL27: 0 | AM27: 0
B28: 7.5 | D28: 1450 | F28: 90.1 | H28: 0.87 | J28: 14 | L28: 8.5 | N28: 49 | P28: 3.3 | R28: 3.2 | S28: 0.048 | U28: 2.07875844 | W28: 6.267692524 | Y28: 3.476487665 | AA28: 0.03333333333 | AB28: 1 | AC28: FALSE | AD28: 0 | AE28: 0 | AF28: 0 | AG28: 0 | AH28: 0 | AI28: 0 | AJ28: 0 | AK28: 0 | AL28: 0 | AM28: 0
B29: 11 | D29: 1465 | F29: 91.5 | H29: 0.83 | J29: 21 | L29: 7.9 | N29: 72 | P29: 3.4 | R29: 3.4 | S29: 0.091 | U29: 0.9902974237 | W29: 3.515910393 | Y29: 2.725459924 | AA29: 0.02333333333 | AB29: 1 | AC29: FALSE | AD29: 0 | AE29: 0 | AF29: 0 | AG29: 0 | AH29: 0 | AI29: 0 | AJ29: 0 | AK29: 0 | AL29: 0 | AM29: 0
B30: 15 | D30: 1455 | F30: 91.8 | H30: 0.84 | J30: 28.5 | L30: 9.6 | N30: 98 | P30: 2.9 | R30: 3.2 | S30: 0.102 | U30: 0.9354412982 | W30: 3.17144302 | Y30: 1.700647074 | AA30: 0.03 | AB30: 1 | AC30: FALSE | AD30: 0 | AE30: 0 | AF30: 0 | AG30: 0 | AH30: 0 | AI30: 0 | AJ30: 0 | AK30: 0 | AL30: 0 | AM30: 0
B31: 18.5 | D31: 1470 | F31: 92.3 | H31: 0.84 | J31: 35 | L31: 7 | N31: 120 | P31: 3.1 | R31: 2.7 | S31: 0.161 | U31: 0.5092958179 | W31: 2.045381225 | Y31: 2.670320792 | AA31: 0.02 | AB31: 1 | AC31: FALSE | AD31: 0 | AE31: 0 | AF31: 0 | AG31: 0 | AH31: 0 | AI31: 0 | AJ31: 0 | AK31: 0 | AL31: 0 | AM31: 0
B32: 22 | D32: 1470 | F32: 93.1 | H32: 0.85 | J32: 40 | L32: 8.5 | N32: 143 | P32: 3.6 | R32: 2.9 | S32: 0.225 | U32: 0.4273811059 | W32: 1.592755342 | Y32: 2.091564537 | AA32: 0.02 | AB32: 1 | AC32: FALSE | AD32: 0 | AE32: 0 | AF32: 0 | AG32: 0 | AH32: 0 | AI32: 0 | AJ32: 0 | AK32: 0 | AL32: 0 | AM32: 0
B33: 30 | D33: 1475 | F33: 93.4 | H33: 0.84 | J33: 55 | L33: 7 | N33: 194 | P33: 2.5 | R33: 2.8 | S33: 0.34 | U33: 0.2625236175 | W33: 1.286097816 | Y33: 1.526655228 | AA33: 0.01666666667 | AB33: 1 | AC33: FALSE | AD33: 0 | AE33: 0 | AF33: 0 | AG33: 0 | AH33: 0 | AI33: 0 | AJ33: 0 | AK33: 0 | AL33: 0 | AM33: 0
B34: 37 | D34: 1480 | F34: 93.6 | H34: 0.84 | J34: 68 | L34: 6.6 | N34: 239 | P34: 2.4 | R34: 2.5 | S34: 0.37 | U34: 0.1704755876 | W34: 0.9529875058 | Y34: 1.604146308 | AA34: 0.01333333333 | AB34: 1 | AC34: FALSE | AD34: 0 | AE34: 0 | AF34: 0 | AG34: 0 | AH34: 0 | AI34: 0 | AJ34: 0 | AK34: 0 | AL34: 0 | AM34: 0
B35: 45 | D35: 1480 | F35: 94.2 | H35: 0.83 | J35: 83 | L35: 6.7 | N35: 290 | P35: 2.7 | R35: 2.6 | S35: 0.42 | U35: 0.140495398 | W35: 0.7404757643 | Y35: 1.285900169 | AA35: 0.01333333333 | AB35: 1 | AC35: FALSE | AD35: 0 | AE35: 0 | AF35: 0 | AG35: 0 | AH35: 0 | AI35: 0 | AJ35: 0 | AK35: 0 | AL35: 0 | AM35: 0
B36: 55 | D36: 1480 | F36: 94.6 | H36: 0.86 | J36: 98 | L36: 7.5 | N36: 355 | P36: 2.3 | R36: 2.8 | S36: 0.72 | U36: 0.1147708885 | W36: 0.6553879582 | Y36: 0.8817221562 | AA36: 0.01333333333 | AB36: 1 | AC36: FALSE | AD36: 0 | AE36: 0 | AF36: 0 | AG36: 0 | AH36: 0 | AI36: 0 | AJ36: 0 | AK36: 0 | AL36: 0 | AM36: 0
B37: 75 | D37: 1480 | F37: 94.8 | H37: 0.86 | J37: 132 | L37: 7.1 | N37: 486 | P37: 3.4 | R37: 3.5 | S37: 0.88 | U37: 0.08383470253 | W37: 0.3937449537 | Y37: 0.504484002 | AA37: 0.01333333333 | AB37: 1 | AC37: FALSE | AD37: 0 | AE37: 0 | AF37: 0 | AG37: 0 | AH37: 0 | AI37: 0 | AJ37: 0 | AK37: 0 | AL37: 0 | AM37: 0
B38: 90 | D38: 1475 | F38: 95 | H38: 0.88 | J38: 157 | L38: 7.7 | N38: 583 | P38: 5 | R38: 3.2 | S38: 0.95 | U38: =3*400^2/$W$21*(1500-D38)/1500/N38 -> 0.08735777322 | W38: 0.3026162033 | Y38: 0.5163629207 | AA38: 0.01666666667 | AB38: 1 | AC38: FALSE | AD38: 0 | AE38: 0 | AF38: 0 | AG38: 0 | AH38: 0 | AI38: 0 | AJ38: 0 | AK38: 0 | AL38: 0 | AM38: 0
A39: 1000 | U39: omega | W39: =1000*2*PI()/60 -> 104.7197551 | AD39: =SUM(AD22:AD38) -> 4 | AE39: =SUM(AE22:AE38) -> 1455 | AF39: 89.3 | AG39: 0.76 | AH39: 8.6 | AI39: 26.3 | AJ39: 0.018 | AK39: 3.485674799 | AL39: 2.550493756 | AM39: 11.618916
B40: 0.09 | D40: 910 | F40: 47.1 | H40: 0.56 | J40: 0.51 | L40: 2.1 | N40: 0.95 | P40: 2.1 | R40: 2.1 | S40: 0.0002 | U40: =3*400^2/$W$39*(1000-D40)/1000/N40 -> 434.2416974 | W40: =SQRT(3*400^2*U40/($W$39*N40*P40)) -> 998.8507993 | Y40: =(3*400^2-N40*R40*2*$W$39*W40)/(2*$W$39*N40*R40) -> 149.9367599 | AA40: =(1000-D40)/1000 -> 0.09 | AB40: 0 | AC40: FALSE | AD40: 0 | AE40: 0 | AF40: 0 | AG40: 0 | AH40: 0 | AI40: 0 | AJ40: 0 | AK40: 0 | AL40: 0 | AM40: 0
B41: 0.12 | D41: 910 | F41: 57.5 | H41: 0.58 | J41: 0.54 | L41: 2.1 | N41: 1.27 | P41: 2.1 | R41: 2.1 | S41: 0.00027 | U41: =3*400^2/$W$39*(1000-D41)/1000/N41 -> 324.8264665 | W41: =SQRT(3*400^2*U41/($W$39*N41*P41)) -> 747.1718577 | Y41: =(3*400^2-N41*R41*2*$W$39*W41)/(2*$W$39*N41*R41) -> 112.1574188 | AA41: =(1000-D41)/1000 -> 0.09 | AB41: 0 | AC41: FALSE | AD41: 0 | AE41: 0 | AF41: 0 | AG41: 0 | AH41: 0 | AI41: 0 | AJ41: 0 | AK41: 0 | AL41: 0 | AM41: 0
B42: 0.18 | D42: 920 | F42: 61.1 | H42: 0.69 | J42: 0.64 | L42: 2.9 | N42: 1.88 | P42: 2.1 | R42: 2.2 | S42: 0.00063 | U42: 195.0494622 | W42: 475.8719609 | Y42: 78.24582936 | AA42: 0.08 | AB42: 0 | AC42: FALSE | AD42: 0 | AE42: 0 | AF42: 0 | AG42: 0 | AH42: 0 | AI42: 0 | AJ42: 0 | AK42: 0 | AL42: 0 | AM42: 0
B43: 0.25 | D43: 920 | F43: 64.9 | H43: 0.65 | J43: 0.86 | L43: 3.2 | N43: 2.61 | P43: 2.5 | R43: 2.7 | S43: 0.00081 | U43: 140.495398 | W43: 314.1572605 | Y43: 11.06356825 | AA43: 0.08 | AB43: 0 | AC43: FALSE | AD43: 0 | AE43: 0 | AF43: 0 | AG43: 0 | AH43: 0 | AI43: 0 | AJ43: 0 | AK43: 0 | AL43: 0 | AM43: 0
B44: 0.37 | D44: 925 | F44: 72.9 | H44: 0.72 | J44: 1.04 | L44: 3.8 | N44: 3.82 | P44: 3.1 | R44: 3.4 | S44: 0.001842 | U44: 89.99337096 | W44: 186.6375571 | Y44: -10.17996695 | AA44: 0.075 | AB44: 0 | AC44: FALSE | AD44: 0 | AE44: 0 | AF44: 0 | AG44: 0 | AH44: 0 | AI44: 0 | AJ44: 0 | AK44: 0 | AL44: 0 | AM44: 0
B45: 0.55 | D45: 925 | F45: 73.3 | H45: 0.71 | J45: 1.55 | L45: 3.4 | N45: 5.68 | P45: 2.9 | R45: 3.1 | S45: 0.002176 | U45: 60.52371075 | W45: 129.7764579 | Y45: 0.382059842 | AA45: 0.075 | AB45: 0 | AC45: FALSE | AD45: 0 | AE45: 0 | AF45: 0 | AG45: 0 | AH45: 0 | AI45: 0 | AJ45: 0 | AK45: 0 | AL45: 0 | AM45: 0
B46: 0.75 | D46: 930 | F46: 71.5 | H46: 0.67 | J46: 2.36 | L46: 4 | N46: 7.5 | P46: 1.9 | R46: 2.3 | S46: 0.0032 | U46: 42.7808487 | W46: 117.3069047 | Y46: 15.55287387 | AA46: 0.07 | AB46: 0 | AC46: FALSE | AD46: 0 | AE46: 0 | AF46: 0 | AG46: 0 | AH46: 0 | AI46: 0 | AJ46: 0 | AK46: 0 | AL46: 0 | AM46: 0
B47: 1.1 | D47: 930 | F47: 74.4 | H47: 0.69 | J47: 3.25 | L47: 4 | N47: 11 | P47: 2.1 | R47: 2.4 | S47: 0.0043 | U47: 29.16876048 | W47: 76.07803852 | Y47: 10.73374862 | AA47: 0.07 | AB47: 0 | AC47: FALSE | AD47: 0 | AE47: 0 | AF47: 0 | AG47: 0 | AH47: 0 | AI47: 0 | AJ47: 0 | AK47: 0 | AL47: 0 | AM47: 0
B48: 1.5 | D48: 950 | F48: 80 | H48: 0.71 | J48: 3.92 | L48: 4.5 | N48: 15 | P48: 1.9 | R48: 2.3 | S48: 0.0082 | U48: 15.27887454 | W48: 49.57121481 | Y48: 16.85867448 | AA48: 0.05 | AB48: 0 | AC48: FALSE | AD48: 0 | AE48: 0 | AF48: 0 | AG48: 0 | AH48: 0 | AI48: 0 | AJ48: 0 | AK48: 0 | AL48: 0 | AM48: 0
B49: 2.2 | D49: 940 | F49: 80.5 | H49: 0.74 | J49: 5.4 | L49: 5.6 | N49: 22 | P49: 2.1 | R49: 2.7 | S49: 0.015 | U49: 12.50089735 | W49: 35.21728861 | Y49: 3.365727901 | AA49: 0.06 | AB49: 0 | AC49: FALSE | AD49: 0 | AE49: 0 | AF49: 0 | AG49: 0 | AH49: 0 | AI49: 0 | AJ49: 0 | AK49: 0 | AL49: 0 | AM49: 0
B50: 3 | D50: 960 | F50: 84.5 | H50: 0.75 | J50: 6.9 | L50: 6.5 | N50: 30 | P50: 2.1 | R50: 3 | S50: 0.031 | U50: 6.111549815 | W50: 21.08685021 | Y50: 4.377940688 | AA50: 0.04 | AB50: 0 | AC50: FALSE | AD50: 0 | AE50: 0 | AF50: 0 | AG50: 0 | AH50: 0 | AI50: 0 | AJ50: 0 | AK50: 0 | AL50: 0 | AM50: 0
B51: 4 | D51: 960 | F51: 85.5 | H51: 0.78 | J51: 8.7 | L51: 7.1 | N51: 40 | P51: 2.6 | R51: 2.8 | S51: 0.038 | U51: 4.583662361 | W51: 14.21333361 | Y51: 6.249444788 | AA51: 0.04 | AB51: 1 | AC51: TRUE | AD51: 4 | AE51: 960 | AF51: 85.5 | AG51: 0.78 | AH51: 8.7 | AI51: 40 | AJ51: 0.038 | AK51: 4.583662361 | AL51: 6.249444788 | AM51: 14.21333361
B52: 5.5 | D52: 955 | F52: 86 | H52: 0.78 | J52: 11.9 | L52: 7 | N52: 55 | P52: 3 | R52: 2.8 | S52: 0.045 | U52: 3.750269204 | W52: 10.20693994 | Y52: 4.675080709 | AA52: 0.045 | AB52: 1 | AC52: FALSE | AD52: 0 | AE52: 0 | AF52: 0 | AG52: 0 | AH52: 0 | AI52: 0 | AJ52: 0 | AK52: 0 | AL52: 0 | AM52: 0
B53: 7.5 | D53: 970 | F53: 89.3 | H53: 0.79 | J53: 15.4 | L53: 6.7 | N53: 74 | P53: 2 | R53: 2.8 | S53: 0.089 | U53: 1.858241498 | W53: 7.586239147 | Y53: 3.474722149 | AA53: 0.03 | AB53: 1 | AC53: FALSE | AD53: 0 | AE53: 0 | AF53: 0 | AG53: 0 | AH53: 0 | AI53: 0 | AJ53: 0 | AK53: 0 | AL53: 0 | AM53: 0
B54: 11 | D54: 970 | F54: 89.8 | H54: 0.78 | J54: 23 | L54: 7.1 | N54: 109 | P54: 2.2 | R54: 2.9 | S54: 0.107 | U54: 1.261558448 | W54: 4.910609599 | Y54: 2.339726309 | AA54: 0.03 | AB54: 1 | AC54: FALSE | AD54: 0 | AE54: 0 | AF54: 0 | AG54: 0 | AH54: 0 | AI54: 0 | AJ54: 0 | AK54: 0 | AL54: 0 | AM54: 0
B55: 15 | D55: 970 | F55: 90.8 | H55: 0.78 | J55: 31 | L55: 7 | N55: 148 | P55: 2.1 | R55: 3 | S55: 0.217 | U55: 0.9291207489 | W55: 3.701705669 | Y55: 1.46007627 | AA55: 0.03 | AB55: 1 | AC55: FALSE | AD55: 0 | AE55: 0 | AF55: 0 | AG55: 0 | AH55: 0 | AI55: 0 | AJ55: 0 | AK55: 0 | AL55: 0 | AM55: 0
B56: 18.5 | D56: 985 | F56: 91.1 | H56: 0.81 | J56: 36 | L56: 7 | N56: 179 | P56: 2.5 | R56: 2.7 | S56: 0.37 | U56: 0.3841057844 | W56: 1.983513742 | Y56: 2.75853298 | AA56: 0.015 | AB56: 1 | AC56: FALSE | AD56: 0 | AE56: 0 | AF56: 0 | AG56: 0 | AH56: 0 | AI56: 0 | AJ56: 0 | AK56: 0 | AL56: 0 | AM56: 0
B57: 22 | D57: 980 | F57: 91.7 | H57: 0.81 | J57: 43 | L57: 7.2 | N57: 214 | P57: 2.5 | R57: 2.7 | S57: 0.43 | U57: 0.4283796599 | W57: 1.915772079 | Y57: 2.050706253 | AA57: 0.02 | AB57: 1 | AC57: FALSE | AD57: 0 | AE57: 0 | AF57: 0 | AG57: 0 | AH57: 0 | AI57: 0 | AJ57: 0 | AK57: 0 | AL57: 0 | AM57: 0
B58: 30 | D58: 985 | F58: 92.8 | H58: 0.83 | J58: 56 | L58: 6.6 | N58: 291 | P58: 2.5 | R58: 2.7 | S58: 0.64 | U58: 0.2362712557 | W58: 1.220099518 | Y58: 1.696829565 | AA58: 0.015 | AB58: 1 | AC58: FALSE | AD58: 0 | AE58: 0 | AF58: 0 | AG58: 0 | AH58: 0 | AI58: 0 | AJ58: 0 | AK58: 0 | AL58: 0 | AM58: 0
B59: 37 | D59: 985 | F59: 93.7 | H59: 0.83 | J59: 69 | L59: 7.3 | N59: 359 | P59: 2.8 | R59: 2.8 | S59: 1.16 | U59: 0.1915179259 | W59: 0.9345117895 | Y59: 1.345463519 | AA59: 0.015 | AB59: 1 | AC59: FALSE | AD59: 0 | AE59: 0 | AF59: 0 | AG59: 0 | AH59: 0 | AI59: 0 | AJ59: 0 | AK59: 0 | AL59: 0 | AM59: 0
B60: 45 | D60: 985 | F60: 94.1 | H60: 0.84 | J60: 82 | L60: 7.3 | N60: 436 | P60: 2.8 | R60: 2.8 | S60: 1.49 | U60: 0.157694806 | W60: 0.7694718634 | Y60: 1.107847256 | AA60: 0.015 | AB60: 1 | AC60: FALSE | AD60: 0 | AE60: 0 | AF60: 0 | AG60: 0 | AH60: 0 | AI60: 0 | AJ60: 0 | AK60: 0 | AL60: 0 | AM60: 0
A61: 750 | U61: omega | W61: =750*2*PI()/60 -> 78.53981634 | AD61: =SUM(AD40:AD60) -> 4 | AE61: =SUM(AE40:AE60) -> 960 | AF61: 85.5 | AG61: 0.78 | AH61: 8.7 | AI61: 40 | AJ61: 0.038 | AK61: 4.583662361 | AL61: 6.249444788 | AM61: 14.21333361
B62: 0.055 | D62: 680 | F62: 38.3 | H62: 0.48 | J62: 0.45 | L62: 1.8 | N62: 0.78 | P62: 2.1 | R62: 2.1 | S62: 0.00027 | U62: =3*400^2/$W$61*(750-D62)/750/N62 -> 731.296559 | W62: =SQRT(3*400^2*U62/($W$61*N62*P62)) -> 1651.830551 | Y62: =(3*400^2-N62*R62*2*$W$61*W62)/(2*$W$61*N62*R62) -> 213.7218954 | AA62: =(750-D62)/750 -> 0.09333333333 | AB62: 0 | AC62: FALSE | AD62: 0 | AE62: 0 | AF62: 0 | AG62: 0 | AH62: 0 | AI62: 0 | AJ62: 0 | AK62: 0 | AL62: 0 | AM62: 0
B63: 0.09 | D63: 690 | F63: 45.8 | H63: 0.57 | J63: 0.52 | L63: 2.2 | N63: 1.25 | P63: 2.3 | R63: 2.3 | S63: 0.00063 | U63: =3*400^2/$W$61*(750-D63)/750/N63 -> 391.1391881 | W63: =SQRT(3*400^2*U63/($W$61*N63*P63)) -> 911.8479341 | Y63: =(3*400^2-N63*R63*2*$W$61*W63)/(2*$W$61*N63*R63) -> 151.0302946 | AA63: =(750-D63)/750 -> 0.08 | AB63: 0 | AC63: FALSE | AD63: 0 | AE63: 0 | AF63: 0 | AG63: 0 | AH63: 0 | AI63: 0 | AJ63: 0 | AK63: 0 | AL63: 0 | AM63: 0
B64: 0.12 | D64: 690 | F64: 46.4 | H64: 0.55 | J64: 0.69 | L64: 2.2 | N64: 1.67 | P64: 2.5 | R64: 2.5 | S64: 0.00081 | U64: 292.7688534 | W64: 654.6510579 | Y64: 77.2710756 | AA64: 0.08 | AB64: 0 | AC64: FALSE | AD64: 0 | AE64: 0 | AF64: 0 | AG64: 0 | AH64: 0 | AI64: 0 | AJ64: 0 | AK64: 0 | AL64: 0 | AM64: 0
B65: 0.18 | D65: 700 | F65: 59.9 | H65: 0.6 | J65: 0.75 | L65: 3.1 | N65: 2.46 | P65: 3.2 | R65: 3.6 | S65: 0.001842 | U65: 165.6246562 | W65: =SQRT(3*400^2*U65/($W$61*N65*P65)) -> 358.5878995 | Y65: =(3*400^2-N65*R65*2*$W$61*W65)/(2*$W$61*N65*R65) -> -13.53653232 | AA65: 0.06666666667 | AB65: 0 | AC65: FALSE | AD65: 0 | AE65: 0 | AF65: 0 | AG65: 0 | AH65: 0 | AI65: 0 | AJ65: 0 | AK65: 0 | AL65: 0 | AM65: 0
B66: 0.25 | D66: 700 | F66: 70.7 | H66: 0.62 | J66: 0.85 | L66: 3.1 | N66: 3.52 | P66: 2.9 | R66: 3.1 | S66: 0.002176 | U66: 115.7490495 | W66: 263.247384 | Y66: 16.79063907 | AA66: 0.06666666667 | AB66: 0 | AC66: FALSE | AD66: 0 | AE66: 0 | AF66: 0 | AG66: 0 | AH66: 0 | AI66: 0 | AJ66: 0 | AK66: 0 | AL66: 0 | AM66: 0
B67: 0.37 | D67: 700 | F67: 61.5 | H67: 0.56 | J67: 1.6 | L67: 3 | N67: 5 | P67: 1.9 | R67: 2.4 | S67: 0.0032 | U67: 81.48733086 | W67: 228.9596337 | Y67: 25.68827522 | AA67: 0.06666666667 | AB67: 0 | AC67: FALSE | AD67: 0 | AE67: 0 | AF67: 0 | AG67: 0 | AH67: 0 | AI67: 0 | AJ67: 0 | AK67: 0 | AL67: 0 | AM67: 0
B68: 0.55 | D68: 690 | F68: 62.9 | H68: 0.57 | J68: 2.35 | L68: 3 | N68: 7.5 | P68: 1.7 | R68: 2.1 | S68: 0.0043 | U68: 65.18986469 | W68: 176.7708399 | Y68: 17.24661453 | AA68: 0.08 | AB68: 0 | AC68: FALSE | AD68: 0 | AE68: 0 | AF68: 0 | AG68: 0 | AH68: 0 | AI68: 0 | AJ68: 0 | AK68: 0 | AL68: 0 | AM68: 0
B69: 0.75 | D69: 700 | F69: 72 | H69: 0.59 | J69: 2.55 | L69: 3.5 | N69: 10 | P69: 2.1 | R69: 2.7 | S69: 0.0069 | U69: 40.74366543 | W69: 108.8920262 | Y69: 4.284822188 | AA69: 0.06666666667 | AB69: =IF(B69<$AC$1,0,1) -> 0 | AC69: =AND(AB69=1,AB68=0) -> FALSE | AD69: 0 | AE69: 0 | AF69: 0 | AG69: 0 | AH69: 0 | AI69: 0 | AJ69: 0 | AK69: =AC69*U69 -> 0 | AL69: =AC69*Y69 -> 0 | AM69: =AC69*W69 -> 0
B70: 1.1 | D70: 700 | F70: 73 | H70: 0.64 | J70: 3.35 | L70: 3.5 | N70: 15 | P70: 2.1 | R70: 2.7 | S70: 0.0082 | U70: 27.16244362 | W70: 72.59468416 | Y70: 2.856548125 | AA70: 0.06666666667 | AB70: 0 | AC70: FALSE | AD70: 0 | AE70: 0 | AF70: 0 | AG70: 0 | AH70: 0 | AI70: 0 | AJ70: 0 | AK70: 0 | AL70: 0 | AM70: 0
B71: 1.5 | D71: 695 | F71: 74.5 | H71: 0.65 | J71: 4.5 | L71: 4.1 | N71: 21 | P71: 1.9 | R71: 2.5 | S71: 0.016 | U71: 21.34191999 | W71: 57.17497375 | Y71: =(3*400^2-N71*R71*2*$W$61*W71)/(2*$W$61*N71*R71) -> 1.030262586 | AA71: 0.07333333333 | AB71: 0 | AC71: FALSE | AD71: 0 | AE71: 0 | AF71: 0 | AG71: 0 | AH71: 0 | AI71: 0 | AJ71: 0 | AK71: 0 | AL71: 0 | AM71: 0
B72: 2.2 | D72: 720 | F72: 80.5 | H72: 0.67 | J72: 5.9 | L72: 5.3 | N72: 29 | P72: 1.9 | R72: 2.5 | S72: 0.038 | U72: 8.429723882 | W72: 30.57782236 | Y72: 11.57079705 | AA72: 0.04 | AB72: 0 | AC72: FALSE | AD72: 0 | AE72: 0 | AF72: 0 | AG72: 0 | AH72: 0 | AI72: 0 | AJ72: 0 | AK72: 0 | AL72: 0 | AM72: 0
B73: 3 | D73: 720 | F73: 82 | H73: 0.68 | J73: 7.8 | L73: 5.5 | N73: 40 | P73: 2.4 | R73: 2.6 | S73: 0.045 | U73: 6.111549815 | W73: 19.72494221 | Y73: 9.657508822 | AA73: 0.04 | AB73: 0 | AC73: FALSE | AD73: 0 | AE73: 0 | AF73: 0 | AG73: 0 | AH73: 0 | AI73: 0 | AJ73: 0 | AK73: 0 | AL73: 0 | AM73: 0
B74: 4 | D74: 715 | F74: 84.1 | H74: 0.69 | J74: 10 | L74: 5.2 | N74: 54 | P74: 2.1 | R74: 2.4 | S74: 0.072 | U74: 5.28158626 | W74: 16.87140844 | Y74: 6.707101651 | AA74: 0.04666666667 | AB74: 1 | AC74: TRUE | AD74: 4 | AE74: 715 | AF74: 84.1 | AG74: 0.69 | AH74: 10 | AI74: 54 | AJ74: 0.072 | AK74: 5.28158626 | AL74: 6.707101651 | AM74: 16.87140844
B75: 5.5 | D75: 710 | F75: 84.7 | H75: 0.7 | J75: 13.4 | L75: 5.4 | N75: 74 | P75: 2.4 | R75: 2.6 | S75: 0.091 | U75: 4.404720587 | W75: 12.31156832 | Y75: 3.570837645 | AA75: 0.05333333333 | AB75: 1 | AC75: FALSE | AD75: 0 | AE75: 0 | AF75: 0 | AG75: 0 | AH75: 0 | AI75: 0 | AJ75: 0 | AK75: 0 | AL75: 0 | AM75: 0
B76: 7.5 | D76: 715 | F76: 86.3 | H76: 0.7 | J76: 18.1 | L76: 5.4 | N76: 100 | P76: 2.4 | R76: 2.8 | S76: 0.131 | U76: 2.85205658 | W76: 8.52214905 | Y76: 2.391332762 | AA76: 0.04666666667 | AB76: 1 | AC76: FALSE | AD76: 0 | AE76: 0 | AF76: 0 | AG76: 0 | AH76: 0 | AI76: 0 | AJ76: 0 | AK76: 0 | AL76: 0 | AM76: 0
B77: 11 | D77: 720 | F77: 88.7 | H77: 0.76 | J77: 23.5 | L77: 5.9 | N77: 146 | P77: 2.4 | R77: 2.6 | S77: 0.224 | U77: 1.67439721 | W77: 5.404093756 | Y77: 2.645892828 | AA77: 0.04 | AB77: 1 | AC77: FALSE | AD77: 0 | AE77: 0 | AF77: 0 | AG77: 0 | AH77: 0 | AI77: 0 | AJ77: 0 | AK77: 0 | AL77: 0 | AM77: 0
B78: 15 | D78: 740 | F78: 91.1 | H78: 0.82 | J78: 29 | L78: 7.4 | N78: 194 | P78: 1.8 | R78: 3 | S78: 0.45 | U78: 0.420037788 | W78: 2.711332263 | Y78: 2.539140087 | AA78: 0.01333333333 | AB78: 1 | AC78: FALSE | AD78: 0 | AE78: 0 | AF78: 0 | AG78: 0 | AH78: 0 | AI78: 0 | AJ78: 0 | AK78: 0 | AL78: 0 | AM78: 0
B79: 18.5 | D79: 730 | F79: 91.1 | H79: 0.79 | J79: 37 | L79: 6.2 | N79: 242 | P79: 1.9 | R79: 2.7 | S79: 0.61 | U79: 0.6734490154 | W79: 2.991875764 | Y79: 1.68485351 | AA79: 0.02666666667 | AB79: 1 | AC79: FALSE | AD79: 0 | AE79: 0 | AF79: 0 | AG79: 0 | AH79: 0 | AI79: 0 | AJ79: 0 | AK79: 0 | AL79: 0 | AM79: 0
B80: 22 | D80: 730 | F80: 91.5 | H80: 0.77 | J80: 45 | L80: 6 | N80: 288 | P80: 1.9 | R80: 2.7 | S80: 0.68 | U80: 0.5658842421 | W80: 2.514006718 | Y80: 1.415744963 | AA80: 0.02666666667 | AB80: 1 | AC80: FALSE | AD80: 0 | AE80: 0 | AF80: 0 | AG80: 0 | AH80: 0 | AI80: 0 | AJ80: 0 | AK80: 0 | AL80: 0 | AM80: 0
B81: 30 | D81: 735 | F81: 92.8 | H81: 0.79 | J81: 59 | L81: 6.9 | N81: 390 | P81: 1.9 | R81: 2.9 | S81: 1.25 | U81: 0.313412811 | W81: 1.607773797 | Y81: 1.094060781 | AA81: 0.02 | AB81: 1 | AC81: FALSE | AD81: 0 | AE81: 0 | AF81: 0 | AG81: 0 | AH81: 0 | AI81: 0 | AJ81: 0 | AK81: 0 | AL81: 0 | AM81: 0
B82: 37 | D82: 735 | F82: 93.2 | H82: 0.81 | J82: 71 | L82: 7.2 | N82: 481 | P82: 2 | R82: 2.9 | S82: 1.52 | U82: 0.2541184954 | W82: 1.270592477 | Y82: 0.9200842075 | AA82: 0.02 | AB82: 1 | AC82: FALSE | AD82: 0 | AE82: 0 | AF82: 0 | AG82: 0 | AH82: 0 | AI82: 0 | AJ82: 0 | AK82: 0 | AL82: 0 | AM82: 0
B83: Asincroni monofase | AD83: =SUM(AD62:AD82) -> 4 | AE83: =SUM(AE62:AE82) -> 715 | AF83: 84.1 | AG83: 0.69 | AH83: 10 | AI83: 54 | AJ83: 0.072 | AK83: 5.28158626 | AL83: 6.707101651 | AM83: 16.87140844
B84: 0.18 | D84: 2820 | F84: 56.5 | H84: 0.92 | J84: 1.6 | L84: 3.3 | N84: 0.61 | P84: 2 | R84: 2 | S84: 0.00016 | U84: =3*400^2/$W$1*(3000-D84)/3000/N84 -> 150.2840118 | W84: =SQRT(3*400^2*U84/($W$1*N84*P84)) -> 433.8325734 | Y84: =(3*400^2-N84*R84*2*$W$1*W84)/(2*$W$1*N84*R84) -> 192.3508092 | AA84: =(3000-D84)/3000 -> 0.06 | AB84: 0 | AC84: =AND(AB84=1,AB83=0) -> FALSE | AD84: 0 | AE84: 0 | AF84: 0 | AG84: 0 | AH84: 0 | AI84: 0 | AJ84: 0 | AK84: 0 | AL84: 0 | AM84: 0
B85: 0.25 | D85: 2820 | F85: 60.5 | H85: 0.94 | J85: 1.95 | L85: 3.6 | N85: 0.85 | P85: 2 | R85: 2.1 | S85: 0.00036 | U85: =3*400^2/$W$1*(3000-D85)/3000/N85 -> 107.8508791 | W85: =SQRT(3*400^2*U85/($W$1*N85*P85)) -> 311.3386704 | Y85: =(3*400^2-N85*R85*2*$W$1*W85)/(2*$W$1*N85*R85) -> 116.6410085 | AA85: =(3000-D85)/3000 -> 0.06 | AB85: 0 | AC85: FALSE | AD85: 0 | AE85: 0 | AF85: 0 | AG85: 0 | AH85: 0 | AI85: =$AC85*N85 -> 0 | AJ85: =$AC85*S85 -> 0 | AK85: 0 | AL85: 0 | AM85: 0
B86: 0.37 | D86: 2855 | F86: 71.5 | H86: 0.99 | J86: 2.3 | L86: 4.8 | N86: 1.25 | P86: 1.7 | R86: 1.8 | S86: 0.0004 | U86: 59.07831488 | W86: 206.1010787 | Y86: 133.4294666 | AA86: 0.04833333333 | AB86: 0 | AC86: FALSE | AD86: =$AC86*B86 -> 0 | AE86: =$AC86*D86 -> 0 | AF86: =$AC86*F86 -> 0 | AG86: =$AC86*H86 -> 0 | AH86: =$AC86*J86 -> 0 | AI86: 0 | AJ86: 0 | AK86: 0 | AL86: 0 | AM86: 0
B87: 0.55 | D87: 2860 | F87: 72.5 | H87: 0.99 | J87: 3.4 | L87: 4.8 | N87: 1.85 | P87: 1.7 | R87: 1.8 | S87: 0.00045 | U87: 38.54130514 | W87: 136.8354315 | Y87: 92.57709907 | AA87: 0.04666666667 | AB87: 0 | AC87: FALSE | AD87: 0 | AE87: 0 | AF87: 0 | AG87: 0 | AH87: 0 | AI87: 0 | AJ87: 0 | AK87: 0 | AL87: 0 | AM87: 0
B88: 0.75 | D88: 2860 | F88: 74.5 | H88: 0.99 | J88: 4.4 | L88: 4.9 | N88: 2.5 | P88: 1.7 | R88: 1.8 | S88: 0.0005 | U88: 28.5205658 | W88: 101.2582193 | Y88: 68.50705332 | AA88: 0.04666666667 | AB88: 0 | AC88: FALSE | AD88: 0 | AE88: 0 | AF88: 0 | AG88: 0 | AH88: 0 | AI88: 0 | AJ88: 0 | AK88: 0 | AL88: 0 | AM88: 0
B89: 0.75 | D89: 2860 | F89: 73 | H89: 0.99 | J89: 4.4 | L89: 4.6 | N89: 2 | P89: 1.8 | R89: 2.2 | S89: 0.000722 | U89: 35.65070725 | W89: 123.0066262 | Y89: 50.61694808 | AA89: 0.04666666667 | AB89: 0 | AC89: FALSE | AD89: 0 | AE89: 0 | AF89: 0 | AG89: 0 | AH89: 0 | AI89: 0 | AJ89: 0 | AK89: 0 | AL89: 0 | AM89: 0
B90: 1.1 | D90: 2860 | F90: 74.5 | H90: 0.99 | J90: 6.5 | L90: 4.6 | N90: 3.7 | P90: 1.7 | R90: 2.1 | S90: 0.000763 | U90: 19.27065257 | W90: 68.41771575 | Y90: 29.90194021 | AA90: 0.04666666667 | AB90: 0 | AC90: FALSE | AD90: 0 | AE90: 0 | AF90: 0 | AG90: 0 | AH90: 0 | AI90: 0 | AJ90: 0 | AK90: 0 | AL90: 0 | AM90: 0
B91: 1.4 | D91: 2860 | F91: 75.5 | H91: 0.99 | J91: 8.2 | L91: 4.8 | N91: 4.7 | P91: 1.7 | R91: 2 | S91: 0.001093 | U91: 15.17051372 | W91: 53.86075496 | Y91: 27.40985428 | AA91: 0.04666666667 | AB91: 0 | AC91: FALSE | AD91: 0 | AE91: 0 | AF91: 0 | AG91: 0 | AH91: 0 | AI91: 0 | AJ91: 0 | AK91: 0 | AL91: 0 | AM91: 0
B92: 1.5 | D92: 2910 | F92: 80 | H92: 0.99 | J92: 8.2 | L92: 4.6 | N92: 5 | P92: 1.4 | R92: 1.9 | S92: 0.0019 | U92: 9.167324722 | W92: 44.73196433 | Y92: 35.68316482 | AA92: 0.03 | AB92: 0 | AC92: FALSE | AD92: 0 | AE92: 0 | AF92: 0 | AG92: 0 | AH92: 0 | AI92: 0 | AJ92: 0 | AK92: 0 | AL92: 0 | AM92: 0
B93: 2.2 | D93: 2910 | F93: 81.5 | H93: 0.99 | J93: 11.8 | L93: 4.2 | N93: 7.3 | P93: 1.1 | R93: 1.8 | S93: 0.0024 | U93: 6.278989536 | W93: 34.5646998 | Y93: 23.5740922 | AA93: 0.03 | AB93: 0 | AC93: FALSE | AD93: 0 | AE93: 0 | AF93: 0 | AG93: 0 | AH93: 0 | AI93: 0 | AJ93: 0 | AK93: 0 | AL93: 0 | AM93: 0
AD94: =SUM(AD84:AD93) -> 0 | AE94: =SUM(AE84:AE93) -> 0 | AF94: 0 | AG94: 0 | AH94: 0 | AI94: 0 | AJ94: 0 | AK94: 0 | AL94: 0 | AM94: 0
B95: 0.12 | D95: 1350 | F95: 49.5 | H95: 0.95 | J95: 1.2 | L95: 3 | N95: 0.85 | P95: 1.6 | R95: 1.5 | S95: 0.00026 | U95: =3*400^2/$W$21*(1500-D95)/1500/N95 -> 359.5029303 | W95: =SQRT(3*400^2*U95/($W$21*N95*P95)) -> 898.7573257 | Y95: =(3*400^2-N95*R95*2*$W$21*W95)/(2*$W$21*N95*R95) -> 299.5857752 | AA95: =(1500-D95)/1500 -> 0.1 | AB95: 0 | AC95: =AND(AB95=1,AB94=0) -> FALSE | AD95: 0 | AE95: 0 | AF95: 0 | AG95: 0 | AH95: 0 | AI95: 0 | AJ95: 0 | AK95: 0 | AL95: 0 | AM95: 0
B96: 0.18 | D96: 1360 | F96: 55 | H96: 0.97 | J96: 1.5 | L96: 3 | N96: 1.25 | P96: 1.6 | R96: 1.5 | S96: 0.0003 | U96: =3*400^2/$W$21*(1500-D96)/1500/N96 -> 228.1645264 | W96: =SQRT(3*400^2*U96/($W$21*N96*P96)) -> 590.4318058 | Y96: =(3*400^2-N96*R96*2*$W$21*W96)/(2*$W$21*N96*R96) -> 224.4415028 | AA96: =(1500-D96)/1500 -> 0.09333333333 | AB96: 0 | AC96: FALSE | AD96: 0 | AE96: 0 | AF96: 0 | AG96: 0 | AH96: 0 | AI96: 0 | AJ96: 0 | AK96: 0 | AL96: 0 | AM96: 0
B97: 0.25 | D97: 1410 | F97: 64 | H97: 0.99 | J97: 1.75 | L97: 4.3 | N97: 1.7 | P97: 1.7 | R97: 1.6 | S97: 0.00066 | U97: 107.8508791 | W97: 337.6942015 | Y97: 224.0291271 | AA97: 0.06 | AB97: 0 | AC97: FALSE | AD97: 0 | AE97: 0 | AF97: 0 | AG97: 0 | AH97: 0 | AI97: 0 | AJ97: 0 | AK97: 0 | AL97: 0 | AM97: 0
B98: 0.37 | D98: 1410 | F98: 67.5 | H98: 0.98 | J98: 2.45 | L98: 4.5 | N98: 2.5 | P98: 1.7 | R98: 1.6 | S98: 0.00089 | U98: 73.33859778 | W98: 229.632057 | Y98: 152.3398064 | AA98: 0.06 | AB98: 0 | AC98: FALSE | AD98: 0 | AE98: 0 | AF98: 0 | AG98: 0 | AH98: 0 | AI98: 0 | AJ98: 0 | AK98: 0 | AL98: 0 | AM98: 0
B99: 0.5 | D99: 1410 | F99: 68.5 | H99: 0.98 | J99: 3.2 | L99: 4.5 | N99: 3.4 | P99: 1.7 | R99: 1.6 | S99: 0.0011 | U99: 53.92543954 | W99: 168.8471007 | Y99: 112.0145635 | AA99: 0.06 | AB99: 0 | AC99: FALSE | AD99: 0 | AE99: 0 | AF99: 0 | AG99: 0 | AH99: 0 | AI99: 0 | AJ99: 0 | AK99: 0 | AL99: 0 | AM99: 0
B100: 0.55 | D100: 1410 | F100: 70.5 | H100: 0.93 | J100: 3.7 | L100: 4 | N100: 3.7 | P100: 1.9 | R100: 1.8 | S100: 0.001257 | U100: 49.55310661 | W100: 146.7636354 | Y100: 82.64889515 | AA100: 0.06 | AB100: 0 | AC100: FALSE | AD100: 0 | AE100: 0 | AF100: 0 | AG100: 0 | AH100: 0 | AI100: 0 | AJ100: 0 | AK100: 0 | AL100: 0 | AM100: 0
B101: 0.75 | D101: 1410 | F101: 72 | H101: 0.93 | J101: 4.9 | L101: 4.1 | N101: 5.1 | P101: 2 | R101: 1.8 | S101: 0.001565 | U101: 35.95029303 | W101: 103.7795568 | Y101: 62.65698501 | AA101: 0.06 | AB101: 0 | AC101: FALSE | AD101: 0 | AE101: 0 | AF101: 0 | AG101: 0 | AH101: 0 | AI101: 0 | AJ101: 0 | AK101: 0 | AL101: 0 | AM101: 0
B102: 0.95 | D102: 1410 | F102: 73 | H102: 0.93 | J102: 6.1 | L102: 4.1 | N102: 6.1 | P102: 1.8 | R102: 1.8 | S102: 0.001948 | U102: 30.05680237 | W102: 91.45993702 | Y102: 47.6919258 | AA102: 0.06 | AB102: 0 | AC102: FALSE | AD102: 0 | AE102: 0 | AF102: 0 | AG102: 0 | AH102: 0 | AI102: 0 | AJ102: 0 | AK102: 0 | AL102: 0 | AM102: 0
B103: 1.1 | D103: 1420 | F103: 76 | H103: 0.99 | J103: 6.3 | L103: 4 | N103: 7.35 | P103: 1.6 | R103: 1.5 | S103: 0.0032 | U103: 22.17342336 | W103: 75.90552596 | Y103: 62.67837007 | AA103: 0.05333333333 | AB103: 0 | AC103: FALSE | AD103: 0 | AE103: 0 | AF103: 0 | AG103: 0 | AH103: 0 | AI103: 0 | AJ103: 0 | AK103: 0 | AL103: 0 | AM103: 0
B104: 1.5 | D104: 1430 | F104: 79.5 | H104: 0.99 | J104: 8.3 | L104: 4.3 | N104: 10 | P104: 1.9 | R104: 1.7 | S104: 0.0043 | U104: 14.2602829 | W104: 47.89034331 | Y104: 41.98538926 | AA104: 0.04666666667 | AB104: 0 | AC104: FALSE | AD104: 0 | AE104: 0 | AF104: 0 | AG104: 0 | AH104: 0 | AI104: 0 | AJ104: 0 | AK104: 0 | AL104: 0 | AM104: 0
B105: 1.7 | D105: 1430 | F105: 79.5 | H105: 0.99 | J105: 9.4 | L105: 3.4 | N105: 11.5 | P105: 1.3 | R105: 1.6 | S105: 0.0048 | U105: 12.400246 | W105: 50.34487122 | Y105: 32.69249039 | AA105: 0.04666666667 | AB105: 0 | AC105: FALSE | AD105: 0 | AE105: 0 | AF105: 0 | AG105: 0 | AH105: 0 | AI105: 0 | AJ105: 0 | AK105: 0 | AL105: 0 | AM105: 0
B106: 1.85 | D106: 1390 | F106: 76.5 | H106: 0.99 | J106: 10.6 | L106: 3 | N106: 12.7 | P106: 1.3 | R106: 1.4 | S106: 0.0069 | U106: 17.64489448 | W106: 57.14742631 | Y106: 28.78550134 | AA106: 0.07333333333 | AB106: 0 | AC106: FALSE | AD106: 0 | AE106: 0 | AF106: 0 | AG106: 0 | AH106: 0 | AI106: 0 | AJ106: 0 | AK106: 0 | AL106: 0 | AM106: 0
B107: 2.2 | D107: 1400 | F107: 79.5 | H107: 0.99 | J107: 12 | L107: 3.2 | N107: 15 | P107: 1.2 | R107: 1.5 | S107: 0.0082 | U107: 13.58122181 | W107: 48.0168702 | Y107: 19.88923886 | AA107: 0.06666666667 | AB107: 0 | AC107: FALSE | AD107: 0 | AE107: 0 | AF107: 0 | AG107: 0 | AH107: 0 | AI107: 0 | AJ107: 0 | AK107: 0 | AL107: 0 | AM107: 0
AD108: =SUM(AD95:AD107) -> 0 | AE108: =SUM(AE95:AE107) -> 0 | AF108: 0 | AG108: 0 | AH108: 0 | AI108: 0 | AJ108: 0 | AK108: 0 | AL108: 0 | AM108: 0
B109: 0.18 | D109: 880 | F109: 52 | H109: 0.99 | J109: 1.5 | L109: 2.8 | N109: 1.95 | P109: 1.5 | R109: 1.3 | S109: 0.00063 | U109: =3*400^2/$W$39*(1000-D109)/1000/N109 -> 282.0715299 | W109: =SQRT(3*400^2*U109/($W$39*N109*P109)) -> 664.8489719 | Y109: =(3*400^2-N109*R109*2*$W$39*W109)/(2*$W$39*N109*R109) -> 239.2264444 | AA109: =(1000-D109)/1000 -> 0.12 | AB109: 0 | AC109: =AND(AB109=1,AB108=0) -> FALSE | AD109: 0 | AE109: 0 | AF109: 0 | AG109: 0 | AH109: 0 | AI109: 0 | AJ109: 0 | AK109: 0 | AL109: 0 | AM109: 0
B110: 0.25 | D110: 880 | F110: 59 | H110: 0.99 | J110: 1.9 | L110: 3 | N110: 2.7 | P110: 1.5 | R110: 1.3 | S110: 0.00081 | U110: =3*400^2/$W$39*(1000-D110)/1000/N110 -> 203.7183272 | W110: =SQRT(3*400^2*U110/($W$39*N110*P110)) -> 480.168702 | Y110: =(3*400^2-N110*R110*2*$W$39*W110)/(2*$W$39*N110*R110) -> 172.7746543 | AA110: =(1000-D110)/1000 -> 0.12 | AB110: 0 | AC110: FALSE | AD110: 0 | AE110: 0 | AF110: 0 | AG110: 0 | AH110: 0 | AI110: 0 | AJ110: 0 | AK110: 0 | AL110: 0 | AM110: 0
B111: 0.32 | D111: 880 | F111: 61 | H111: 0.99 | J111: 2.3 | L111: 3 | N111: 3.5 | P111: 1.5 | R111: 1.3 | S111: 0.0011 | U111: 157.1541381 | W111: 370.4158558 | Y111: 133.2833048 | AA111: 0.12 | AB111: 0 | AC111: FALSE | AD111: 0 | AE111: 0 | AF111: 0 | AG111: 0 | AH111: 0 | AI111: 0 | AJ111: 0 | AK111: 0 | AL111: 0 | AM111: 0
B112: 0.37 | D112: 900 | F112: 65 | H112: 0.97 | J112: 2.6 | L112: 3 | N112: 3.9 | P112: 1.8 | R112: 1.5 | S112: 0.001842 | U112: 117.5298041 | W112: 277.020405 | Y112: 114.7456088 | AA112: 0.1 | AB112: 0 | AC112: FALSE | AD112: 0 | AE112: 0 | AF112: 0 | AG112: 0 | AH112: 0 | AI112: 0 | AJ112: 0 | AK112: 0 | AL112: 0 | AM112: 0
B113: 0.55 | D113: 900 | F113: 66 | H113: 0.97 | J113: 3.8 | L113: 3.1 | N113: 5.8 | P113: 1.8 | R113: 1.5 | S113: 0.002176 | U113: 79.0286614 | W113: 186.2723413 | Y113: 77.15653005 | AA113: 0.1 | AB113: 0 | AC113: FALSE | AD113: 0 | AE113: 0 | AF113: 0 | AG113: 0 | AH113: 0 | AI113: 0 | AJ113: 0 | AK113: 0 | AL113: 0 | AM113: 0
B114: 0.65 | D114: 900 | F114: 67.5 | H114: 0.97 | J114: 4.3 | L114: 3.2 | N114: 6.9 | P114: 1.8 | R114: 1.5 | S114: 0.002576 | U114: 66.42988929 | W114: 156.5767506 | Y114: 64.85621367 | AA114: 0.1 | AB114: 0 | AC114: FALSE | AD114: 0 | AE114: 0 | AF114: 0 | AG114: 0 | AH114: 0 | AI114: 0 | AJ114: 0 | AK114: 0 | AL114: 0 | AM114: 0
B115: 0.85 | D115: 930 | F115: 71 | H115: 0.96 | J115: 5.4 | L115: 3.9 | N115: 8.65 | P115: 1.7 | R115: 1.4 | S115: 0.0043 | U115: 37.09322142 | W115: 107.527877 | Y115: 81.7232527 | AA115: 0.07 | AB115: 0 | AC115: FALSE | AD115: 0 | AE115: 0 | AF115: 0 | AG115: 0 | AH115: 0 | AI115: 0 | AJ115: 0 | AK115: 0 | AL115: 0 | AM115: 0
B116: Due Velocita 3000/1500 | AD116: =SUM(AD109:AD115) -> 0 | AE116: =SUM(AE109:AE115) -> 0 | AF116: 0 | AG116: 0 | AH116: 0 | AI116: 0 | AJ116: 0 | AK116: 0 | AL116: 0 | AM116: 0
A117: 0.11 | B117: 0.07 | C117: 2730 | D117: 1370 | E117: 53 | F117: 44 | G117: 0.75 | H117: 0.58 | I117: 0.4 | J117: 0.4 | K117: 3.4 | L117: 2.4 | M117: 0.38 | N117: 0.48 | O117: 2.2 | P117: 2.7 | Q117: 2.2 | R117: 2.6 | S117: 0.00018 | T117: =3*400^2/$W$1*Z117/M117 -> 361.8680811 | U117: =3*400^2/$W$21*(1500-D117)/1500/N117 -> 551.7371361 | V117: =SQRT(3*400^2*T117/($W$1*M117*O117)) -> 813.2380351 | W117: =SQRT(3*400^2*U117/($W$21*N117*P117)) -> 1140.576154 | X117: =(3*400^2-M117*Q117*2*$W$1*V117)/(2*$W$1*M117*Q117) -> 100.5702506 | Y117: =(3*400^2-N117*R117*2*$W$21*W117)/(2*$W$21*N117*R117) -> 83.69263913 | Z117: =(3000-C117)/3000 -> 0.09 | AA117: =(1500-D117)/1500 -> 0.08666666667 | AB117: =IF(A117<$AC$1,0,1) -> 0 | AC117: =AND(AB117=1,AB116=0) -> FALSE | AD117: =$AC117*A117 -> 0 | AE117: =$AC117*B117 -> 0 | AF117: =$AC117*C117 -> 0 | AG117: =$AC117*D117 -> 0 | AH117: =$AC117*E117 -> 0 | AI117: =$AC117*F117 -> 0 | AJ117: =$AC117*G117 -> 0 | AK117: =$AC117*H117 -> 0 | AL117: =$AC117*I117 -> 0 | AM117: =$AC117*J117 -> 0 | AN117: =$AC117*M117 -> 0 | AO117: =$AC117*N117 -> 0 | AP117: =$AC117*S117 -> 0 | AQ117: =$AC117*T117 -> 0 | AR117: =$AC117*U117 -> 0 | AS117: =$AC117*V117 -> 0 | AT117: =$AC117*W117 -> 0 | AU117: =$AC117*X117 -> 0 | AV117: =$AC117*Y117 -> 0
A118: 0.2 | B118: 0.15 | C118: 2730 | D118: 1400 | E118: 63 | F118: 54 | G118: 0.7 | H118: 0.63 | I118: 0.65 | J118: 0.65 | K118: 3.6 | L118: 3.3 | M118: 0.7 | N118: 1.02 | O118: 2.1 | P118: 2.1 | Q118: 2.1 | R118: 2.1 | S118: 0.00019 | T118: 196.4426726 | U118: 199.7238502 | V118: 451.8610759 | W118: 533.7844423 | X118: 67.82853424 | Y118: 179.5150225 | Z118: 0.09 | AA118: 0.06666666667 | AB118: 0 | AC118: =AND(AB118=1,AB117=0) -> FALSE | AD118: 0 | AE118: 0 | AF118: 0 | AG118: 0 | AH118: 0 | AI118: 0 | AJ118: 0 | AK118: 0 | AL118: 0 | AM118: 0 | AN118: 0 | AO118: 0 | AP118: 0 | AQ118: 0 | AR118: 0 | AS118: 0 | AT118: 0 | AU118: 0 | AV118: 0
A119: 0.3 | B119: 0.2 | C119: 2730 | D119: 1400 | E119: 59 | F119: 55 | G119: 0.78 | H119: 0.63 | I119: 0.95 | J119: 0.85 | K119: 2.8 | L119: 3.6 | M119: 1.05 | N119: 1.36 | O119: 1.7 | P119: 2.1 | Q119: 1.8 | R119: 2.2 | S119: 0.00026 | T119: 130.9617817 | U119: 149.7928876 | V119: 334.8103382 | W119: 400.3383317 | X119: 69.39269183 | Y119: 110.3192397 | Z119: 0.09 | AA119: 0.06666666667 | AB119: 0 | AC119: FALSE | AD119: 0 | AE119: 0 | AF119: 0 | AG119: 0 | AH119: 0 | AI119: 0 | AJ119: 0 | AK119: 0 | AL119: 0 | AM119: 0 | AN119: 0 | AO119: 0 | AP119: 0 | AQ119: 0 | AR119: 0 | AS119: 0 | AT119: 0 | AU119: 0 | AV119: 0
A120: 0.37 | B120: 0.25 | C120: 2700 | D120: 1390 | E120: 64 | F120: 57 | G120: 0.89 | H120: 0.79 | I120: 0.95 | J120: 0.8 | K120: 3 | L120: 2.9 | M120: 1.31 | N120: 1.72 | O120: 1.7 | P120: 1.9 | Q120: 1.7 | R120: 1.9 | S120: 0.00066 | T120: 116.6326301 | U120: 130.2849767 | V120: 282.8756783 | W120: 349.03327 | X120: 60.16146892 | Y120: 118.4965506 | Z120: 0.1 | AA120: 0.07333333333 | AB120: 0 | AC120: =AND(AB120=1,AB119=0) -> FALSE | AD120: 0 | AE120: 0 | AF120: 0 | AG120: 0 | AH120: 0 | AI120: 0 | AJ120: 0 | AK120: 0 | AL120: 0 | AM120: 0 | AN120: 0 | AO120: 0 | AP120: 0 | AQ120: 0 | AR120: 0 | AS120: 0 | AT120: 0 | AU120: 0 | AV120: 0
A121: 0.48 | B121: 0.31 | C121: 2700 | D121: 1390 | E121: 68 | F121: 65 | G121: 0.91 | H121: 0.76 | I121: 1.1 | J121: 0.9 | K121: 3.2 | L121: 3.4 | M121: 1.7 | N121: 2.14 | O121: 1.7 | P121: 2.1 | Q121: 1.7 | R121: 2.1 | S121: 0.00089 | T121: 89.87573257 | U121: 104.715028 | V121: 217.9806697 | W121: 266.8385996 | X121: 46.35972017 | Y121: 73.14525752 | Z121: 0.1 | AA121: 0.07333333333 | AB121: 0 | AC121: FALSE | AD121: 0 | AE121: 0 | AF121: 0 | AG121: 0 | AH121: 0 | AI121: 0 | AJ121: 0 | AK121: 0 | AL121: 0 | AM121: 0 | AN121: 0 | AO121: 0 | AP121: 0 | AQ121: 0 | AR121: 0 | AS121: 0 | AT121: 0 | AU121: 0 | AV121: 0
A122: 0.55 | B122: 0.37 | C122: 2800 | D122: 1400 | E122: 70 | F122: 68 | G122: 0.8 | H122: 0.65 | I122: 1.4 | J122: 1.2 | K122: 4.6 | L122: 4.1 | M122: 1.87 | N122: 2.52 | O122: 2.4 | P122: 2.9 | Q122: 2.4 | R122: 2.9 | S122: 0.0011 | T122: 54.47014095 | U122: 80.84060601 | V122: 136.1753524 | W122: 183.8553158 | X122: 34.04383809 | Y122: 25.21521701 | Z122: 0.06666666667 | AA122: 0.06666666667 | AB122: 0 | AC122: FALSE | AD122: 0 | AE122: 0 | AF122: 0 | AG122: 0 | AH122: 0 | AI122: 0 | AJ122: 0 | AK122: 0 | AL122: 0 | AM122: 0 | AN122: 0 | AO122: 0 | AP122: 0 | AQ122: 0 | AR122: 0 | AS122: 0 | AT122: 0 | AU122: 0 | AV122: 0
A123: 0.63 | B123: 0.5 | C123: 2690 | D123: 1400 | E123: 66 | F123: 67 | G123: 0.87 | H123: 0.79 | I123: 1.6 | J123: 1.35 | K123: 3.6 | L123: 4.2 | M123: 2.25 | N123: 3.42 | O123: 1.8 | P123: 1.9 | Q123: 1.9 | R123: 2.1 | S123: 0.0013 | T123: 70.16964602 | U123: 59.56676233 | V123: 162.7019708 | W123: 167.3681533 | X123: 15.99831617 | Y123: 45.37028357 | Z123: 0.1033333333 | AA123: 0.06666666667 | AB123: 0 | AC123: FALSE | AD123: 0 | AE123: 0 | AF123: 0 | AG123: 0 | AH123: 0 | AI123: 0 | AJ123: 0 | AK123: 0 | AL123: 0 | AM123: 0 | AN123: 0 | AO123: 0 | AP123: 0 | AQ123: 0 | AR123: 0 | AS123: 0 | AT123: 0 | AU123: 0 | AV123: 0
A124: 0.85 | B124: 0.65 | C124: 2725 | D124: 1405 | E124: 70 | F124: 70 | G124: 0.88 | H124: 0.8 | I124: 2 | J124: 1.7 | K124: 4 | L124: 4.4 | M124: 2.99 | N124: 4.43 | O124: 1.9 | P124: 2 | Q124: 1.9 | R124: 2.2 | S124: 0.0016 | T124: 46.8415886 | U124: 43.68677445 | V124: 112.2403715 | W124: 122.7492393 | X124: 22.23308861 | Y124: 34.0214824 | Z124: 0.09166666667 | AA124: 0.06333333333 | AB124: 0 | AC124: FALSE | AD124: 0 | AE124: 0 | AF124: 0 | AG124: 0 | AH124: 0 | AI124: 0 | AJ124: 0 | AK124: 0 | AL124: 0 | AM124: 0 | AN124: 0 | AO124: 0 | AP124: 0 | AQ124: 0 | AR124: 0 | AS124: 0 | AT124: 0 | AU124: 0 | AV124: 0
A125: 1.1 | B125: 0.8 | C125: 2730 | D125: 1410 | E125: 72 | F125: 71 | G125: 0.88 | H125: 0.79 | I125: 2.55 | J125: 2.05 | K125: 4.2 | L125: 4.7 | M125: 3.8 | N125: 5.38 | O125: 2 | P125: 2 | Q125: 2.1 | R125: 2.4 | S125: 0.002 | T125: 36.18680811 | U125: 34.07927406 | V125: 85.29312469 | W125: 98.37839026 | X125: 10.43917191 | Y125: 19.95242245 | Z125: 0.09 | AA125: 0.06 | AB125: 0 | AC125: =AND(AB125=1,AB124=0) -> FALSE | AD125: 0 | AE125: 0 | AF125: 0 | AG125: 0 | AH125: 0 | AI125: 0 | AJ125: 0 | AK125: 0 | AL125: 0 | AM125: 0 | AN125: 0 | AO125: 0 | AP125: 0 | AQ125: 0 | AR125: 0 | AS125: 0 | AT125: 0 | AU125: 0 | AV125: 0
A126: 1.3 | B126: 1 | C126: 2730 | D126: 1400 | E126: 71 | F126: 71 | G126: 0.88 | H126: 0.8 | I126: 3.1 | J126: 2.6 | K126: 3.9 | L126: 3.8 | M126: 4.5 | N126: 6.8 | O126: 2 | P126: 1.5 | Q126: 2.2 | R126: 2 | S126: 0.0032 | T126: 30.55774907 | U126: 29.95857752 | V126: 72.02530529 | W126: 94.73734043 | X126: 5.140727722 | Y126: 17.60732528 | Z126: 0.09 | AA126: 0.06666666667 | AB126: 0 | AC126: FALSE | AD126: 0 | AE126: 0 | AF126: 0 | AG126: 0 | AH126: 0 | AI126: 0 | AJ126: 0 | AK126: 0 | AL126: 0 | AM126: 0 | AN126: 0 | AO126: 0 | AP126: 0 | AQ126: 0 | AR126: 0 | AS126: 0 | AT126: 0 | AU126: 0 | AV126: 0
A127: 1.9 | B127: 1.5 | C127: 2820 | D127: 1420 | E127: 74 | F127: 75 | G127: 0.82 | H127: 0.76 | I127: 4.4 | J127: 3.9 | K127: 5.1 | L127: 4.4 | M127: 6.4 | N127: 10 | O127: 2.8 | P127: 2 | Q127: 3 | R127: 2.5 | S127: 0.0043 | T127: 14.32394488 | U127: 16.29746617 | V127: 34.94684713 | W127: 49.90059528 | X127: 4.841888644 | Y127: 11.21490287 | Z127: 0.06 | AA127: 0.05333333333 | AB127: 0 | AC127: FALSE | AD127: 0 | AE127: 0 | AF127: 0 | AG127: 0 | AH127: 0 | AI127: 0 | AJ127: 0 | AK127: 0 | AL127: 0 | AM127: 0 | AN127: 0 | AO127: 0 | AP127: 0 | AQ127: 0 | AR127: 0 | AS127: 0 | AT127: 0 | AU127: 0 | AV127: 0
A128: 2.5 | B128: 2.1 | C128: 2800 | D128: 1430 | E128: 68 | F128: 76 | G128: 0.88 | H128: 0.81 | I128: 6 | J128: 5 | K128: 4.8 | L128: 4.4 | M128: 8.5 | N128: 14 | O128: 2.2 | P128: 1.6 | Q128: 2.5 | R128: 2.2 | S128: 0.0069 | T128: 11.98343101 | U128: 10.18591636 | V128: 31.29071371 | W128: 37.27663694 | X128: 4.659579322 | Y128: 12.33009857 | Z128: 0.06666666667 | AA128: 0.04666666667 | AB128: 0 | AC128: FALSE | AD128: 0 | AE128: 0 | AF128: 0 | AG128: 0 | AH128: 0 | AI128: 0 | AJ128: 0 | AK128: 0 | AL128: 0 | AM128: 0 | AN128: 0 | AO128: 0 | AP128: 0 | AQ128: 0 | AR128: 0 | AS128: 0 | AT128: 0 | AU128: 0 | AV128: 0
A129: 3.4 | B129: 2.7 | C129: 2810 | D129: 1430 | E129: 78 | F129: 80 | G129: 0.88 | H129: 0.85 | I129: 7.2 | J129: 5.9 | K129: 5.3 | L129: 5.4 | M129: 11.5 | N129: 18 | O129: 2.2 | P129: 1.9 | Q129: 2.5 | R129: 2.5 | S129: 0.0082 | T129: 8.414452643 | U129: 7.922379389 | V129: 22.54230684 | W129: 26.60574628 | X129: 4.029648874 | Y129: 7.347308244 | Z129: 0.06333333333 | AA129: 0.04666666667 | AB129: 0 | AC129: FALSE | AD129: 0 | AE129: 0 | AF129: 0 | AG129: 0 | AH129: 0 | AI129: 0 | AJ129: 0 | AK129: 0 | AL129: 0 | AM129: 0 | AN129: 0 | AO129: 0 | AP129: 0 | AQ129: 0 | AR129: 0 | AS129: 0 | AT129: 0 | AU129: 0 | AV129: 0
A130: 4 | B130: 2.6 | C130: 2865 | D130: 1430 | E130: 82 | F130: 77 | G130: 0.94 | H130: 0.76 | I130: 7.6 | J130: 6.5 | K130: 6.3 | L130: 6.2 | M130: 13.3 | N130: 17.4 | O130: 1.8 | P130: 2.3 | Q130: 2.1 | R130: 2.6 | S130: 0.012 | T130: 5.169544016 | U130: 8.195564886 | V130: 18.16392617 | W130: 25.01563805 | X130: 9.188158569 | Y130: 8.757294169 | Z130: 0.045 | AA130: 0.04666666667 | AB130: 1 | AC130: TRUE | AD130: 4 | AE130: 2.6 | AF130: 2865 | AG130: 1430 | AH130: 82 | AI130: 77 | AJ130: 0.94 | AK130: 0.76 | AL130: 7.6 | AM130: 6.5 | AN130: 13.3 | AO130: 17.4 | AP130: 0.012 | AQ130: 5.169544016 | AR130: 8.195564886 | AS130: 18.16392617 | AT130: 25.01563805 | AU130: 9.188158569 | AV130: 8.757294169
A131: 4.7 | B131: 3.1 | C131: 2820 | D131: 1420 | E131: 79 | F131: 77 | G131: 0.93 | H131: 0.76 | I131: 9.2 | J131: 7.7 | K131: 5.5 | L131: 5.7 | M131: 15.9 | N131: 20.8 | O131: 1.8 | P131: 2.2 | Q131: 2.1 | R131: 2.4 | S131: 0.016 | T131: 5.765613033 | U131: 7.835320275 | V131: 17.54420175 | W131: 22.87420711 | X131: 5.335215042 | Y131: 7.73251272 | Z131: 0.06 | AA131: 0.05333333333 | AB131: 1 | AC131: FALSE | AD131: 0 | AE131: 0 | AF131: 0 | AG131: 0 | AH131: 0 | AI131: 0 | AJ131: 0 | AK131: 0 | AL131: 0 | AM131: 0 | AN131: 0 | AO131: 0 | AP131: 0 | AQ131: 0 | AR131: 0 | AS131: 0 | AT131: 0 | AU131: 0 | AV131: 0
A132: 7.2 | B132: 4.8 | C132: 2870 | D132: 1435 | E132: 84 | F132: 81 | G132: 0.93 | H132: 0.76 | I132: 13.3 | J132: 11.5 | K132: 7.1 | L132: 6.2 | M132: 24 | N132: 31.9 | O132: 2.4 | P132: 2.5 | Q132: 2.6 | R132: 2.7 | S132: 0.022 | T132: 2.75868568 | U132: 4.151000397 | V132: 8.554321154 | W132: 12.61164454 | X132: 3.688366776 | Y132: 5.127673391 | Z132: 0.04333333333 | AA132: 0.04333333333 | AB132: 1 | AC132: FALSE | AD132: 0 | AE132: 0 | AF132: 0 | AG132: 0 | AH132: 0 | AI132: 0 | AJ132: 0 | AK132: 0 | AL132: 0 | AM132: 0 | AN132: 0 | AO132: 0 | AP132: 0 | AQ132: 0 | AR132: 0 | AS132: 0 | AT132: 0 | AU132: 0 | AV132: 0
A133: 9 | B133: 6.5 | C133: 2885 | D133: 1440 | E133: 83 | F133: 82 | G133: 0.92 | H133: 0.74 | I133: 17.1 | J133: 15.6 | K133: 4.6 | L133: 4.3 | M133: 40 | N133: 43 | O133: 1.3 | P133: 1.7 | Q133: 1.9 | R133: 1.9 | S133: 0.039 | T133: 1.464225476 | U133: 2.842581309 | V133: 6.559156452 | W133: 10.90080171 | X133: 3.492734691 | Y133: 7.800391113 | Z133: 0.03833333333 | AA133: 0.04 | AB133: 1 | AC133: FALSE | AD133: =$AC133*A133 -> 0 | AE133: =$AC133*B133 -> 0 | AF133: 0 | AG133: 0 | AH133: 0 | AI133: 0 | AJ133: 0 | AK133: 0 | AL133: 0 | AM133: 0 | AN133: 0 | AO133: 0 | AP133: =$AC133*S133 -> 0 | AQ133: 0 | AR133: 0 | AS133: 0 | AT133: 0 | AU133: 0 | AV133: 0
A134: 12.5 | B134: 9 | C134: 2890 | D134: 1440 | E134: 85.5 | F134: 85.5 | G134: 0.93 | H134: 0.8 | I134: 22.5 | J134: 19 | K134: 5.2 | L134: 4.6 | M134: 41 | N134: 60 | O134: 1.4 | P134: 1.8 | Q134: 1.9 | R134: 1.9 | S134: 0.054 | T134: 1.366403414 | U134: 2.037183272 | V134: 6.030859423 | W134: 7.592133796 | X134: 3.775863643 | Y134: 5.810387727 | Z134: 0.03666666667 | AA134: 0.04 | AB134: 1 | AC134: FALSE | AD134: 0 | AE134: 0 | AF134: 0 | AG134: 0 | AH134: 0 | AI134: 0 | AJ134: 0 | AK134: 0 | AL134: 0 | AM134: 0 | AN134: 0 | AO134: 0 | AP134: 0 | AQ134: 0 | AR134: 0 | AS134: 0 | AT134: 0 | AU134: 0 | AV134: 0
A135: 15 | B135: 10.5 | C135: 2900 | D135: 1445 | E135: 87 | F135: 86 | G135: 0.93 | H135: 0.77 | I135: 27 | J135: 23 | K135: 5.8 | L135: 4.9 | M135: 49 | N135: 69 | O135: 1.6 | P135: 2.1 | Q135: 2.1 | R135: 2.1 | S135: 0.057 | T135: 1.03937922 | U135: 1.623841738 | V135: 4.500644044 | W135: 5.851919422 | X135: 2.923493243 | Y135: 4.69250745 | Z135: 0.03333333333 | AA135: 0.03666666667 | AB135: 1 | AC135: FALSE | AD135: 0 | AE135: 0 | AF135: 0 | AG135: 0 | AH135: 0 | AI135: 0 | AJ135: 0 | AK135: 0 | AL135: 0 | AM135: 0 | AN135: 0 | AO135: 0 | AP135: 0 | AQ135: 0 | AR135: 0 | AS135: 0 | AT135: 0 | AU135: 0 | AV135: 0
A136: 18 | B136: 12 | C136: 2940 | D136: 1455 | E136: 89 | F136: 89 | G136: 0.88 | H136: 0.79 | I136: 33 | J136: 25 | K136: 6.8 | L136: 5.3 | M136: 59 | N136: 79 | O136: 2.1 | P136: 2.4 | Q136: 2.6 | R136: 2.2 | S136: 0.094 | T136: 0.5179279504 | U136: 1.160420851 | V136: 2.527229623 | W136: 4.324633175 | X136: 2.452846823 | Y136: 4.466433877 | Z136: 0.02 | AA136: 0.03 | AB136: 1 | AC136: FALSE | AD136: 0 | AE136: 0 | AF136: 0 | AG136: 0 | AH136: 0 | AI136: 0 | AJ136: 0 | AK136: 0 | AL136: 0 | AM136: 0 | AN136: 0 | AO136: 0 | AP136: 0 | AQ136: 0 | AR136: 0 | AS136: 0 | AT136: 0 | AU136: 0 | AV136: 0
A137: 24 | B137: 17 | C137: 2945 | D137: 1455 | E137: 90 | F137: 90 | G137: 0.89 | H137: 0.8 | I137: 43 | J137: 34 | K137: 7.4 | L137: 5.2 | M137: 78 | N137: 111 | O137: 2.4 | P137: 2.4 | Q137: 2.8 | R137: 2.1 | S137: 0.108 | T137: 0.359118846 | U137: 0.8258851101 | V137: 1.712031924 | W137: 3.07789208 | X137: 1.785878914 | Y137: 3.476751651 | Z137: 0.01833333333 | AA137: 0.03 | AB137: 1 | AC137: FALSE | AD137: 0 | AE137: 0 | AF137: 0 | AG137: 0 | AH137: 0 | AI137: 0 | AJ137: 0 | AK137: 0 | AL137: 0 | AM137: 0 | AN137: 0 | AO137: 0 | AP137: 0 | AQ137: 0 | AR137: 0 | AS137: 0 | AT137: 0 | AU137: 0 | AV137: 0
A138: 32 | B138: 24 | C138: 2940 | D138: 1470 | E138: 89 | F138: 90.5 | G138: 0.89 | H138: 0.86 | I138: 58 | J138: 45 | K138: 6.8 | L138: 5.9 | M138: 104 | N138: 156 | O138: 1.8 | P138: 2.1 | Q138: 2.4 | R138: 2.1 | S138: 0.28 | T138: 0.2938245103 | U138: 0.3917660138 | V138: 1.548591142 | W138: 1.911622407 | X138: 1.512080841 | Y138: 2.752258709 | Z138: 0.02 | AA138: 0.02 | AB138: 1 | AC138: FALSE | AD138: 0 | AE138: 0 | AF138: 0 | AG138: 0 | AH138: 0 | AI138: 0 | AJ138: 0 | AK138: 0 | AL138: 0 | AM138: 0 | AN138: 0 | AO138: 0 | AP138: 0 | AQ138: 0 | AR138: 0 | AS138: 0 | AT138: 0 | AU138: 0 | AV138: 0
A139: 39 | B139: 29 | C139: 2950 | D139: 1470 | E139: 90.5 | F139: 91 | G139: 0.84 | H139: 0.86 | I139: 75 | J139: 53 | K139: 6.8 | L139: 7 | M139: 126 | N139: 188 | O139: 1.7 | P139: 2.2 | Q139: 2.6 | R139: 2.4 | S139: 0.34 | T139: 0.202101515 | U139: 0.325082437 | V139: 1.200661911 | W139: 1.54976971 | X139: 1.131278647 | Y139: 1.836505675 | Z139: 0.01666666667 | AA139: 0.02 | AB139: 1 | AC139: FALSE | AD139: 0 | AE139: 0 | AF139: 0 | AG139: 0 | AH139: 0 | AI139: 0 | AJ139: 0 | AK139: 0 | AL139: 0 | AM139: 0 | AN139: 0 | AO139: 0 | AP139: 0 | AQ139: 0 | AR139: 0 | AS139: 0 | AT139: 0 | AU139: 0 | AV139: 0
A140: 42 | B140: 32 | C140: 2955 | D140: 1475 | E140: 92.5 | F140: 93 | G140: 0.92 | H140: 0.88 | I140: 71 | J140: 57 | K140: 7.1 | L140: 6.5 | M140: 136 | N140: 207 | O140: 1.5 | P140: 1.9 | Q140: 2.5 | R140: 2.3 | S140: 0.49 | T140: 0.1685169986 | U140: 0.246036627 | V140: 1.123446657 | W140: 1.382606484 | X140: 1.123446657 | Y140: 1.826566912 | Z140: 0.015 | AA140: 0.01666666667 | AB140: 1 | AC140: FALSE | AD140: 0 | AE140: 0 | AF140: 0 | AG140: 0 | AH140: 0 | AI140: 0 | AJ140: 0 | AK140: 0 | AL140: 0 | AM140: 0 | AN140: 0 | AO140: 0 | AP140: 0 | AQ140: 0 | AR140: 0 | AS140: 0 | AT140: 0 | AU140: 0 | AV140: 0
A141: 50 | B141: 40 | C141: 2960 | D141: 1475 | E141: 92.5 | F141: 93 | G141: 0.84 | H141: 0.87 | I141: 94 | J141: 71 | K141: 7.4 | L141: 7.1 | M141: 161 | N141: 259 | O141: 1.8 | P141: 2 | Q141: 2.8 | R141: 2.5 | S141: 0.49 | T141: 0.1265331225 | U141: 0.1966393119 | V141: 0.8167677934 | W141: 1.077037868 | X141: 0.8778722395 | Y141: 1.282633875 | Z141: 0.01333333333 | AA141: 0.01666666667 | AB141: 1 | AC141: FALSE | AD141: 0 | AE141: 0 | AF141: 0 | AG141: 0 | AH141: 0 | AI141: 0 | AJ141: 0 | AK141: 0 | AL141: 0 | AM141: 0 | AN141: 0 | AO141: 0 | AP141: 0 | AQ141: 0 | AR141: 0 | AS141: 0 | AT141: 0 | AU141: 0 | AV141: 0
A142: 68 | B142: 50 | C142: 2940 | D142: 1475 | E142: 93 | F142: 93.5 | G142: 0.93 | H142: 0.88 | I142: 113 | J142: 87 | K142: 6.6 | L142: 6.9 | M142: 220 | N142: 324 | O142: 1.5 | P142: 2.1 | Q142: 2.4 | R142: 2.5 | S142: 0.89 | T142: 0.1388988594 | U142: 0.1571900673 | V142: 0.8019329388 | W142: 0.8402162518 | X142: 0.6449301802 | Y142: 1.046064555 | Z142: 0.02 | AA142: 0.01666666667 | AB142: 1 | AC142: FALSE | AD142: 0 | AE142: 0 | AF142: 0 | AG142: 0 | AH142: 0 | AI142: 0 | AJ142: 0 | AK142: 0 | AL142: 0 | AM142: 0 | AN142: 0 | AO142: 0 | AP142: 0 | AQ142: 0 | AR142: 0 | AS142: 0 | AT142: 0 | AU142: 0 | AV142: 0
A143: 50 | B143: 25 | C143: 2965 | D143: 1485 | E143: 93 | F143: 93 | G143: 0.91 | H143: 0.76 | I143: 86 | J143: 52 | K143: 8.9 | L143: 8.5 | M143: 161 | N143: 161 | O143: 2.1 | P143: 3.5 | Q143: 2.9 | R143: 2.9 | S143: 0.57 | T143: 0.1107164822 | U143: 0.1897996837 | V143: 0.7073416581 | W143: 1.014521984 | X143: 0.9288625117 | Y143: 2.257886356 | Z143: 0.01166666667 | AA143: 0.01 | AB143: =IF(A143<$AC$1,0,1) -> 1 | AC143: FALSE | AD143: =$AC143*A143 -> 0 | AE143: =$AC143*B143 -> 0 | AF143: 0 | AG143: 0 | AH143: 0 | AI143: 0 | AJ143: 0 | AK143: 0 | AL143: 0 | AM143: 0 | AN143: 0 | AO143: 0 | AP143: =$AC143*S143 -> 0 | AQ143: 0 | AR143: 0 | AS143: 0 | AT143: 0 | AU143: 0 | AV143: 0
A144: 1500/750 | AD144: =SUM(AD117:AD143) -> 4 | AE144: 2.6 | AF144: 2865 | AG144: 1430 | AH144: 82 | AI144: 77 | AJ144: 0.94 | AK144: 0.76 | AL144: 7.6 | AM144: 6.5 | AN144: 13.3 | AO144: 17.4 | AP144: 0.012 | AQ144: 5.169544016 | AR144: 8.195564886 | AS144: 18.16392617 | AT144: 25.01563805 | AU144: 9.188158569 | AV144: 8.757294169
A145: 0.11 | B145: 0.06 | C145: 1390 | D145: 660 | E145: 54 | F145: 33 | G145: 0.6 | H145: 0.54 | I145: 0.5 | J145: 0.5 | K145: 3 | L145: 1.7 | M145: 0.75 | N145: 0.87 | O145: 2.5 | P145: 2.5 | Q145: 2.6 | R145: 2.6 | S145: 0.00026 | T145: =3*400^2/$W$21*(1500-C145)/1500/M145 -> 298.7868798 | U145: =3*400^2/$W$39*(750-D145)/750/N145 -> 632.2292912 | V145: =SQRT(3*400^2*T145/($W$21*M145*O145)) -> 697.8158114 | W145: =SQRT(3*400^2*U145/($W$39*N145*P145)) -> 1154.287481 | X145: =(3*400^2-M145*Q145*2*$W$21*V145)/(2*$W$21*M145*Q145) -> 85.7162161 | Y145: =(3*400^2-N145*R145*2*$W$39*W145)/(2*$W$39*N145*R145) -> -141.0995143 | Z145: =(1500-C145)/1500 -> 0.07333333333 | AA145: =(1000-D145)/1000 -> 0.34 | AB145: =IF(A145<$AC$1,0,1) -> 0 | AC145: FALSE | AD145: =$AC145*A145 -> 0 | AE145: =$AC145*B145 -> 0 | AF145: =$AC145*C145 -> 0 | AG145: =$AC145*D145 -> 0 | AH145: =$AC145*E145 -> 0 | AI145: =$AC145*F145 -> 0 | AJ145: =$AC145*G145 -> 0 | AK145: =$AC145*H145 -> 0 | AL145: =$AC145*I145 -> 0 | AM145: =$AC145*J145 -> 0 | AN145: =$AC145*M145 -> 0 | AO145: =$AC145*N145 -> 0 | AP145: =$AC145*S145 -> 0 | AQ145: =$AC145*T145 -> 0 | AR145: =$AC145*U145 -> 0 | AS145: =$AC145*V145 -> 0 | AT145: =$AC145*W145 -> 0 | AU145: =$AC145*X145 -> 0 | AV145: =$AC145*Y145 -> 0 | BW145: M3VA | BX145: 71 | BY145: A | BZ145: 3GVA | CA145: 79 | CB145: 231-封B
A146: 0.18 | B146: 0.11 | C146: 1350 | D146: 680 | E146: 54 | F146: 37 | G146: 0.8 | H146: 0.7 | I146: 0.6 | J146: 0.6 | K146: 3.1 | L146: 2.1 | M146: 1.27 | N146: 1.54 | O146: 1.9 | P146: 2 | Q146: 2 | R146: 1.9 | S146: 0.00066 | T146: 240.6121974 | U146: 277.7977189 | V146: 552.0022385 | W146: 642.9767795 | X146: 49.52825506 | Y146: 140.2874654 | Z146: 0.1 | AA146: 0.32 | AB146: 0 | AC146: FALSE | AD146: 0 | AE146: 0 | AF146: 0 | AG146: 0 | AH146: 0 | AI146: 0 | AJ146: 0 | AK146: 0 | AL146: 0 | AM146: 0 | AN146: 0 | AO146: 0 | AP146: 0 | AQ146: 0 | AR146: 0 | AS146: 0 | AT146: 0 | AU146: 0 | AV146: 0 | BW146: M3VA | BX146: 71 | BY146: B | BZ146: 3GVA | CA146: 79 | CB146: 232-封B
A147: 0.3 | B147: 0.15 | C147: 1350 | D147: 680 | E147: 60 | F147: 47 | G147: 0.8 | H147: 0.51 | I147: 0.9 | J147: 0.9 | K147: 2.9 | L147: 2.1 | M147: 2.12 | N147: 2.11 | O147: 1.6 | P147: 2.4 | Q147: 1.6 | R147: 2.2 | S147: 0.00089 | T147: 144.1403258 | U147: 202.7528375 | V147: 360.3508145 | W147: 428.3935581 | X147: 90.08770364 | Y147: 65.32276689 | Z147: 0.1 | AA147: 0.32 | AB147: 0 | AC147: FALSE | AD147: 0 | AE147: 0 | AF147: 0 | AG147: 0 | AH147: 0 | AI147: 0 | AJ147: 0 | AK147: 0 | AL147: 0 | AM147: 0 | AN147: 0 | AO147: 0 | AP147: 0 | AQ147: 0 | AR147: 0 | AS147: 0 | AT147: 0 | AU147: 0 | AV147: 0 | BW147: M3VA | BX147: 80 | BY147: A | BZ147: 3GVA | CA147: 89 | CB147: 231-封B
A148: 0.45 | B148: 0.25 | C148: 1380 | D148: 700 | E148: 65 | F148: 48 | G148: 0.87 | H148: 0.58 | I148: 1.15 | J148: 1.3 | K148: 3.5 | L148: 2.7 | M148: 3.12 | N148: 3.42 | O148: 1.7 | P148: 2.1 | Q148: 1.7 | R148: 2.1 | S148: 0.0019 | T148: 78.35320275 | U148: 89.35014349 | V148: 212.4649518 | W148: 238.7983031 | X148: 75.59829361 | Y148: 80.30935218 | Z148: 0.08 | AA148: 0.3 | AB148: 0 | AC148: FALSE | AD148: 0 | AE148: 0 | AF148: 0 | AG148: 0 | AH148: 0 | AI148: 0 | AJ148: 0 | AK148: 0 | AL148: 0 | AM148: 0 | AN148: 0 | AO148: 0 | AP148: 0 | AQ148: 0 | AR148: 0 | AS148: 0 | AT148: 0 | AU148: 0 | AV148: 0 | BW148: M3VA | BX148: 80 | BY148: B | BZ148: 3GVA | CA148: 89 | CB148: 232-封B
A149: 0.63 | B149: 0.33 | C149: 1350 | D149: 680 | E149: 63 | F149: 48 | G149: 0.88 | H149: 0.64 | I149: 1.65 | J149: 1.55 | K149: 3.5 | L149: 2.8 | M149: 4.46 | N149: 4.64 | O149: 1.7 | P149: 2.2 | Q149: 1.7 | R149: 2.2 | S149: 0.0022 | T149: 68.51513245 | U149: 92.20010496 | V149: 166.1736047 | W149: 203.4706098 | X149: 35.34149071 | Y149: 21.04263277 | Z149: 0.1 | AA149: 0.32 | AB149: 0 | AC149: FALSE | AD149: 0 | AE149: 0 | AF149: 0 | AG149: 0 | AH149: 0 | AI149: 0 | AJ149: 0 | AK149: 0 | AL149: 0 | AM149: 0 | AN149: 0 | AO149: 0 | AP149: 0 | AQ149: 0 | AR149: 0 | AS149: 0 | AT149: 0 | AU149: 0 | AV149: 0 | BW149: M3VA | BX149: 80 | BY149: C | BZ149: 3GVA | CA149: 89 | CB149: 233-封B
A150: 0.75 | B150: 0.37 | C150: 1335 | D150: 690 | E150: 68 | F150: 49 | G150: 0.89 | H150: 0.62 | I150: 1.8 | J150: 1.76 | K150: 3.9 | L150: 2.9 | M150: 5.37 | N150: 5.12 | O150: 1.9 | P150: 2.5 | Q150: 1.9 | R150: 2.5 | S150: 0.0025 | T150: 62.59501672 | U150: 71.61972439 | V150: 136.9199137 | W150: 160.1465723 | X150: 12.82893013 | Y150: 18.90273871 | Z150: 0.11 | AA150: 0.31 | AB150: 0 | AC150: FALSE | AD150: 0 | AE150: 0 | AF150: 0 | AG150: 0 | AH150: 0 | AI150: 0 | AJ150: 0 | AK150: 0 | AL150: 0 | AM150: 0 | AN150: 0 | AO150: 0 | AP150: 0 | AQ150: 0 | AR150: 0 | AS150: 0 | AT150: 0 | AU150: 0 | AV150: 0 | BW150: M3AA | BX150: 90 | BY150: S | BZ150: 3GAA | CA150: 98 | CB150: 216-封E
A151: 0.7 | B151: 0.37 | C151: 1420 | D151: 700 | E151: 72 | F151: 50 | G151: 0.8 | H151: 0.57 | I151: 1.8 | J151: 1.9 | K151: 4.4 | L151: 2.3 | M151: 4.7 | N151: 5.1 | O151: 1.6 | P151: 1.6 | Q151: 2.3 | R151: 2.2 | S151: 0.0032 | T151: 34.67545994 | U151: 59.91715505 | V151: 118.7033225 | W151: 183.4580709 | X151: 22.63686747 | Y151: 20.80495769 | Z151: 0.05333333333 | AA151: 0.3 | AB151: 0 | AC151: FALSE | AD151: 0 | AE151: 0 | AF151: 0 | AG151: 0 | AH151: 0 | AI151: 0 | AJ151: 0 | AK151: 0 | AL151: 0 | AM151: 0 | AN151: 0 | AO151: 0 | AP151: 0 | AQ151: 0 | AR151: 0 | AS151: 0 | AT151: 0 | AU151: 0 | AV151: 0 | BW151: M3AA | BX151: 90 | BY151: L | BZ151: 3GAA | CA151: 98 | CB151: 217-封E
A152: 1.1 | B152: 0.55 | C152: 1390 | D152: 685 | E152: 70 | F152: 55 | G152: 0.84 | H152: 0.58 | I152: 2.6 | J152: 2.6 | K152: 4.1 | L152: 2.3 | M152: 7.4 | N152: 7.5 | O152: 1.4 | P152: 1.5 | Q152: 2 | R152: 2.1 | S152: 0.0043 | T152: 30.28245404 | U152: 52.96676506 | V152: 94.50968939 | W152: 146.9033749 | X152: 8.725949376 | Y152: -1.390284037 | Z152: 0.07333333333 | AA152: 0.315 | AB152: 0 | AC152: FALSE | AD152: 0 | AE152: 0 | AF152: 0 | AG152: 0 | AH152: 0 | AI152: 0 | AJ152: 0 | AK152: 0 | AL152: 0 | AM152: 0 | AN152: 0 | AO152: 0 | AP152: 0 | AQ152: 0 | AR152: 0 | AS152: 0 | AT152: 0 | AU152: 0 | AV152: 0 | BW152: M3AA | BX152: 100 | BY152: LB | BZ152: 3GAA | CA152: 108 | CB152: 215-封A
A153: 1.5 | B153: 0.75 | C153: 1440 | D153: 710 | E153: 76 | F153: 62 | G153: 0.85 | H153: 0.57 | I153: 3.4 | J153: 3.2 | K153: 4.6 | L153: 2.8 | M153: 10 | N153: 10 | O153: 1.4 | P153: 1.5 | Q153: 2.2 | R153: 2.2 | S153: 0.0069 | T153: 12.22309963 | U153: 24.44619926 | V153: 51.65202329 | W153: 86.43036635 | X153: 17.79740642 | Y153: 17.74377822 | Z153: 0.04 | AA153: 0.29 | AB153: 0 | AC153: FALSE | AD153: 0 | AE153: 0 | AF153: 0 | AG153: 0 | AH153: 0 | AI153: 0 | AJ153: 0 | AK153: 0 | AL153: 0 | AM153: 0 | AN153: 0 | AO153: 0 | AP153: 0 | AQ153: 0 | AR153: 0 | AS153: 0 | AT153: 0 | AU153: 0 | AV153: 0 | BW153: M3AA | BX153: 112 | BY153: M | BZ153: 3GAA | CA153: 118 | CB153: 202-封C
A154: 2 | B154: 0.95 | C154: 1440 | D154: 710 | E154: 78 | F154: 64 | G154: 0.86 | H154: 0.55 | I154: 4.4 | J154: 4 | K154: 4.8 | L154: 2.9 | M154: 13 | N154: 12 | O154: 1.4 | P154: 1.6 | Q154: 2.2 | R154: 2.3 | S154: 0.0082 | T154: 9.40238433 | U154: 20.37183272 | V154: 39.73232561 | W154: 69.73820198 | X154: 13.69031263 | Y154: 13.29915964 | Z154: 0.04 | AA154: 0.29 | AB154: 0 | AC154: FALSE | AD154: 0 | AE154: 0 | AF154: 0 | AG154: 0 | AH154: 0 | AI154: 0 | AJ154: 0 | AK154: 0 | AL154: 0 | AM154: 0 | AN154: 0 | AO154: 0 | AP154: 0 | AQ154: 0 | AR154: 0 | AS154: 0 | AT154: 0 | AU154: 0 | AV154: 0 | BW154: M3AA | BX154: 132 | BY154: S | BZ154: 3GAA | CA154: 138 | CB154: 223-封C
A155: 2.5 | B155: 1.5 | C155: 1410 | D155: 705 | E155: 78 | F155: 67 | G155: 0.9 | H155: 0.66 | I155: 5.1 | J155: 4.9 | K155: 5.5 | L155: 4.1 | M155: 16.9 | N155: 20.3 | O155: 1.4 | P155: 1.5 | Q155: 2.1 | R155: 2.4 | S155: 0.018 | T155: 10.848905 | U155: 13.54777053 | V155: 37.43227847 | W155: 45.15923508 | X155: 5.61893183 | Y155: 1.881634795 | Z155: 0.06 | AA155: 0.295 | AB155: 0 | AC155: FALSE | AD155: 0 | AE155: 0 | AF155: 0 | AG155: 0 | AH155: 0 | AI155: 0 | AJ155: 0 | AK155: 0 | AL155: 0 | AM155: 0 | AN155: 0 | AO155: 0 | AP155: 0 | AQ155: 0 | AR155: 0 | AS155: 0 | AT155: 0 | AU155: 0 | AV155: 0 | BW155: M3AA | BX155: 132 | BY155: M | BZ155: 3GAA | CA155: 138 | CB155: 224-封C
A156: 3.8 | B156: 1.9 | C156: 1450 | D156: 730 | E156: 82 | F156: 70 | G156: 0.86 | H156: 0.52 | I156: 7.7 | J156: 7.6 | K156: 5.6 | L156: 3.7 | M156: 25 | N156: 24.9 | O156: 1.4 | P156: 1.3 | Q156: 2.1 | R156: 2.7 | S156: 0.038 | T156: 4.074366543 | U156: 4.908875353 | V156: 18.8606522 | W156: 26.36488991 | X156: 10.24196597 | Y156: 7.724522261 | Z156: 0.03333333333 | AA156: 0.27 | AB156: 1 | AC156: TRUE | AD156: 3.8 | AE156: 1.9 | AF156: 1450 | AG156: 730 | AH156: 82 | AI156: 70 | AJ156: 0.86 | AK156: 0.52 | AL156: 7.7 | AM156: 7.6 | AN156: 25 | AO156: 24.9 | AP156: 0.038 | AQ156: 4.074366543 | AR156: 4.908875353 | AS156: 18.8606522 | AT156: 26.36488991 | AU156: 10.24196597 | AV156: 7.724522261 | BW156: M3AA | BX156: 160 | BY156: M | BZ156: 3GAA | CA156: 168 | CB156: 361-封C
A157: 5 | B157: 2.5 | C157: 1455 | D157: 730 | E157: 85 | F157: 73 | G157: 0.88 | H157: 0.52 | I157: 9.6 | J157: 9.6 | K157: 6.9 | L157: 4.8 | M157: 32.8 | N157: 32.7 | O157: 1.7 | P157: 2 | Q157: 2.4 | R157: 2.8 | S157: 0.048 | T157: 2.794916074 | U157: 3.737950957 | V157: 12.37609639 | W157: 16.18580243 | X157: 7.033043007 | Y157: 8.845119153 | Z157: 0.03 | AA157: 0.27 | AB157: 1 | AC157: =AND(AB157=1,AB156=0) -> FALSE | AD157: 0 | AE157: 0 | AF157: 0 | AG157: 0 | AH157: 0 | AI157: 0 | AJ157: 0 | AK157: 0 | AL157: 0 | AM157: 0 | AN157: 0 | AO157: 0 | AP157: 0 | AQ157: 0 | AR157: 0 | AS157: 0 | AT157: 0 | AU157: 0 | AV157: 0 | BW157: M3AA | BX157: 160 | BY157: L | BZ157: 3GAA | CA157: 168 | CB157: 362-封C
A158: 8 | B158: 4.5 | C158: 1440 | D158: 730 | E158: 84.5 | F158: 79.5 | G158: 0.86 | H158: 0.6 | I158: 16 | J158: 13.5 | K158: 4.5 | L158: 3.4 | M158: 53 | N158: 59 | O158: 1.3 | P158: 1.4 | Q158: 1.8 | R158: 1.9 | S158: 0.089 | T158: 2.306245213 | U158: 2.071711802 | V158: 10.11355429 | W158: 10.72212722 | X158: 5.902037464 | Y158: 9.722397134 | Z158: 0.04 | AA158: 0.27 | AB158: 1 | AC158: =AND(AB158=1,AB157=0) -> FALSE | AD158: 0 | AE158: 0 | AF158: 0 | AG158: 0 | AH158: 0 | AI158: 0 | AJ158: 0 | AK158: 0 | AL158: 0 | AM158: 0 | AN158: 0 | AO158: 0 | AP158: 0 | AQ158: 0 | AR158: 0 | AS158: 0 | AT158: 0 | AU158: 0 | AV158: 0 | BW158: M3AA | BX158: 180 | BY158: L | BZ158: 3GAA | CA158: 188 | CB158: 354-封C
A159: 12 | B159: 7 | C159: 1445 | D159: 730 | E159: 86.5 | F159: 81 | G159: 0.87 | H159: 0.59 | I159: 23 | J159: 21 | K159: 5 | L159: 3.5 | M159: 79 | N159: 92 | O159: 1.5 | P159: 1.4 | Q159: 1.9 | R159: 1.9 | S159: 0.119 | T159: 1.418292151 | U159: 1.328597786 | V159: 6.047618052 | W159: 6.876146807 | X159: 4.131512219 | Y159: 6.235015553 | Z159: 0.03666666667 | AA159: 0.27 | AB159: 1 | AC159: =AND(AB159=1,AB158=0) -> FALSE | AD159: 0 | AE159: 0 | AF159: 0 | AG159: 0 | AH159: 0 | AI159: 0 | AJ159: 0 | AK159: 0 | AL159: 0 | AM159: 0 | AN159: 0 | AO159: 0 | AP159: 0 | AQ159: 0 | AR159: 0 | AS159: 0 | AT159: 0 | AU159: 0 | AV159: 0 | BW159: M3AA | BX159: 200 | BY159: MLA | BZ159: 3GAA | CA159: 208 | CB159: 204-封C
A160: 16 | B160: 8 | C160: 1460 | D160: 730 | E160: 88 | F160: 78.5 | G160: 0.86 | H160: 0.53 | I160: 31 | J160: 28 | K160: 1.9 | L160: 3.4 | M160: 105 | N160: 104 | O160: 1.4 | P160: 1.6 | Q160: 1.9 | R160: 2.1 | S160: 0.224 | T160: 0.7760698177 | U160: 1.175298041 | V160: 4.016542897 | W160: 5.689887176 | X160: 3.642040831 | Y160: 4.803845336 | Z160: 0.02666666667 | AA160: 0.27 | AB160: 1 | AC160: FALSE | AD160: 0 | AE160: 0 | AF160: 0 | AG160: 0 | AH160: 0 | AI160: 0 | AJ160: 0 | AK160: 0 | AL160: 0 | AM160: 0 | AN160: 0 | AO160: 0 | AP160: 0 | AQ160: 0 | AR160: 0 | AS160: 0 | AT160: 0 | AU160: 0 | AV160: 0 | BW160: M3AA | BX160: 200 | BY160: MLB | BZ160: 3GAA | CA160: 208 | CB160: 205-封C
A161: 22 | B161: 13 | C161: 1475 | D161: 735 | E161: 87.5 | F161: 86 | G161: 0.81 | H161: 0.69 | I161: 45 | J161: 32 | K161: 6.5 | L161: 5.9 | M161: 142 | N161: 169 | O161: 2 | P161: 2.5 | Q161: 2.6 | R161: 2.7 | S161: 0.36 | T161: 0.3586590267 | U161: 0.5424452498 | V161: 1.964456394 | W161: 2.425888905 | X161: 2.173916991 | Y161: 2.596752297 | Z161: 0.01666666667 | AA161: 0.265 | AB161: 1 | AC161: FALSE | AD161: 0 | AE161: 0 | AF161: 0 | AG161: 0 | AH161: 0 | AI161: 0 | AJ161: 0 | AK161: 0 | AL161: 0 | AM161: 0 | AN161: 0 | AO161: 0 | AP161: 0 | AQ161: 0 | AR161: 0 | AS161: 0 | AT161: 0 | AU161: 0 | AV161: 0 | BW161: M3AA | BX161: 200 | BY161: MLC | BZ161: 3GAA | CA161: 208 | CB161: 206-封C
A162: 25 | B162: 15 | C162: 1475 | D162: 735 | E162: 89 | F162: 86 | G162: 0.86 | H162: 0.67 | I162: 47 | J162: 38 | K162: 7.6 | L162: 6 | M162: 162 | N162: 195 | O162: 2.2 | P162: 2.6 | Q162: 2.7 | R162: 2.7 | S162: 0.42 | T162: 0.3143801345 | U162: 0.4701192165 | V162: 1.641796707 | W162: 2.061609144 | X162: 1.851315899 | Y162: 2.291346564 | Z162: 0.01666666667 | AA162: 0.265 | AB162: 1 | AC162: FALSE | AD162: 0 | AE162: 0 | AF162: 0 | AG162: 0 | AH162: 0 | AI162: 0 | AJ162: 0 | AK162: 0 | AL162: 0 | AM162: 0 | AN162: 0 | AO162: 0 | AP162: 0 | AQ162: 0 | AR162: 0 | AS162: 0 | AT162: 0 | AU162: 0 | AV162: 0 | BW162: M3AA | BX162: 225 | BY162: SMB | BZ162: 3GAA | CA162: 228 | CB162: 203-封C
A163: 29 | B163: 17 | C163: 1475 | D163: 735 | E163: 90 | F163: 88 | G163: 0.91 | H163: 0.75 | I163: 52 | J163: 38 | K163: 7.2 | L163: 6.1 | M163: 188 | N163: 221 | O163: 2.2 | P163: 2.6 | Q163: 2.4 | R163: 2.4 | S163: 0.48 | T163: 0.2709020308 | U163: 0.4148110734 | V163: 1.414739715 | W163: 1.819066892 | X163: 1.97153567 | Y163: 2.501881789 | Z163: 0.01666666667 | AA163: 0.265 | AB163: 1 | AC163: FALSE | AD163: 0 | AE163: 0 | AF163: 0 | AG163: 0 | AH163: 0 | AI163: 0 | AJ163: 0 | AK163: 0 | AL163: 0 | AM163: 0 | AN163: 0 | AO163: 0 | AP163: 0 | AQ163: 0 | AR163: 0 | AS163: 0 | AT163: 0 | AU163: 0 | AV163: 0 | BW163: M3AA | BX163: 225 | BY163: SMC | BZ163: 3GAA | CA163: 228 | CB163: 204-封C
A164: 35 | B164: 21 | C164: 1475 | D164: 735 | E164: 90 | F164: 89 | G164: 0.9 | H164: 0.74 | I164: 63 | J164: 47 | K164: 6.7 | L164: 5.8 | M164: 227 | N164: 273 | O164: 1.7 | P164: 2.1 | Q164: 2.2 | R164: 2.3 | S164: 0.63 | T164: 0.2243593911 | U164: 0.3357994404 | V164: 1.332893399 | W164: 1.638533492 | X164: 1.726552844 | Y164: 2.011460425 | Z164: 0.01666666667 | AA164: 0.265 | AB164: 1 | AC164: FALSE | AD164: 0 | AE164: 0 | AF164: 0 | AG164: 0 | AH164: 0 | AI164: 0 | AJ164: 0 | AK164: 0 | AL164: 0 | AM164: 0 | AN164: 0 | AO164: 0 | AP164: 0 | AQ164: 0 | AR164: 0 | AS164: 0 | AT164: 0 | AU164: 0 | AV164: 0 | BW164: M3AA | BX164: 250 | BY164: SMB | BZ164: 3GAA | CA164: 258 | CB164: 202-封C
A165: 42 | B165: 25 | C165: 1475 | D165: 735 | E165: 91 | F165: 89.5 | G165: 0.91 | H165: 0.75 | I165: 74 | J165: 54 | K165: 6.8 | L165: 5.9 | M165: 272 | N165: 325 | O165: 1.8 | P165: 2.1 | Q165: 2.2 | R165: 2.2 | S165: 0.74 | T165: 0.1872411095 | U165: 0.2820715299 | V165: 1.08103705 | W165: 1.376368133 | X165: 1.472250807 | Y165: 1.828990161 | Z165: 0.01666666667 | AA165: 0.265 | AB165: 1 | AC165: FALSE | AD165: 0 | AE165: 0 | AF165: 0 | AG165: 0 | AH165: 0 | AI165: 0 | AJ165: 0 | AK165: 0 | AL165: 0 | AM165: 0 | AN165: 0 | AO165: 0 | AP165: 0 | AQ165: 0 | AR165: 0 | AS165: 0 | AT165: 0 | AU165: 0 | AV165: 0
A166: 55 | B166: 33 | C166: 1480 | D166: 740 | E166: 92 | F166: 90.5 | G166: 0.9 | H166: 0.75 | I166: 97 | J166: 71 | K166: 7.3 | L166: 6.4 | M166: 355 | N166: 426 | O166: 2.1 | P166: 2.5 | Q166: 2.5 | R166: 2.5 | S166: 1.5 | T166: =3*400^2/$W$21*(1500-C166)/1500/M166 -> 0.1147708885 | U166: =3*400^2/$W$39*(750-D166)/750/N166 -> 0.1434636107 | V166: =SQRT(3*400^2*T166/($W$21*M166*O166)) -> 0.6858872475 | W166: =SQRT(3*400^2*U166/($W$39*N166*P166)) -> 0.7857825575 | X166: =(3*400^2-M166*Q166*2*$W$21*V166)/(2*$W$21*M166*Q166) -> 1.035676081 | Y166: =(3*400^2-N166*R166*2*$W$39*W166)/(2*$W$39*N166*R166) -> 1.366171603 | Z166: =(1500-C166)/1500 -> 0.01333333333 | AA166: =(1000-D166)/1000 -> 0.26 | AB166: =IF(A166<$AC$1,0,1) -> 1 | AC166: FALSE | AD166: =$AC166*A166 -> 0 | AE166: 0 | AF166: 0 | AG166: 0 | AH166: 0 | AI166: 0 | AJ166: 0 | AK166: 0 | AL166: 0 | AM166: 0 | AN166: =$AC166*M166 -> 0 | AO166: =$AC166*N166 -> 0 | AP166: =$AC166*S166 -> 0 | AQ166: 0 | AR166: 0 | AS166: 0 | AT166: 0 | AU166: 0 | AV166: 0
A167: Sincroni | AD167: =SUM(AD145:AD166) -> 3.8 | AE167: 1.9 | AF167: 1450 | AG167: 730 | AH167: 82 | AI167: 70 | AJ167: 0.86 | AK167: 0.52 | AL167: 7.7 | AM167: 7.6 | AN167: 25 | AO167: 24.9 | AP167: 0.038 | AQ167: 4.074366543 | AR167: 4.908875353 | AS167: 18.8606522 | AT167: 26.36488991 | AU167: 10.24196597 | AV167: 7.724522261
B168: 3 | D168: 152 | F168: 78.9 | H168: 0.85 | J168: 21 | S168: 1.2 | AB168: =IF(B168<$AC$1,0,1) -> 0 | AC168: =AND(AB168=1,AB167=0) -> FALSE | AD168: =$AC168*B168 -> 0 | AE168: =$AC168*D168 -> 0 | AF168: =$AC168*F168 -> 0 | AG168: =$AC168*H168 -> 0 | AH168: =$AC168*J168 -> 0 | AI168: =$AC168*N168 -> 0 | AJ168: =$AC168*S168 -> 0
B169: 5 | D169: 152 | F169: 82.2 | H169: 0.87 | J169: 21 | S169: 1.5 | AB169: =IF(B169<$AC$1,0,1) -> 1 | AC169: TRUE | AD169: =$AC169*B169 -> 5 | AE169: =$AC169*D169 -> 152 | AF169: =$AC169*F169 -> 82.2 | AG169: =$AC169*H169 -> 0.87 | AH169: =$AC169*J169 -> 21 | AI169: =$AC169*N169 -> 0 | AJ169: =$AC169*S169 -> 1.5
B170: 7 | D170: 152 | F170: 84 | H170: 0.9 | J170: 21 | S170: 1.8 | AB170: =IF(B170<$AC$1,0,1) -> 1 | AC170: FALSE | AD170: =$AC170*B170 -> 0 | AE170: =$AC170*D170 -> 0 | AF170: =$AC170*F170 -> 0 | AG170: =$AC170*H170 -> 0 | AH170: =$AC170*J170 -> 0 | AI170: =$AC170*N170 -> 0 | AJ170: =$AC170*S170 -> 0
B171: 9 | D171: 152 | F171: 85 | H171: 0.92 | J171: 21 | S171: 1.8 | AB171: =IF(B171<$AC$1,0,1) -> 1 | AC171: FALSE | AD171: =$AC171*B171 -> 0 | AE171: =$AC171*D171 -> 0 | AF171: =$AC171*F171 -> 0 | AG171: =$AC171*H171 -> 0 | AH171: =$AC171*J171 -> 0 | AI171: =$AC171*N171 -> 0 | AJ171: =$AC171*S171 -> 0
B172: 11 | D172: 152 | F172: 86.5 | H172: 0.93 | J172: 21 | N172: 819 | P172: 400 | S172: 2.2 | AB172: =IF(B172<$AC$1,0,1) -> 1 | AC172: FALSE | AD172: =$AC172*B172 -> 0 | AE172: =$AC172*D172 -> 0 | AF172: =$AC172*F172 -> 0 | AG172: =$AC172*H172 -> 0 | AH172: =$AC172*J172 -> 0 | AI172: =$AC172*N172 -> 0 | AJ172: =$AC172*S172 -> 0
B173: 16 | D173: 152 | F173: 88.1 | H173: 0.92 | J173: 31 | N173: 1228 | P173: 400 | S173: 3.9 | AB173: =IF(B173<$AC$1,0,1) -> 1 | AC173: FALSE | AD173: 0 | AE173: =$AC173*D173 -> 0 | AF173: =$AC173*F173 -> 0 | AG173: =$AC173*H173 -> 0 | AH173: =$AC173*J173 -> 0 | AI173: =$AC173*N173 -> 0 | AJ173: =$AC173*S173 -> 0
B174: 24 | D174: 152 | F174: 90 | H174: 0.94 | J174: 45 | N174: 1833 | P174: 400 | S174: 5.8 | AB174: 1 | AC174: FALSE | AD174: 0 | AE174: 0 | AF174: 0 | AG174: 0 | AH174: 0 | AI174: 0 | AJ174: 0
B175: 30 | D175: 152 | F175: 90.9 | H175: 0.97 | J175: 53 | N175: 2242 | P175: 400 | S175: 7.8 | AB175: 1 | AC175: FALSE | AD175: 0 | AE175: 0 | AF175: 0 | AG175: 0 | AH175: 0 | AI175: 0 | AJ175: 0
B176: 40 | D176: 152 | F176: 91.4 | H176: 0.96 | J176: 72 | N176: 3038 | P176: 400 | S176: 17.1 | AB176: 1 | AC176: FALSE | AD176: 0 | AE176: 0 | AF176: 0 | AG176: 0 | AH176: 0 | AI176: 0 | AJ176: 0
B177: 54 | D177: 152 | F177: 91.8 | H177: 0.95 | J177: 96 | N177: 4047 | P177: 400 | S177: 22.4 | AB177: 1 | AC177: FALSE | AD177: 0 | AE177: 0 | AF177: 0 | AG177: 0 | AH177: 0 | AI177: 0 | AJ177: 0
B178: 67 | D178: 152 | F178: 92.5 | H178: 0.99 | J178: 116 | N178: 5067 | P178: 400 | S178: 28.5 | AB178: 1 | AC178: FALSE | AD178: 0 | AE178: 0 | AF178: 0 | AG178: 0 | AH178: 0 | AI178: 0 | AJ178: 0
AD179: =SUM(AD168:AD178) -> 5 | AE179: =SUM(AE168:AE178) -> 152 | AF179: 82.2 | AG179: 0.87 | AH179: 21 | AI179: 0 | AJ179: 1.5
B180: 16 | D180: 208 | F180: 89.1 | H180: 0.93 | J180: 31 | N180: 899 | P180: 400 | S180: 2.2 | AB180: =IF(B180<$AC$1,0,1) -> 1 | AC180: =AND(AB180=1,AB179=0) -> TRUE | AD180: =$AC180*B180 -> 16 | AE180: 208 | AF180: 89.1 | AG180: 0.93 | AH180: 31 | AI180: 899 | AJ180: 2.2
B181: 24 | D181: 208 | F181: 90.7 | H181: 0.93 | J181: 45 | N181: 1343 | P181: 400 | S181: 3.9 | AB181: =IF(B181<$AC$1,0,1) -> 1 | AC181: =AND(AB181=1,AB180=0) -> FALSE | AD181: =$AC181*B181 -> 0 | AE181: 0 | AF181: 0 | AG181: 0 | AH181: 0 | AI181: 0 | AJ181: 0
B182: 34 | D182: 208 | F182: 91.9 | H182: 0.95 | J182: 61 | N182: 1880 | P182: 400 | S182: 5.8 | AB182: =IF(B182<$AC$1,0,1) -> 1 | AC182: =AND(AB182=1,AB181=0) -> FALSE | AD182: =$AC182*B182 -> 0 | AE182: 0 | AF182: 0 | AG182: 0 | AH182: 0 | AI182: 0 | AJ182: 0
B183: 43 | D183: 208 | F183: 92.7 | H183: 0.93 | J183: 79 | N183: 2385 | P183: 400 | S183: 7.8 | AB183: =IF(B183<$AC$1,0,1) -> 1 | AC183: =AND(AB183=1,AB182=0) -> FALSE | AD183: =$AC183*B183 -> 0 | AE183: 0 | AF183: 0 | AG183: 0 | AH183: 0 | AI183: 0 | AJ183: 0
B184: 54 | D184: 208 | F184: 93.1 | H184: 0.97 | J184: 93 | N184: 2967 | P184: 400 | S184: 17.1 | AB184: =IF(B184<$AC$1,0,1) -> 1 | AC184: =AND(AB184=1,AB183=0) -> FALSE | AD184: =$AC184*B184 -> 0 | AE184: 0 | AF184: 0 | AG184: 0 | AH184: 0 | AI184: 0 | AJ184: 0
AD185: =SUM(AD180:AD184) -> 16 | AE185: =SUM(AE180:AE184) -> 208 | AF185: 89.1 | AG185: 0.93 | AH185: 31 | AI185: 899 | AJ185: 2.2
B186: 20 | D186: 264 | F186: 90.1 | H186: 0.9 | J186: 39 | N186: 869 | P186: 400 | S186: 2.2 | AB186: =IF(B186<$AC$1,0,1) -> 1 | AC186: =AND(AB186=1,AB185=0) -> TRUE | AD186: =$AC186*B186 -> 20 | AE186: 264 | AF186: 90.1 | AG186: 0.9 | AH186: 39 | AI186: 869 | AJ186: 2.2
B187: 30 | D187: 264 | F187: 91.2 | H187: 0.9 | J187: 57 | N187: 1307 | P187: 400 | S187: 3.9 | AB187: =IF(B187<$AC$1,0,1) -> 1 | AC187: =AND(AB187=1,AB186=0) -> FALSE | AD187: =$AC187*B187 -> 0 | AE187: 0 | AF187: 0 | AG187: 0 | AH187: 0 | AI187: 0 | AJ187: 0
B188: 45 | D188: 264 | F188: 92.6 | H188: 0.92 | J188: 83 | N188: 1953 | P188: 400 | S188: 5.8 | AB188: =IF(B188<$AC$1,0,1) -> 1 | AC188: =AND(AB188=1,AB187=0) -> FALSE | AD188: =$AC188*B188 -> 0 | AE188: 0 | AF188: 0 | AG188: 0 | AH188: 0 | AI188: 0 | AJ188: 0
B189: 55 | D189: 264 | F189: 93.2 | H189: 0.95 | J189: 97 | N189: 2387 | P189: 400 | S189: 7.8 | AB189: =IF(B189<$AC$1,0,1) -> 1 | AC189: FALSE | AD189: =$AC189*B189 -> 0 | AE189: 0 | AF189: 0 | AG189: 0 | AH189: 0 | AI189: 0 | AJ189: 0
B190: 75 | D190: 264 | F190: 93.5 | H190: 0.95 | J190: 137 | N190: 3254 | P190: 400 | S190: 9.8 | AB190: =IF(B190<$AC$1,0,1) -> 1 | AC190: FALSE | AD190: =$AC190*B190 -> 0 | AE190: 0 | AF190: 0 | AG190: 0 | AH190: 0 | AI190: 0 | AJ190: 0
AD191: =SUM(AD186:AD190) -> 20 | AE191: =SUM(AE186:AE190) -> 264 | AF191: 90.1 | AG191: 0.9 | AH191: 39 | AI191: 869 | AJ191: 2.2
B192: 25 | D192: 298 | F192: 91.4 | H192: 0.93 | J192: 45 | N192: 940 | P192: 400 | S192: 2.2 | AB192: =IF(B192<$AC$1,0,1) -> 1 | AC192: TRUE | AD192: =$AC192*B192 -> 25 | AE192: 298 | AF192: 91.4 | AG192: 0.93 | AH192: 45 | AI192: 940 | AJ192: 2.2
B193: 34 | D193: 298 | F193: 92.7 | H193: 0.95 | J193: 60 | N193: 1312 | P193: 400 | S193: 3.9 | AB193: =IF(B193<$AC$1,0,1) -> 1 | AC193: FALSE | AD193: =$AC193*B193 -> 0 | AE193: 0 | AF193: 0 | AG193: 0 | AH193: 0 | AI193: 0 | AJ193: 0
B194: 54 | D194: 298 | F194: 93.3 | H194: 0.93 | J194: 97 | N194: 2079 | P194: 400 | S194: 5.8 | AB194: =IF(B194<$AC$1,0,1) -> 1 | AC194: FALSE | AD194: =$AC194*B194 -> 0 | AE194: 0 | AF194: 0 | AG194: 0 | AH194: 0 | AI194: 0 | AJ194: 0
B195: 68 | D195: 298 | F195: 94 | H195: 0.94 | J195: 119 | N195: 2599 | P195: 400 | S195: 7.8 | AB195: =IF(B195<$AC$1,0,1) -> 1 | AC195: FALSE | AD195: =$AC195*B195 -> 0 | AE195: 0 | AF195: 0 | AG195: 0 | AH195: 0 | AI195: 0 | AJ195: 0
AD196: =SUM(AD192:AD195) -> 25 | AE196: =SUM(AE192:AE195) -> 298 | AF196: 91.4 | AG196: 0.93 | AH196: 45 | AI196: 940 | AJ196: 2.2
B197: 13 | D197: 175 | F197: 87.6 | H197: 0.92 | J197: 22 | N197: 830 | P197: 460 | S197: 2.2 | AB197: =IF(B197<$AC$1,0,1) -> 1 | AC197: TRUE | AD197: =$AC197*B197 -> 13 | AE197: 175 | AF197: 87.6 | AG197: 0.92 | AH197: 22 | AI197: 830 | AJ197: 2.2
B198: 19 | D198: 175 | F198: 89.3 | H198: 0.91 | J198: 32 | N198: 1246 | P198: 460 | S198: 3.9 | AB198: 1 | AC198: FALSE | AD198: 0 | AE198: 0 | AF198: 0 | AG198: 0 | AH198: 0 | AI198: 0 | AJ198: 0 | BW198: M3VA | BX198: 63 | BY198: B | BZ198: 3GVA | CA198: 60 | CB198: 242-封A | CT198: 4.5
B199: 29 | D199: 175 | F199: 90.8 | H199: 0.93 | J199: 46 | N199: 1861 | P199: 460 | S199: 5.8 | AB199: 1 | AC199: FALSE | AD199: 0 | AE199: 0 | AF199: 0 | AG199: 0 | AH199: 0 | AI199: 0 | AJ199: 0 | BW199: M3VA | BX199: 71 | BY199: A | BZ199: 3GVA | CA199: 70 | CB199: 241-封B | CT199: 5.5
B200: 35 | D200: 175 | F200: 91.6 | H200: 0.96 | J200: 54 | N200: 2275 | P200: 460 | S200: 7.8 | AB200: 1 | AC200: FALSE | AD200: 0 | AE200: 0 | AF200: 0 | AG200: 0 | AH200: 0 | AI200: 0 | AJ200: 0 | BW200: M3VA | BX200: 71 | BY200: B | BZ200: 3GVA | CA200: 70 | CB200: 242-封B | CT200: 6.5
... 19 more rows
